NUMERO_MANDATO;RIGA_MANDATO;QUIET;IMPORTO_RIGA;IMPORTO_MANDATO;BENEFICIARIO;CIG;TITOLO_PAGAMENTO;DATA_MANDATO;CAPITOLO;ARTICOLO;NUMERO_IMPEGNO;TITOLO;DESCR_TITOLO;LIVELLO_II;DESCR_LIVELLO_II;LIVELLO_III;DESCR_LIVELLO_III;LIVELLO_IV;DESCR_LIVELLO_IV;LIVELLO_V;DESCR_LIVELLO_V;DATA_PAG_EFF
3;1;9999999;47,1;101,87;ENEL ENERGIA SPA;8426072694;SALDO Fatt.n. 004187579132  del 13/12/2021 NOVEMBRE 2021 - CONSUMI  PARCHEGGIO C.C. PRISMA CASELLE;10/01/2022;134;31;111;1;Spese correnti;3;Acquisto di beni e servizi;2;Acquisto di servizi;5;Utenze e canoni;4;Energia elettrica;12/01/2022
3;2;9999999;54,77;101,87;ENEL ENERGIA SPA;8426072694;SALDO Fatt.n. 004187579123  del 13/12/2021 NOVEMBRE 2021 - CONSUMI MERCATO SMS;10/01/2022;134;31;111;1;Spese correnti;3;Acquisto di beni e servizi;2;Acquisto di servizi;5;Utenze e canoni;4;Energia elettrica;12/01/2022
4;1;9999999;514,18;514,18;ENEL ENERGIA SPA;8426072694;SALDO Fatt.n. 004187579131  del 13/12/2021 NOVEMBRE 2021 - CONSUMI VILLA FARSETTI;10/01/2022;1834;0;113;1;Spese correnti;3;Acquisto di beni e servizi;2;Acquisto di servizi;5;Utenze e canoni;4;Energia elettrica;12/01/2022
5;1;9999999;144,18;144,18;ENEL ENERGIA SPA;8426072694;SALDO Fatt.n. 004188187212  del 14/12/2021 NOVEMBRE 2021 - CONSUMI I CAMPO CALCIO SMS;10/01/2022;1934;0;114;1;Spese correnti;3;Acquisto di beni e servizi;2;Acquisto di servizi;5;Utenze e canoni;4;Energia elettrica;12/01/2022
6;1;9999999;50,58;890,88;ENEL ENERGIA SPA;8426072694;SALDO Fatt.n. 004188187205  del 14/12/2021 NOVEMBRE 2021 - CONSUMI ILLUMINAZIONE PUBBLICA;10/01/2022;3544;0;1018;1;Spese correnti;3;Acquisto di beni e servizi;2;Acquisto di servizi;15;Contratti di servizio pubblico;15;Contratti di servizio per l'illuminazione pubblica;12/01/2022
6;2;9999999;50,58;890,88;ENEL ENERGIA SPA;8426072694;SALDO Fatt.n. 004188187216  del 14/12/2021 NOVEMBRE 2021 - CONSUMI ILLUMINAZIONE PUBBLICA;10/01/2022;3544;0;1018;1;Spese correnti;3;Acquisto di beni e servizi;2;Acquisto di servizi;15;Contratti di servizio pubblico;15;Contratti di servizio per l'illuminazione pubblica;12/01/2022
6;3;9999999;92,46;890,88;ENEL ENERGIA SPA;8426072694;SALDO Fatt.n. 004188187214  del 14/12/2021 NOVEMBRE 2021 - CONSUMI ILLUMINAZIONE PUBBLICA;10/01/2022;3544;0;1018;1;Spese correnti;3;Acquisto di beni e servizi;2;Acquisto di servizi;15;Contratti di servizio pubblico;15;Contratti di servizio per l'illuminazione pubblica;12/01/2022
6;4;9999999;228,68;890,88;ENEL ENERGIA SPA;8426072694;SALDO Fatt.n. 004188187209  del 14/12/2021 NOVEMBRE 2021 - CONSUMI ILLUMINAZIONE PUBBLICA;10/01/2022;3544;0;1018;1;Spese correnti;3;Acquisto di beni e servizi;2;Acquisto di servizi;15;Contratti di servizio pubblico;15;Contratti di servizio per l'illuminazione pubblica;12/01/2022
6;5;9999999;468,58;890,88;ENEL ENERGIA SPA;8426072694;SALDO Fatt.n. 004188187215  del 14/12/2021 NOVEMBRE 2021 - CONSUMI ILLUMINAZIONE PUBBLICA;10/01/2022;3544;0;1018;1;Spese correnti;3;Acquisto di beni e servizi;2;Acquisto di servizi;15;Contratti di servizio pubblico;15;Contratti di servizio per l'illuminazione pubblica;12/01/2022
7;1;9999999;50,58;1.169,01;ENEL ENERGIA SPA;8426072694;SALDO Fatt.n. 004188187206  del 14/12/2021 NOVEMBRE 2021 - CONSUMI ILLUMINAZIONE PUBBLICA;10/01/2022;3544;0;1018;1;Spese correnti;3;Acquisto di beni e servizi;2;Acquisto di servizi;15;Contratti di servizio pubblico;15;Contratti di servizio per l'illuminazione pubblica;12/01/2022
7;2;9999999;158,75;1.169,01;ENEL ENERGIA SPA;8426072694;SALDO Fatt.n. 004188187207  del 14/12/2021 NOVEMBRE 2021 - CONSUMI ILLUMINAZIONE PUBBLICA;10/01/2022;3544;0;1018;1;Spese correnti;3;Acquisto di beni e servizi;2;Acquisto di servizi;15;Contratti di servizio pubblico;15;Contratti di servizio per l'illuminazione pubblica;12/01/2022
7;3;9999999;162,71;1.169,01;ENEL ENERGIA SPA;8426072694;SALDO Fatt.n. 004188187204  del 14/12/2021 NOVEMBRE 2021 - CONSUMI ILLUMINAZIONE PUBBLICA;10/01/2022;3544;0;1018;1;Spese correnti;3;Acquisto di beni e servizi;2;Acquisto di servizi;15;Contratti di servizio pubblico;15;Contratti di servizio per l'illuminazione pubblica;12/01/2022
7;4;9999999;304,85;1.169,01;ENEL ENERGIA SPA;8426072694;SALDO Fatt.n. 004188187203  del 14/12/2021 NOVEMBRE 2021 - CONSUMI ILLUMINAZIONE PUBBLICA;10/01/2022;3544;0;1018;1;Spese correnti;3;Acquisto di beni e servizi;2;Acquisto di servizi;15;Contratti di servizio pubblico;15;Contratti di servizio per l'illuminazione pubblica;12/01/2022
7;5;9999999;492,12;1.169,01;ENEL ENERGIA SPA;8426072694;SALDO Fatt.n. 004188187202  del 14/12/2021 NOVEMBRE 2021 - CONSUMI ILLUMINAZIONE PUBBLICA;10/01/2022;3544;0;1018;1;Spese correnti;3;Acquisto di beni e servizi;2;Acquisto di servizi;15;Contratti di servizio pubblico;15;Contratti di servizio per l'illuminazione pubblica;12/01/2022
8;1;9999999;11,1;856;ENEL ENERGIA SPA;8426072694;SALDO Fatt.n. 004188187217  del 14/12/2021 NOVEMBRE 2021 - CONSUMI ILLUMINAZIONE PUBBLICA;10/01/2022;3544;0;1018;1;Spese correnti;3;Acquisto di beni e servizi;2;Acquisto di servizi;15;Contratti di servizio pubblico;15;Contratti di servizio per l'illuminazione pubblica;12/01/2022
8;2;9999999;101,46;856;ENEL ENERGIA SPA;8426072694;SALDO Fatt.n. 004188187213  del 14/12/2021 NOVEMBRE 2021 - CONSUMI ILLUMINAZIONE PUBBLICA;10/01/2022;3544;0;1018;1;Spese correnti;3;Acquisto di beni e servizi;2;Acquisto di servizi;15;Contratti di servizio pubblico;15;Contratti di servizio per l'illuminazione pubblica;12/01/2022
8;3;9999999;191,48;856;ENEL ENERGIA SPA;8426072694;SALDO Fatt.n. 004188187211  del 14/12/2021 NOVEMBRE 2021 - CONSUMI ILLUMINAZIONE PUBBLICA;10/01/2022;3544;0;1018;1;Spese correnti;3;Acquisto di beni e servizi;2;Acquisto di servizi;15;Contratti di servizio pubblico;15;Contratti di servizio per l'illuminazione pubblica;12/01/2022
8;4;9999999;211,69;856;ENEL ENERGIA SPA;8426072694;SALDO Fatt.n. 004188187210  del 14/12/2021 NOVEMBRE 2021 - CONSUMI ILLUMINAZIONE PUBBLICA;10/01/2022;3544;0;1018;1;Spese correnti;3;Acquisto di beni e servizi;2;Acquisto di servizi;15;Contratti di servizio pubblico;15;Contratti di servizio per l'illuminazione pubblica;12/01/2022
8;5;9999999;340,27;856;ENEL ENERGIA SPA;8426072694;SALDO Fatt.n. 004188187208  del 14/12/2021 NOVEMBRE 2021 - CONSUMI ILLUMINAZIONE PUBBLICA;10/01/2022;3544;0;1018;1;Spese correnti;3;Acquisto di beni e servizi;2;Acquisto di servizi;15;Contratti di servizio pubblico;15;Contratti di servizio per l'illuminazione pubblica;12/01/2022
9;1;9999999;-56,38;662,57;ENEL ENERGIA SPA;8426072694;SALDO Fatt.n. 004188797083  del 28/12/2021 NOTA DI ACCREDITO PER CONG. CONSUMI ILLUMINAZIONE PUBBLICA;10/01/2022;3544;0;1018;1;Spese correnti;3;Acquisto di beni e servizi;2;Acquisto di servizi;15;Contratti di servizio pubblico;15;Contratti di servizio per l'illuminazione pubblica;12/01/2022
9;2;9999999;718,95;662,57;ENEL ENERGIA SPA;8426072694;SALDO Fatt.n. 004187579130  del 13/12/2021 NOVEMBRE 2021 - CONSUMI ILLUMINAZIONE PUBBLICA;10/01/2022;3544;0;1018;1;Spese correnti;3;Acquisto di beni e servizi;2;Acquisto di servizi;15;Contratti di servizio pubblico;15;Contratti di servizio per l'illuminazione pubblica;12/01/2022
10;1;9999999;6,92;356,46;ENEL ENERGIA SPA;8426072694;SALDO Fatt.n. 004187579134  del 13/12/2021 NOVEMBRE 2021 - CONSUMI ILLUMINAZIONE PUBBLICA;10/01/2022;3544;0;1018;1;Spese correnti;3;Acquisto di beni e servizi;2;Acquisto di servizi;15;Contratti di servizio pubblico;15;Contratti di servizio per l'illuminazione pubblica;12/01/2022
10;2;9999999;29,39;356,46;ENEL ENERGIA SPA;8426072694;SALDO Fatt.n. 004187579133  del 13/12/2021 NOVEMBRE 2021 - CONSUMI ILLUMINAZIONE PUBBLICA;10/01/2022;3544;0;1018;1;Spese correnti;3;Acquisto di beni e servizi;2;Acquisto di servizi;15;Contratti di servizio pubblico;15;Contratti di servizio per l'illuminazione pubblica;12/01/2022
10;3;9999999;37,66;356,46;ENEL ENERGIA SPA;8426072694;SALDO Fatt.n. 004186753026  del 12/12/2021 NOVEMBRE 2021 - CONSUMI ILLUMINAZIONE PUBBLICA;10/01/2022;3544;0;1018;1;Spese correnti;3;Acquisto di beni e servizi;2;Acquisto di servizi;15;Contratti di servizio pubblico;15;Contratti di servizio per l'illuminazione pubblica;12/01/2022
10;4;9999999;131,15;356,46;ENEL ENERGIA SPA;8426072694;SALDO Fatt.n. 004186753017  del 12/12/2021 NOVEMBRE 2021 - CONSUMI ILLUMINAZIONE PUBBLICA;10/01/2022;3544;0;1018;1;Spese correnti;3;Acquisto di beni e servizi;2;Acquisto di servizi;15;Contratti di servizio pubblico;15;Contratti di servizio per l'illuminazione pubblica;12/01/2022
10;5;9999999;151,34;356,46;ENEL ENERGIA SPA;8426072694;SALDO Fatt.n. 004186753019  del 12/12/2021 NOVEMBRE 2021 - CONSUMI ILLUMINAZIONE PUBBLICA;10/01/2022;3544;0;1018;1;Spese correnti;3;Acquisto di beni e servizi;2;Acquisto di servizi;15;Contratti di servizio pubblico;15;Contratti di servizio per l'illuminazione pubblica;12/01/2022
11;1;9999999;76,47;688,24;ENEL ENERGIA SPA;8426072694;SALDO Fatt.n. 004187579129  del 13/12/2021 NOVEMBRE 2021 - CONSUMI ILLUMINAZIONE PUBBLICA;10/01/2022;3544;0;1018;1;Spese correnti;3;Acquisto di beni e servizi;2;Acquisto di servizi;15;Contratti di servizio pubblico;15;Contratti di servizio per l'illuminazione pubblica;12/01/2022
11;2;9999999;78,95;688,24;ENEL ENERGIA SPA;8426072694;SALDO Fatt.n. 004187579122  del 13/12/2021 NOVEMBRE 2021 - CONSUMI ILLUMINAZIONE PUBBLICA;10/01/2022;3544;0;1018;1;Spese correnti;3;Acquisto di beni e servizi;2;Acquisto di servizi;15;Contratti di servizio pubblico;15;Contratti di servizio per l'illuminazione pubblica;12/01/2022
11;3;9999999;84,29;688,24;ENEL ENERGIA SPA;8426072694;SALDO Fatt.n. 004187579126  del 13/12/2021 NOVEMBRE 2021 - CONSUMI ILLUMINAZIONE PUBBLICA;10/01/2022;3544;0;1018;1;Spese correnti;3;Acquisto di beni e servizi;2;Acquisto di servizi;15;Contratti di servizio pubblico;15;Contratti di servizio per l'illuminazione pubblica;12/01/2022
11;4;9999999;133,43;688,24;ENEL ENERGIA SPA;8426072694;SALDO Fatt.n. 004187579128  del 13/12/2021 NOVEMBRE 2021 - CONSUMI ILLUMINAZIONE PUBBLICA;10/01/2022;3544;0;1018;1;Spese correnti;3;Acquisto di beni e servizi;2;Acquisto di servizi;15;Contratti di servizio pubblico;15;Contratti di servizio per l'illuminazione pubblica;12/01/2022
11;5;9999999;315,1;688,24;ENEL ENERGIA SPA;8426072694;SALDO Fatt.n. 004187579124  del 13/12/2021 NOVEMBRE 2021 - CONSUMI ILLUMINAZIONE PUBBLICA;10/01/2022;3544;0;1018;1;Spese correnti;3;Acquisto di beni e servizi;2;Acquisto di servizi;15;Contratti di servizio pubblico;15;Contratti di servizio per l'illuminazione pubblica;12/01/2022
14;1;9999999;2.606,71;2.606,71;STUDIO PROGETTAZIONI AGORA';ZA02F4B60F;SALDO Fatt.n. 75  del 15/12/2021 SALDO  DD.LL. SU MANUTENZIONE STRAORDINARIA E IMPERMEABILIZZAZIONE MANTI DI COPERTURA SCUOLA PRIMARIA E SECONDARIA NEL CAPOLUOGO.;10/01/2022;540;0;1167;1;Spese correnti;3;Acquisto di beni e servizi;2;Acquisto di servizi;11;Prestazioni professionali e specialistiche;999;Altre prestazioni professionali e specialistiche n.a.c.;12/01/2022
15;1;9999999;1.700,61;1.700,61;SCANTAMBURLO PIETRO;Z85336039E;SALDO Fatt.n. 139  del 22/12/2021 MANUTENZIONE VERDE PUBBLICO;10/01/2022;2549;0;877;1;Spese correnti;3;Acquisto di beni e servizi;2;Acquisto di servizi;99;Altri servizi;9;Acquisto di sevizi per verde e arredo urbano;12/01/2022
16;1;9999999;4.467,24;4.467,24;ARTEA  SNC DI LION & SALVIATO;Z47300506C;SALDO Fatt.n. 26-2021/PA  del 10/12/2021 OPERAZIONI EFFETTUATE NEI CIMITERI DEL COMUNE DI SANTA MARIA DI SALA NEL MESE DI OTTOBRE 2021.;10/01/2022;4438;0;1377;1;Spese correnti;3;Acquisto di beni e servizi;2;Acquisto di servizi;9;Manutenzione ordinaria e riparazioni;8;Manutenzione ordinaria e riparazioni di beni immobili;12/01/2022
17;1;9999999;2.747,04;2.747,04;ARTEA  SNC DI LION & SALVIATO;Z47300506C;SALDO Fatt.n. 27-2021/PA  del 18/12/2021 OPERAZIONI EFFETTUATE NEI CIMITERI DEL COMUNE DI SANTA MARIA DI SALA NEL MESE DI NOVEMBRE 2021.;10/01/2022;4438;0;1377;1;Spese correnti;3;Acquisto di beni e servizi;2;Acquisto di servizi;9;Manutenzione ordinaria e riparazioni;8;Manutenzione ordinaria e riparazioni di beni immobili;12/01/2022
18;1;9999999;339,43;339,43;AGENZIA DELLE ENTRATE - IVA; ;LIQUIDAZIONE IVA COMMERCIALE MESE DI DICEMBRE 2021;11/01/2022;291;0;24;1;Spese correnti;10;Altre spese correnti;3;Versamenti IVA a debito;1;Versamenti IVA a debito per le gestioni commerciali;1;Versamenti IVA a debito per le gestioni commerciali;18/01/2022
19;1;9999999;300;300;E.S.A. ELECOMP SERVIZI ASCENSORI SRL;Z0A2C6C034;ACCONTO Fatt.n. FC0055879-0  del 20/12/2021  MANUTENZIONE ELEVATORI PRESSO FABBRICATI COMUNALI  PERIODO 01.07.2021 - 31.12.2021;11/01/2022;1338;0;351;1;Spese correnti;3;Acquisto di beni e servizi;2;Acquisto di servizi;9;Manutenzione ordinaria e riparazioni;11;Manutenzione ordinaria e riparazioni di altri beni materiali;14/01/2022
20;1;9999999;1.297,99;1.297,99;CENTRO BIBLIOTECHE LOVAT SRL;ZD1304E6F6;SALDO Fatt.n. 1224-21  del 15/12/2021 FORNITURA VOLUMI PER BIBLIOTECA;11/01/2022;1820;0;42;1;Spese correnti;3;Acquisto di beni e servizi;1;Acquisto di beni;1;Giornali, riviste e pubblicazioni;2;Pubblicazioni;14/01/2022
21;1;9999999;249;249;E.S.A. ELECOMP SERVIZI ASCENSORI SRL;Z0A2C6C034;SALDO Fatt.n. FC0055879-0  del 20/12/2021  MANUTENZIONE ELEVATORI PRESSO FABBRICATI COMUNALI  PERIODO 01.07.2021 - 31.12.2021;11/01/2022;1938;0;352;1;Spese correnti;3;Acquisto di beni e servizi;2;Acquisto di servizi;9;Manutenzione ordinaria e riparazioni;11;Manutenzione ordinaria e riparazioni di altri beni materiali;14/01/2022
22;1;9999999;533,19;533,19;TIM SPA - TELECOM ITALIA SPA;ZC0320B772;SALDO Fatt.n. 7X03879319  del 11/12/2021 1 BIM 2022 - CONVENZIONE CONSIP TELEFONIA MOBILE 8;11/01/2022;134;0;915;1;Spese correnti;3;Acquisto di beni e servizi;2;Acquisto di servizi;5;Utenze e canoni;2;Telefonia mobile;17/01/2022
23;1;9999999;1.097,98;1.097,98;TIM SPA - TELECOM ITALIA SPA;ZE027DF92B;SALDO Fatt.n. 4220422800045782  del 11/12/2021 1 BIM 2022 - CONNETIVITA FIBRA GBE;11/01/2022;134;0;379;1;Spese correnti;3;Acquisto di beni e servizi;2;Acquisto di servizi;5;Utenze e canoni;999;Utenze e canoni per altri servizi n.a.c.;17/01/2022
24;1;9999999;70,45;662,29;TIM SPA - TELECOM ITALIA SPA;Z502F0ADA2;SALDO Fatt.n. 8E00751093  del 11/12/2021 1 BIM 2022 - FAX SEDE MUNICIPALE;11/01/2022;134;0;944;1;Spese correnti;3;Acquisto di beni e servizi;2;Acquisto di servizi;5;Utenze e canoni;1;Telefonia fissa;17/01/2022
24;2;9999999;97,6;662,29;TIM SPA - TELECOM ITALIA SPA;Z502F0ADA2;SALDO Fatt.n. 8E00754216  del 11/12/2021 1 BIM 2022 - FAX POLIZIA LOCALE;11/01/2022;134;0;944;1;Spese correnti;3;Acquisto di beni e servizi;2;Acquisto di servizi;5;Utenze e canoni;1;Telefonia fissa;17/01/2022
24;3;9999999;107,69;662,29;TIM SPA - TELECOM ITALIA SPA;Z502F0ADA2;SALDO Fatt.n. 8E00753800  del 11/12/2021 1 BIM 2022 - FAX BIBLIOTECA;11/01/2022;134;0;944;1;Spese correnti;3;Acquisto di beni e servizi;2;Acquisto di servizi;5;Utenze e canoni;1;Telefonia fissa;17/01/2022
24;4;9999999;116,21;662,29;TIM SPA - TELECOM ITALIA SPA;Z502F0ADA2;SALDO Fatt.n. 8E00751175  del 11/12/2021 1 BIM 2022 - UTENZA POLIZIA LOCALE;11/01/2022;134;0;944;1;Spese correnti;3;Acquisto di beni e servizi;2;Acquisto di servizi;5;Utenze e canoni;1;Telefonia fissa;17/01/2022
24;5;9999999;129,93;662,29;TIM SPA - TELECOM ITALIA SPA;Z502F0ADA2;SALDO Fatt.n. 8E00755632  del 11/12/2021 1 BIM 2022 - UTENZA SEDE MUNICIPALE;11/01/2022;134;0;944;1;Spese correnti;3;Acquisto di beni e servizi;2;Acquisto di servizi;5;Utenze e canoni;1;Telefonia fissa;17/01/2022
24;6;9999999;140,41;662,29;TIM SPA - TELECOM ITALIA SPA;Z502F0ADA2;SALDO Fatt.n. 8E00753988  del 11/12/2021 1 BIM 2022 - FAX CENTRO PRELIEVI;11/01/2022;134;0;944;1;Spese correnti;3;Acquisto di beni e servizi;2;Acquisto di servizi;5;Utenze e canoni;1;Telefonia fissa;17/01/2022
25;1;9999999;70,45;781,7;TIM SPA - TELECOM ITALIA SPA;Z502F0ADA2;SALDO Fatt.n. 8E00751729  del 11/12/2021 1 BIM 2022 - UTENZA CENTRO PRELIEVI;11/01/2022;134;0;944;1;Spese correnti;3;Acquisto di beni e servizi;2;Acquisto di servizi;5;Utenze e canoni;1;Telefonia fissa;17/01/2022
25;2;9999999;109,8;781,7;TIM SPA - TELECOM ITALIA SPA;Z502F0ADA2;SALDO Fatt.n. 8E00751986  del 11/12/2021 1 BIM 2022 - UTENZA SERVIZI SOCIALI;11/01/2022;134;0;944;1;Spese correnti;3;Acquisto di beni e servizi;2;Acquisto di servizi;5;Utenze e canoni;1;Telefonia fissa;17/01/2022
25;3;9999999;116,21;781,7;TIM SPA - TELECOM ITALIA SPA;Z502F0ADA2;SALDO Fatt.n. 8E00751748  del 11/12/2021 1 BIM 2022 - UTENZA BIBLIOTECA;11/01/2022;134;0;944;1;Spese correnti;3;Acquisto di beni e servizi;2;Acquisto di servizi;5;Utenze e canoni;1;Telefonia fissa;17/01/2022
25;4;9999999;142,97;781,7;TIM SPA - TELECOM ITALIA SPA;Z502F0ADA2;SALDO Fatt.n. 8E00753933  del 11/12/2021 1 BIM 2022 - UTENZA SEDE MUNICIPALE;11/01/2022;134;0;944;1;Spese correnti;3;Acquisto di beni e servizi;2;Acquisto di servizi;5;Utenze e canoni;1;Telefonia fissa;17/01/2022
25;5;9999999;342,27;781,7;TIM SPA - TELECOM ITALIA SPA;Z502F0ADA2;SALDO Fatt.n. 8E00752998  del 11/12/2021 1BIM 2022 - UTENZA SEDE MUNICIPALE;11/01/2022;134;0;944;1;Spese correnti;3;Acquisto di beni e servizi;2;Acquisto di servizi;5;Utenze e canoni;1;Telefonia fissa;17/01/2022
26;1;9999999;270,69;270,69;KYOCERA DOCUMENT SOLUTIONS ITALIA SPA;ZB93086395;ACCONTO Fatt.n. 1010731385  del 13/12/2021 FOTOCOPIATRICI 32 - LOTTO 5 - 60 MESI - CANONE PERIODO DAL  13.09.2021 AL 12.12.2021;12/01/2022;748;0;106;1;Spese correnti;3;Acquisto di beni e servizi;2;Acquisto di servizi;19;Servizi informatici e di telecomunicazioni;7;Servizi di gestione documentale;17/01/2022
27;1;9999999;514,21;514,21;KYOCERA DOCUMENT SOLUTIONS ITALIA SPA;ZB93086395;SALDO Fatt.n. 1010731385  del 13/12/2021 FOTOCOPIATRICI 32 - LOTTO 5 - 60 MESI - CANONE PERIODO DAL  13.09.2021 AL 12.12.2021;12/01/2022;748;0;106;1;Spese correnti;3;Acquisto di beni e servizi;2;Acquisto di servizi;19;Servizi informatici e di telecomunicazioni;7;Servizi di gestione documentale;17/01/2022
28;1;9999999;270,41;270,41;KYOCERA DOCUMENT SOLUTIONS ITALIA SPA;Z202CF11D4;SALDO Fatt.n. 1010732290  del 17/12/2021 FOTOCOPIATRICI 31 - LOTTO 3 - 60 MESI - CANONE PERIODO DAL 18.06.2021 al 17.12.2021;12/01/2022;748;0;450;1;Spese correnti;3;Acquisto di beni e servizi;2;Acquisto di servizi;19;Servizi informatici e di telecomunicazioni;9;Servizi per le postazioni di lavoro e relativa manutenzione;17/01/2022
29;1;9999999;24,23;24,23;C/C/P 1039683022 -RISCOSSIONE COATTIVA EX ICP DPA; ;SPESE GESTIONE CCP RISCOSSIONE COATTIVA DICEMBRE 2021;12/01/2022;146;0;1205;1;Spese correnti;3;Acquisto di beni e servizi;2;Acquisto di servizi;17;Servizi finanziari;999;Spese per servizi finanziari n.a.c.;17/01/2022
30;1;9999999;250,53;250,53;VIRTUAL LOGIC SRL;ZA53427AD8;SALDO Fatt.n. 2889/2021  del 14/12/2021 ACQUISTO STRUMENTI INFORMATICI A SUPPORTO UFFICIO DEL SINDACO;12/01/2022;7440;0;1035;2;Spese in conto capitale;2;Investimenti fissi lordi e acquisto di terreni;1;Beni materiali;7;Hardware;5;Tablet e dispositivi di telefonia fissa e mobile;17/01/2022
31;1;9999999;1,72;5,26;MONTE DEI PASCHI DI SIENA SPA;Z122EED501;16520 COMUNE DI SANTA MARIA DI-COMMISSIONI DAL 05/01/2022 AL 06/01/2022 (P. 1 -R. del 07/01/2022);12/01/2022;146;0;712;1;Spese correnti;3;Acquisto di beni e servizi;2;Acquisto di servizi;17;Servizi finanziari;999;Spese per servizi finanziari n.a.c.;14/01/2022
31;2;9999999;3,54;5,26;MONTE DEI PASCHI DI SIENA SPA;Z122EED501;16520 COMUNE DI SANTA MARIA DI-COMMISSIONI DEL 10/01/2022 (P. 2 -R. del 11/01/2022);12/01/2022;146;0;712;1;Spese correnti;3;Acquisto di beni e servizi;2;Acquisto di servizi;17;Servizi finanziari;999;Spese per servizi finanziari n.a.c.;14/01/2022
32;1;9999999;23,52;23,52;COMUNE DI FAUGLIA; ;RIMBORSO SPESE DI NOTIFICA VS PROT.9276/21;12/01/2022;146;0;103;1;Spese correnti;3;Acquisto di beni e servizi;2;Acquisto di servizi;17;Servizi finanziari;999;Spese per servizi finanziari n.a.c.;18/01/2022
33;1;9999999;1.000,00;1.000,00;LABS LABORATORIO SOLIDALE ONLUS; ;SALDO PROGETTI DI PUBBLICA UTILITA ANNO 2021;12/01/2022;4059;10;427;1;Spese correnti;4;Trasferimenti correnti;4;Trasferimenti correnti a Istituzioni Sociali Private;1;Trasferimenti correnti a Istituzioni Sociali Private;1;Trasferimenti correnti a Istituzioni Sociali Private;17/01/2022
34;1;9999999;100;100;GAGLIARDI DANIELE; ;RIMBORSO SPESE TIROCINIO GEOMETRA A SEGUITO ACCORDO -QUADRO;12/01/2022;541;0;1012;1;Spese correnti;3;Acquisto di beni e servizi;2;Acquisto di servizi;12;Lavoro flessibile, quota LSU e acquisto di servizi da agenzie di lavoro interinale;999;Altre forme di lavoro flessibile n.a.c.;17/01/2022
35;1;9999999;100;100;GAGLIARDI DANIELE; ;RIMBORSO SPESE TIROCINIO GEOMETRA A SEGUITO ACCORDO -QUADRO;12/01/2022;549;0;26;1;Spese correnti;3;Acquisto di beni e servizi;2;Acquisto di servizi;99;Altri servizi;999;Altri servizi diversi n.a.c.;17/01/2022
36;1;9999999;900;900;LABS LABORATORIO SOLIDALE ONLUS; ;SALDO CONTRIBUTO PER ATTIVITA DI PUBBLICA UTILITA;12/01/2022;4059;10;1340;1;Spese correnti;4;Trasferimenti correnti;4;Trasferimenti correnti a Istituzioni Sociali Private;1;Trasferimenti correnti a Istituzioni Sociali Private;1;Trasferimenti correnti a Istituzioni Sociali Private;17/01/2022
38;1;9999999;327,56;327,56;DOLOMITI ENERGIA SPA;8922150718;SALDO Fatt.n. 42105543896  del 24/12/2021 NOVEMBRE 2021 - CONSUMI ALLOGGIO VIA OLIMPIA SMS;13/01/2022;134;30;347;1;Spese correnti;3;Acquisto di beni e servizi;2;Acquisto di servizi;5;Utenze e canoni;6;Gas;17/01/2022
39;1;9999999;37,26;37,26;DOLOMITI ENERGIA SPA;8922150718;ACCONTO Fatt.n. 42105578265  del 24/12/2021 NOVEMBRE 2021 - CONSUMI ALLOGGIO VIA DON GALLERANI CALTANA;13/01/2022;134;30;347;1;Spese correnti;3;Acquisto di beni e servizi;2;Acquisto di servizi;5;Utenze e canoni;6;Gas;17/01/2022
40;1;9999999;99,77;99,77;DOLOMITI ENERGIA SPA;8922150718;SALDO Fatt.n. 42105578265  del 24/12/2021 NOVEMBRE 2021 - CONSUMI ALLOGGIO VIA DON GALLERANI CALTANA;13/01/2022;134;31;348;1;Spese correnti;3;Acquisto di beni e servizi;2;Acquisto di servizi;5;Utenze e canoni;6;Gas;17/01/2022
41;1;9999999;966,03;966,03;DOLOMITI ENERGIA SPA;8922150718;ACCONTO Fatt.n. 42105543891  del 24/12/2021 NOVEMBRE 2021 - CONSUMI VILLA FARSETTI;13/01/2022;134;31;348;1;Spese correnti;3;Acquisto di beni e servizi;2;Acquisto di servizi;5;Utenze e canoni;6;Gas;17/01/2022
42;1;9999999;1.411,69;1.411,69;DOLOMITI ENERGIA SPA;8922150718;SALDO Fatt.n. 42105543894  del 24/12/2021 NOVEMBRE 2021 - CONSUMI SEDE MUNICIPALE;13/01/2022;134;31;348;1;Spese correnti;3;Acquisto di beni e servizi;2;Acquisto di servizi;5;Utenze e canoni;6;Gas;17/01/2022
43;1;9999999;1.544,34;1.544,34;DOLOMITI ENERGIA SPA;8922150718;SALDO Fatt.n. 42105543892  del 24/12/2021 NOVEMBRE 2021 - CONSUMI SC. ELEM. CALTANA;13/01/2022;1334;30;349;1;Spese correnti;3;Acquisto di beni e servizi;2;Acquisto di servizi;5;Utenze e canoni;6;Gas;17/01/2022
44;1;9999999;2.087,94;2.087,94;DOLOMITI ENERGIA SPA;8922150718;SALDO Fatt.n. 42105578266  del 24/12/2021 NOVEMBRE 2021 - CONSUMI SC. ELEM - SC. MEDIA SMS;13/01/2022;1334;30;349;1;Spese correnti;3;Acquisto di beni e servizi;2;Acquisto di servizi;5;Utenze e canoni;6;Gas;17/01/2022
45;1;9999999;357,42;357,42;DOLOMITI ENERGIA SPA;8922150718;SALDO Fatt.n. 42105578270  del 24/12/2021 NOVEMBRE 2021 - CONSUMI IMP. SPORT. CASELLE;13/01/2022;1334;30;349;1;Spese correnti;3;Acquisto di beni e servizi;2;Acquisto di servizi;5;Utenze e canoni;6;Gas;17/01/2022
46;1;9999999;453,4;453,4;DOLOMITI ENERGIA SPA;8922150718;ACCONTO Fatt.n. 42105578267  del 24/12/2021 NOVEMBRE 2021 - CONSUMI PALESTRA SMS;13/01/2022;1334;30;349;1;Spese correnti;3;Acquisto di beni e servizi;2;Acquisto di servizi;5;Utenze e canoni;6;Gas;17/01/2022
47;1;9999999;453,4;453,4;DOLOMITI ENERGIA SPA;8922150718;SALDO Fatt.n. 42105578267  del 24/12/2021 NOVEMBRE 2021 - CONSUMI PALESTRA SMS;13/01/2022;1334;30;349;1;Spese correnti;3;Acquisto di beni e servizi;2;Acquisto di servizi;5;Utenze e canoni;6;Gas;17/01/2022
48;1;9999999;426,82;426,82;DOLOMITI ENERGIA SPA;8922150718;ACCONTO Fatt.n. 42105578269  del 24/12/2021 NOVEMBRE 2021 - CONSUMI PALESTRA CALTANA;13/01/2022;1334;30;349;1;Spese correnti;3;Acquisto di beni e servizi;2;Acquisto di servizi;5;Utenze e canoni;6;Gas;17/01/2022
49;1;9999999;426,82;426,82;DOLOMITI ENERGIA SPA;8922150718;SALDO Fatt.n. 42105578269  del 24/12/2021 NOVEMBRE 2021 - CONSUMI PALESTRA CALTANA;13/01/2022;1334;30;349;1;Spese correnti;3;Acquisto di beni e servizi;2;Acquisto di servizi;5;Utenze e canoni;6;Gas;17/01/2022
50;1;9999999;475;475;DOLOMITI ENERGIA SPA;8922150718;ACCONTO Fatt.n. 42105543890  del 24/12/2021 NOVEMBRE 2021 - CONSUMI SC. ELEM - PALESTRA VETERNIGO;13/01/2022;1334;30;349;1;Spese correnti;3;Acquisto di beni e servizi;2;Acquisto di servizi;5;Utenze e canoni;6;Gas;17/01/2022
51;1;9999999;475;475;DOLOMITI ENERGIA SPA;8922150718;ACCONTO Fatt.n. 42105543890  del 24/12/2021 NOVEMBRE 2021 - CONSUMI SC. ELEM - PALESTRA VETERNIGO;13/01/2022;1334;30;349;1;Spese correnti;3;Acquisto di beni e servizi;2;Acquisto di servizi;5;Utenze e canoni;6;Gas;17/01/2022
52;1;9999999;777,23;777,23;DOLOMITI ENERGIA SPA;8922150718;SALDO Fatt.n. 42105543890  del 24/12/2021 NOVEMBRE 2021 - CONSUMI SC. ELEM - PALESTRA VETERNIGO;13/01/2022;1334;30;349;1;Spese correnti;3;Acquisto di beni e servizi;2;Acquisto di servizi;5;Utenze e canoni;6;Gas;17/01/2022
53;1;9999999;553;553;DOLOMITI ENERGIA SPA;8922150718;ACCONTO Fatt.n. 42105543889  del 24/12/2021 NOVEMBRE 2021 - CONSUMI SC. ELEM - PALESTRA STIGLIANO;13/01/2022;1334;30;349;1;Spese correnti;3;Acquisto di beni e servizi;2;Acquisto di servizi;5;Utenze e canoni;6;Gas;17/01/2022
54;1;9999999;553;553;DOLOMITI ENERGIA SPA;8922150718;ACCONTO Fatt.n. 42105543889  del 24/12/2021 NOVEMBRE 2021 - CONSUMI SC. ELEM - PALESTRA STIGLIANO;13/01/2022;1334;30;349;1;Spese correnti;3;Acquisto di beni e servizi;2;Acquisto di servizi;5;Utenze e canoni;6;Gas;17/01/2022
55;1;9999999;473,99;473,99;DOLOMITI ENERGIA SPA;8922150718;SALDO Fatt.n. 42105543889  del 24/12/2021 NOVEMBRE 2021 - CONSUMI SC. ELEM - PALESTRA STIGLIANO;13/01/2022;1334;30;349;1;Spese correnti;3;Acquisto di beni e servizi;2;Acquisto di servizi;5;Utenze e canoni;6;Gas;17/01/2022
56;1;9999999;250;250;DOLOMITI ENERGIA SPA;8922150718;ACCONTO Fatt.n. 42105543895  del 24/12/2021 NOVEMBRE 2021 - CONSUMI SC. ELEM - PALESTRA - ASILO S.ANGELO;13/01/2022;1334;30;349;1;Spese correnti;3;Acquisto di beni e servizi;2;Acquisto di servizi;5;Utenze e canoni;6;Gas;17/01/2022
57;1;9999999;250;250;DOLOMITI ENERGIA SPA;8922150718;ACCONTO Fatt.n. 42105543895  del 24/12/2021 NOVEMBRE 2021 - CONSUMI SC. ELEM - PALESTRA - ASILO S.ANGELO;13/01/2022;1334;30;349;1;Spese correnti;3;Acquisto di beni e servizi;2;Acquisto di servizi;5;Utenze e canoni;6;Gas;17/01/2022
58;1;9999999;749,23;749,23;DOLOMITI ENERGIA SPA;8922150718;SALDO Fatt.n. 42105543895  del 24/12/2021 NOVEMBRE 2021 - CONSUMI SC. ELEM - PALESTRA - ASILO S.ANGELO;13/01/2022;1334;30;349;1;Spese correnti;3;Acquisto di beni e servizi;2;Acquisto di servizi;5;Utenze e canoni;6;Gas;17/01/2022
59;1;9999999;343;343;DOLOMITI ENERGIA SPA;8922150718;ACCONTO Fatt.n. 42105543893  del 24/12/2021 NOVEMBRE 2021 - CONSUMI SC. ELEM - PALESTRA CASELLE;13/01/2022;1334;30;349;1;Spese correnti;3;Acquisto di beni e servizi;2;Acquisto di servizi;5;Utenze e canoni;6;Gas;17/01/2022
60;1;9999999;343;343;DOLOMITI ENERGIA SPA;8922150718;ACCONTO Fatt.n. 42105543893  del 24/12/2021 NOVEMBRE 2021 - CONSUMI SC. ELEM - PALESTRA CASELLE;13/01/2022;1334;30;349;1;Spese correnti;3;Acquisto di beni e servizi;2;Acquisto di servizi;5;Utenze e canoni;6;Gas;17/01/2022
61;1;9999999;1.027,21;1.027,21;DOLOMITI ENERGIA SPA;8922150718;SALDO Fatt.n. 42105543893  del 24/12/2021 NOVEMBRE 2021 - CONSUMI SC. ELEM - PALESTRA CASELLE;13/01/2022;1334;30;349;1;Spese correnti;3;Acquisto di beni e servizi;2;Acquisto di servizi;5;Utenze e canoni;6;Gas;17/01/2022
62;1;9999999;848,13;848,13;DOLOMITI ENERGIA SPA;8922150718;ACCONTO Fatt.n. 42105543891  del 24/12/2021 NOVEMBRE 2021 - CONSUMI VILLA FARSETTI;13/01/2022;1834;0;350;1;Spese correnti;3;Acquisto di beni e servizi;2;Acquisto di servizi;5;Utenze e canoni;6;Gas;17/01/2022
63;1;9999999;223,6;223,6;DOLOMITI ENERGIA SPA;8922150718;SALDO Fatt.n. 42105578268  del 24/12/2021 NOVEMBRE 2021 - CONSUMI MAGAZZINO COMUNALE;13/01/2022;3534;0;351;1;Spese correnti;3;Acquisto di beni e servizi;2;Acquisto di servizi;5;Utenze e canoni;6;Gas;17/01/2022
64;1;9999999;1.416,59;1.416,59;DOLOMITI ENERGIA SPA;8922150718;SALDO Fatt.n. 42105543891  del 24/12/2021 NOVEMBRE 2021 - CONSUMI VILLA FARSETTI;13/01/2022;4234;0;352;1;Spese correnti;3;Acquisto di beni e servizi;2;Acquisto di servizi;5;Utenze e canoni;6;Gas;17/01/2022
65;1;9999999;819,08;819,08;ABACO S.P.A.;766214493F;SALDO Fatt.n. 2022140000231  del 10/01/2022 AGGIO INCASSI ICI IMU TASI LOTTO 10- 11-12-13-14-15-16_DET. 788-19 RENDICONTO DELLA GESTIONE DAL 01/12/2021 A 31/12/2021 CIG 766214493F;13/01/2022;332;0;567;1;Spese correnti;3;Acquisto di beni e servizi;2;Acquisto di servizi;3;Aggi di riscossione;999;Altri aggi di riscossione n.a.c.;17/01/2022
66;1;9999999;85,27;85,27;ABACO S.P.A.;5325258DE8;SALDO Fatt.n. 2022140000230  del 10/01/2022 AGGIO INCASSI ICI IMU TASI LOTTO 6_D ET. AFFIDAMENTO 888-17 RENDICONTO DELLA GESTIONE DAL 01/12/2021 A 31/12/2021 CIG 5325258DE8;13/01/2022;332;0;671;1;Spese correnti;3;Acquisto di beni e servizi;2;Acquisto di servizi;3;Aggi di riscossione;999;Altri aggi di riscossione n.a.c.;17/01/2022
67;1;9999999;11,24;92,87;ABACO S.P.A.;766214493F;SALDO Fatt.n. 2022120000194  del 10/01/2022 AGGIO CUP - OCCUPAZIONE SUOLO PUBBLICO - SU INCASSI ENTE RENDICONTO DELLA GESTIONE DAL 01/12/2021 A 31/12/2021 CIG 766214493F;13/01/2022;332;0;1228;1;Spese correnti;3;Acquisto di beni e servizi;2;Acquisto di servizi;3;Aggi di riscossione;999;Altri aggi di riscossione n.a.c.;17/01/2022
67;2;9999999;81,63;92,87;ABACO S.P.A.;766214493F;SALDO Fatt.n. 2022120000193  del 10/01/2022 AGGIO CUP - ESPOSIZIONI PUBBLI CITARIE - SU INCASSI ENTE RENDICONTO DELLA GESTIONE DAL 01/12/2021 A 31/12/2021 CIG 766214493F;13/01/2022;332;0;1228;1;Spese correnti;3;Acquisto di beni e servizi;2;Acquisto di servizi;3;Aggi di riscossione;999;Altri aggi di riscossione n.a.c.;17/01/2022
68;1;9999999;85;85;CENTRO STUDI AMMINISTRATIVI MARCA TREVIGIANA;ZD133F2CCB;SALDO Fatt.n. 1089/2021  del 29/12/2021 PARTECIPAZIONE AL CORSO SOMMINISTRAZIONE NON ASSISTITA E GASTRONOMIA DOMESTICA IN DATA 3-12-2021 DIPENDENTE M.C.;13/01/2022;833;0;1008;1;Spese correnti;3;Acquisto di beni e servizi;2;Acquisto di servizi;4;Acquisto di servizi per formazione e addestramento del personale dell'ente;4;Acquisto di servizi per formazione obbligatoria;17/01/2022
69;1;9999999;3.391,60;3.391,60;AGRINOVA SNC DI GARBINETTO MATTEO E GIOVANNI;Z0830E6450;SALDO Fatt.n. 138  del 27/12/2021 LAVORI ESEGUITI PER SFALCIO ERBA VILLA FARSETTI;13/01/2022;2549;0;286;1;Spese correnti;3;Acquisto di beni e servizi;2;Acquisto di servizi;99;Altri servizi;9;Acquisto di sevizi per verde e arredo urbano;17/01/2022
70;1;9999999;15,98;125,46;SONEPAR ITALIA  SPA;ZD1310D90B;SALDO Fatt.n. 0031321664  del 22/12/2021 MATERIALE ELETTRICO PER MANUTENZIONI;13/01/2022;3538;0;314;1;Spese correnti;3;Acquisto di beni e servizi;2;Acquisto di servizi;9;Manutenzione ordinaria e riparazioni;4;Manutenzione ordinaria e riparazioni di impianti e macchinari;17/01/2022
70;2;9999999;109,48;125,46;SONEPAR ITALIA  SPA;ZD1310D90B;SALDO Fatt.n. 0031321665  del 22/12/2021 MATERIALE ELETTRICO PER MANUTENZIONI;13/01/2022;3538;0;314;1;Spese correnti;3;Acquisto di beni e servizi;2;Acquisto di servizi;9;Manutenzione ordinaria e riparazioni;4;Manutenzione ordinaria e riparazioni di impianti e macchinari;17/01/2022
71;1;9999999;569,8;569,8;IDRONORD SRL;ZAF3049734;SALDO Fatt.n. 3753  del 22/12/2021 MATERIALE EDILE PER MANUTENZIONI;13/01/2022;3538;0;924;1;Spese correnti;3;Acquisto di beni e servizi;2;Acquisto di servizi;9;Manutenzione ordinaria e riparazioni;8;Manutenzione ordinaria e riparazioni di beni immobili;17/01/2022
72;1;9999999;1.159,00;1.159,00;EPIU' SRL - COSTRUIRE INSIEME;Z4230934B4;SALDO Fatt.n. 400459  del 23/12/2021 MATERIALE EDILE PER MANUTENZIONI;13/01/2022;3538;0;1075;1;Spese correnti;3;Acquisto di beni e servizi;2;Acquisto di servizi;9;Manutenzione ordinaria e riparazioni;8;Manutenzione ordinaria e riparazioni di beni immobili;17/01/2022
73;1;9999999;588,22;588,22;P. & G. AUTOSERVICE SNC;ZBB34574B7;SALDO Fatt.n. 6/PA  del 27/12/2021 MANUTENZIONE MEZZI COMUNALI DICEMBRE 2021;13/01/2022;3538;0;1092;1;Spese correnti;3;Acquisto di beni e servizi;2;Acquisto di servizi;9;Manutenzione ordinaria e riparazioni;1;Manutenzione ordinaria e riparazioni di mezzi di trasporto ad uso civile, di sicurezza e ordine pubblico;17/01/2022
74;1;9999999;1.408,00;15.372,90;BONAVENTURA EXPRESS SRL;8704892021;SALDO Fatt.n. 269PA  del 29/12/2021 SANIFICAZIONE PER EMERGENZA COVID -19 - TRASPORTO SCOLASTICO DICEMBRE 2021;13/01/2022;1344;0;388;1;Spese correnti;3;Acquisto di beni e servizi;2;Acquisto di servizi;15;Contratti di servizio pubblico;2;Contratti di servizio di trasporto scolastico;17/01/2022
74;2;9999999;13.964,90;15.372,90;BONAVENTURA EXPRESS SRL;8704892021;SALDO Fatt.n. 270PA  del 29/12/2021 TRASPORTO SCOLASTICO DICEMBRE 2021;13/01/2022;1344;0;388;1;Spese correnti;3;Acquisto di beni e servizi;2;Acquisto di servizi;15;Contratti di servizio pubblico;2;Contratti di servizio di trasporto scolastico;17/01/2022
75;1;9999999;2.040,31;17.307,78;SODEXO ITALIA SPA;78886743B9;SALDO Fatt.n. 6400055572  del 31/12/2021 DICEMBRE 2021 - PASTI SCUOLE MATERNE BAMBINI E INSEGNANTI;13/01/2022;1344;0;543;1;Spese correnti;3;Acquisto di beni e servizi;2;Acquisto di servizi;15;Contratti di servizio pubblico;6;Contratti di servizio per le mense scolastiche;17/01/2022
75;2;9999999;15.267,47;17.307,78;SODEXO ITALIA SPA;78886743B9;SALDO Fatt.n. 6400055573  del 31/12/2021 DICEMBRE 2021 - PASTI TRASPORTATI SCUOLE BAMBINI E INSEGNANTI;13/01/2022;1344;0;543;1;Spese correnti;3;Acquisto di beni e servizi;2;Acquisto di servizi;15;Contratti di servizio pubblico;6;Contratti di servizio per le mense scolastiche;17/01/2022
76;1;9999999;1.000,01;1.000,01;FIRMA SRL;ZF4348D043;SALDO Fatt.n. 23 PA  del 31/12/2021 FORNITURA DI BANNER SEGNALETICI A SUPPORTO DEGLI OPERAI DELLA DITTA SPEEDLINE IN VERTENZA SINCACALE;13/01/2022;1849;0;1128;1;Spese correnti;3;Acquisto di beni e servizi;2;Acquisto di servizi;99;Altri servizi;999;Altri servizi diversi n.a.c.;17/01/2022
77;1;9999999;1.220,00;1.220,00;P.A. SERVICE DI PACCAGNELLA ALESSANDRO;Z52348CFBD;SALDO Fatt.n. 1  del 04/01/2022 ALLESTIMENTO IMPIANTO AUDIO IL 19.12.21 PRESSO VILLA FARSETTI;13/01/2022;1849;0;1129;1;Spese correnti;3;Acquisto di beni e servizi;2;Acquisto di servizi;99;Altri servizi;999;Altri servizi diversi n.a.c.;17/01/2022
78;1;9999999;109,8;109,8;JOLLY BOX SRL;Z642E237DF;SALDO Fatt.n. 6503-V0-2021  del 28/12/2021 NOLEGGIO DI CONTAINER NAVALE SC. ELEM. VETERNIGO - MESE DI DICEMBRE 2021;13/01/2022;1336;0;679;1;Spese correnti;3;Acquisto di beni e servizi;2;Acquisto di servizi;7;Utilizzo di beni di terzi;8;Noleggi di impianti e macchinari;17/01/2022
79;1;9999999;5.185,00;5.185,00;ABACO S.P.A.;Z61327644A;SALDO Fatt.n. 2021140004491  del 27/12/2021 SERVIZIO RISCOSSIONE CORRISPETTIVI TRASPORTO SCOLASTICO  E  REFEZIONE SCOLASTICA PER LE SCUOLE COMUNALI A.S. 2021-2022;13/01/2022;1348;0;652;1;Spese correnti;3;Acquisto di beni e servizi;2;Acquisto di servizi;19;Servizi informatici e di telecomunicazioni;1;Gestione e manutenzione applicazioni;18/01/2022
81;1;9999999;72,5;72,5;TNE SRL TUTTO NORMEL;Z7834C40A3;RINNOVO ABBONAMENTO CODICE 65818 ANNO 2022;13/01/2022;120;0;32;1;Spese correnti;3;Acquisto di beni e servizi;1;Acquisto di beni;1;Giornali, riviste e pubblicazioni;1;Giornali e riviste;18/01/2022
82;1;9999999;1.520,00;1.520,00;A.N.U.S.C.A.;Z3634B719E;ADESIONE ANNO 2022 VERSAMENTO QUOTA ANNUALE;14/01/2022;649;0;35;1;Spese correnti;3;Acquisto di beni e servizi;2;Acquisto di servizi;99;Altri servizi;3;Quote di associazioni;18/01/2022
83;1;9999999;23.109,89;23.109,89;V.E.R.I.T.A.S. SPA; ;SALDO Fatt.n. 310002463723  del 16/12/2021 SERVIZIO RIFIUTI PERIODO 01.01.2020-31.12.2020  - CONTRATTO: 3001801675  - SERVIZIO FORNITO INVIA ROMA, 5  30036 SANTA MARIA DI SALA VE - UTENZA NON DOMESTICI;14/01/2022;4758;0;1169;1;Spese correnti;4;Trasferimenti correnti;3;Trasferimenti correnti a Imprese;99;Trasferimenti correnti a altre imprese;999;Trasferimenti correnti a altre imprese;18/01/2022
84;1;9999999;420;420;ZACCHELLO SAS DI ZACCHELLO LORIS E C.; ;NOTA DI ADDEBITO PER FORNITURE ALIMENTARI;14/01/2022;4122;0;1329;1;Spese correnti;3;Acquisto di beni e servizi;1;Acquisto di beni;2;Altri beni di consumo;11;Generi alimentari;18/01/2022
85;1;9999999;853,2;853,2;DATI IDENTIFICATIVI OMESSI EX ART.26 C.4 D.LGS.33/2013 - PRIVACY; ;OTTOBRE NOVEMBRE 2021 PROGETTO SOCIO ASSISTENZIALE;14/01/2022;3757;0;851;1;Spese correnti;4;Trasferimenti correnti;2;Trasferimenti correnti a Famiglie;5;Altri trasferimenti a famiglie;999;Altri trasferimenti a famiglie n.a.c.;18/01/2022
86;1;9999999;1.645,54;1.645,54;VALEX SPA; ;LIQUIDAZIONE A DITTA VALEX RIMBORSO ASSENZE RETRIBUITE VICE SINDACO ARPI ALESSANDRO USUFRUITE NEI MESI DI NOVEMBRE E DICEMBRE 2021.;17/01/2022;30;99;20;1;Spese correnti;3;Acquisto di beni e servizi;2;Acquisto di servizi;1;Organi e incarichi istituzionali dell'amministrazione;2;Organi istituzionali dell'amministrazione - Rimborsi;19/01/2022
87;1;9999999;1.952,00;1.952,00;REGGIANI CONSULTING SRL;ZE433BA214;SALDO Fatt.n. 20210379  del 31/12/2021 ATTIVITA' DI CONSULENZA NORMATIVA SU AFFIDAMENTO ESTERNO VIDEOSORVEGLIANZA;17/01/2022;740;0;960;1;Spese correnti;3;Acquisto di beni e servizi;2;Acquisto di servizi;11;Prestazioni professionali e specialistiche;999;Altre prestazioni professionali e specialistiche n.a.c.;19/01/2022
88;1;9999999;164,52;164,52;FORNITECNICA S.R.L.;Z88269EF2B;SALDO Fatt.n. 000681PA21  del 22/12/2021 COSTO COPIA PERIODO LUGLIO - DICEMBRE 2021;17/01/2022;748;0;18;1;Spese correnti;3;Acquisto di beni e servizi;2;Acquisto di servizi;19;Servizi informatici e di telecomunicazioni;5;Servizi per i sistemi e relativa manutenzione;19/01/2022
89;1;9999999;2.867,00;2.867,00;ACCATRE SRL;ZF033BA841;SALDO Fatt.n. 1/211170  del 20/12/2021 NCARICO DI SUPPORTO ALLA REDAZIONE DEL MANUALE DI GESTIONE DOCUMENTALE;17/01/2022;748;0;964;1;Spese correnti;3;Acquisto di beni e servizi;2;Acquisto di servizi;19;Servizi informatici e di telecomunicazioni;7;Servizi di gestione documentale;19/01/2022
90;1;9999999;2.440,00;2.440,00;HALLEY VENETO SRL;Z422F31B66;SALDO Fatt.n. 1/211612  del 23/12/2021 PROGETTO SWITCH OFF PAGOPA ANNO 2021;17/01/2022;748;0;1017;1;Spese correnti;3;Acquisto di beni e servizi;2;Acquisto di servizi;19;Servizi informatici e di telecomunicazioni;2;Assistenza all'utente e formazione;19/01/2022
91;1;9999999;59,62;2.416,44;VODAFONE ITALIA SPA;Z6C2BED875;SALDO Fatt.n. AO00000962  del 06/01/2022 PERIODO 04 NOVEMBRE 2021  - 02 GENNAIO 2022 - TELEFONIA;17/01/2022;1334;0;844;1;Spese correnti;3;Acquisto di beni e servizi;2;Acquisto di servizi;5;Utenze e canoni;1;Telefonia fissa;19/01/2022
91;2;9999999;247,41;2.416,44;VODAFONE ITALIA SPA;Z6C2BED875;SALDO Fatt.n. AO00000712  del 06/01/2022 PERIODO 04 NOVEMBRE 2021  - 02 GENNAIO 2022 - TELEFONIA;17/01/2022;1334;0;844;1;Spese correnti;3;Acquisto di beni e servizi;2;Acquisto di servizi;5;Utenze e canoni;1;Telefonia fissa;19/01/2022
91;3;9999999;941,63;2.416,44;VODAFONE ITALIA SPA;Z6C2BED875;SALDO Fatt.n. AO00000431  del 06/01/2022 PERIODO 04 NOVEMBRE 2021  - 02 GENNAIO 2022 - TELEFONIA;17/01/2022;1334;0;844;1;Spese correnti;3;Acquisto di beni e servizi;2;Acquisto di servizi;5;Utenze e canoni;1;Telefonia fissa;19/01/2022
91;4;9999999;1.167,78;2.416,44;VODAFONE ITALIA SPA;Z6C2BED875;SALDO Fatt.n. AO00000356  del 06/01/2022 PERIODO 04 NOVEMBRE 2021  - 02 GENNAIO 2022 - TELEFONIA;17/01/2022;1334;0;844;1;Spese correnti;3;Acquisto di beni e servizi;2;Acquisto di servizi;5;Utenze e canoni;1;Telefonia fissa;19/01/2022
92;1;9999999;3.644,10;3.644,10;DISMA SAS DI ANGELO RIGO & C.;Z2B33311E4;ACCONTO Fatt.n. 095/2021  del 31/12/2021 SERVIZI BIBLIOTECARI NOVEMBRE - DICEMBRE 2021;17/01/2022;2049;0;867;1;Spese correnti;3;Acquisto di beni e servizi;2;Acquisto di servizi;99;Altri servizi;999;Altri servizi diversi n.a.c.;19/01/2022
93;1;9999999;477,9;477,9;DISMA SAS DI ANGELO RIGO & C.;Z2B33311E4;SALDO Fatt.n. 095/2021  del 31/12/2021 SERVIZI BIBLIOTECARI NOVEMBRE - DICEMBRE 2021;17/01/2022;2049;0;867;1;Spese correnti;3;Acquisto di beni e servizi;2;Acquisto di servizi;99;Altri servizi;999;Altri servizi diversi n.a.c.;19/01/2022
94;1;9999999;1.200,00;1.200,00;DATI IDENTIFICATIVI OMESSI EX ART.26 C.4 D.LGS.33/2013 - PRIVACY; ;CONTRIBUTO CANONI DI LOCAZIONE LEGGE 23 LUGLIO 2021, N. 106 MISURE URGENTI DI SOLIDARIETA ALIMENTARE E DI SOSTEGNO ALLE FAMIGLIE;17/01/2022;4157;0;37;1;Spese correnti;4;Trasferimenti correnti;2;Trasferimenti correnti a Famiglie;2;Interventi assistenziali;999;Altri assegni e sussidi assistenziali;20/01/2022
95;1;9999999;1.200,00;1.200,00;DATI IDENTIFICATIVI OMESSI EX ART.26 C.4 D.LGS.33/2013 - PRIVACY; ;CONTRIBUTO CANONI DI LOCAZIONE LEGGE 23 LUGLIO 2021, N. 106 MISURE URGENTI DI SOLIDARIETA ALIMENTARE E DI SOSTEGNO ALLE FAMIGLIE;17/01/2022;4157;0;37;1;Spese correnti;4;Trasferimenti correnti;2;Trasferimenti correnti a Famiglie;2;Interventi assistenziali;999;Altri assegni e sussidi assistenziali;20/01/2022
96;1;9999999;1.200,00;1.200,00;DATI IDENTIFICATIVI OMESSI EX ART.26 C.4 D.LGS.33/2013 - PRIVACY; ;CONTRIBUTO CANONI DI LOCAZIONE LEGGE 23 LUGLIO 2021, N. 106 MISURE URGENTI DI SOLIDARIETA ALIMENTARE E DI SOSTEGNO ALLE FAMIGLIE;17/01/2022;4157;0;37;1;Spese correnti;4;Trasferimenti correnti;2;Trasferimenti correnti a Famiglie;2;Interventi assistenziali;999;Altri assegni e sussidi assistenziali;20/01/2022
97;1;9999999;1.200,00;1.200,00;DATI IDENTIFICATIVI OMESSI EX ART.26 C.4 D.LGS.33/2013 - PRIVACY; ;CONTRIBUTO CANONI DI LOCAZIONE LEGGE 23 LUGLIO 2021, N. 106 MISURE URGENTI DI SOLIDARIETA ALIMENTARE E DI SOSTEGNO ALLE FAMIGLIE;17/01/2022;4157;0;37;1;Spese correnti;4;Trasferimenti correnti;2;Trasferimenti correnti a Famiglie;2;Interventi assistenziali;999;Altri assegni e sussidi assistenziali;20/01/2022
98;1;9999999;1.200,00;1.200,00;DATI IDENTIFICATIVI OMESSI EX ART.26 C.4 D.LGS.33/2013 - PRIVACY; ;CONTRIBUTO CANONI DI LOCAZIONE LEGGE 23 LUGLIO 2021, N. 106 MISURE URGENTI DI SOLIDARIETA ALIMENTARE E DI SOSTEGNO ALLE FAMIGLIE;17/01/2022;4157;0;37;1;Spese correnti;4;Trasferimenti correnti;2;Trasferimenti correnti a Famiglie;2;Interventi assistenziali;999;Altri assegni e sussidi assistenziali;20/01/2022
99;1;9999999;1.200,00;1.200,00;DATI IDENTIFICATIVI OMESSI EX ART.26 C.4 D.LGS.33/2013 - PRIVACY; ;CONTRIBUTO CANONI DI LOCAZIONE LEGGE 23 LUGLIO 2021, N. 106 MISURE URGENTI DI SOLIDARIETA ALIMENTARE E DI SOSTEGNO ALLE FAMIGLIE;17/01/2022;4157;0;37;1;Spese correnti;4;Trasferimenti correnti;2;Trasferimenti correnti a Famiglie;2;Interventi assistenziali;999;Altri assegni e sussidi assistenziali;20/01/2022
100;1;9999999;1.200,00;1.200,00;DATI IDENTIFICATIVI OMESSI EX ART.26 C.4 D.LGS.33/2013 - PRIVACY; ;CONTRIBUTO CANONI DI LOCAZIONE LEGGE 23 LUGLIO 2021, N. 106 MISURE URGENTI DI SOLIDARIETA ALIMENTARE E DI SOSTEGNO ALLE FAMIGLIE;17/01/2022;4157;0;37;1;Spese correnti;4;Trasferimenti correnti;2;Trasferimenti correnti a Famiglie;2;Interventi assistenziali;999;Altri assegni e sussidi assistenziali;20/01/2022
101;1;9999999;1.200,00;1.200,00;DATI IDENTIFICATIVI OMESSI EX ART.26 C.4 D.LGS.33/2013 - PRIVACY; ;CONTRIBUTO CANONI DI LOCAZIONE LEGGE 23 LUGLIO 2021, N. 106 MISURE URGENTI DI SOLIDARIETA ALIMENTARE E DI SOSTEGNO ALLE FAMIGLIE;17/01/2022;4157;0;37;1;Spese correnti;4;Trasferimenti correnti;2;Trasferimenti correnti a Famiglie;2;Interventi assistenziali;999;Altri assegni e sussidi assistenziali;20/01/2022
102;1;9999999;1.200,00;1.200,00;DATI IDENTIFICATIVI OMESSI EX ART.26 C.4 D.LGS.33/2013 - PRIVACY; ;CONTRIBUTO CANONI DI LOCAZIONE LEGGE 23 LUGLIO 2021, N. 106 MISURE URGENTI DI SOLIDARIETA ALIMENTARE E DI SOSTEGNO ALLE FAMIGLIE;17/01/2022;4157;0;37;1;Spese correnti;4;Trasferimenti correnti;2;Trasferimenti correnti a Famiglie;2;Interventi assistenziali;999;Altri assegni e sussidi assistenziali;20/01/2022
103;1;9999999;1.200,00;1.200,00;DATI IDENTIFICATIVI OMESSI EX ART.26 C.4 D.LGS.33/2013 - PRIVACY; ;CONTRIBUTO CANONI DI LOCAZIONE LEGGE 23 LUGLIO 2021, N. 106 MISURE URGENTI DI SOLIDARIETA ALIMENTARE E DI SOSTEGNO ALLE FAMIGLIE;17/01/2022;4157;0;923;1;Spese correnti;4;Trasferimenti correnti;2;Trasferimenti correnti a Famiglie;2;Interventi assistenziali;999;Altri assegni e sussidi assistenziali;20/01/2022
104;1;9999999;1.200,00;1.200,00;DATI IDENTIFICATIVI OMESSI EX ART.26 C.4 D.LGS.33/2013 - PRIVACY; ;CONTRIBUTO CANONI DI LOCAZIONE LEGGE 23 LUGLIO 2021, N. 106 MISURE URGENTI DI SOLIDARIETA ALIMENTARE E DI SOSTEGNO ALLE FAMIGLIE;17/01/2022;4157;0;923;1;Spese correnti;4;Trasferimenti correnti;2;Trasferimenti correnti a Famiglie;2;Interventi assistenziali;999;Altri assegni e sussidi assistenziali;20/01/2022
105;1;9999999;1.200,00;1.200,00;DATI IDENTIFICATIVI OMESSI EX ART.26 C.4 D.LGS.33/2013 - PRIVACY; ;CONTRIBUTO CANONI DI LOCAZIONE LEGGE 23 LUGLIO 2021, N. 106 MISURE URGENTI DI SOLIDARIETA ALIMENTARE E DI SOSTEGNO ALLE FAMIGLIE;17/01/2022;4157;0;923;1;Spese correnti;4;Trasferimenti correnti;2;Trasferimenti correnti a Famiglie;2;Interventi assistenziali;999;Altri assegni e sussidi assistenziali;20/01/2022
106;1;9999999;1.200,00;1.200,00;DATI IDENTIFICATIVI OMESSI EX ART.26 C.4 D.LGS.33/2013 - PRIVACY; ;CONTRIBUTO CANONI DI LOCAZIONE LEGGE 23 LUGLIO 2021, N. 106 MISURE URGENTI DI SOLIDARIETA ALIMENTARE E DI SOSTEGNO ALLE FAMIGLIE;17/01/2022;4157;0;923;1;Spese correnti;4;Trasferimenti correnti;2;Trasferimenti correnti a Famiglie;2;Interventi assistenziali;999;Altri assegni e sussidi assistenziali;20/01/2022
107;1;9999999;1.200,00;1.200,00;DATI IDENTIFICATIVI OMESSI EX ART.26 C.4 D.LGS.33/2013 - PRIVACY; ;CONTRIBUTO CANONI DI LOCAZIONE LEGGE 23 LUGLIO 2021, N. 106 MISURE URGENTI DI SOLIDARIETA ALIMENTARE E DI SOSTEGNO ALLE FAMIGLIE;17/01/2022;4157;0;923;1;Spese correnti;4;Trasferimenti correnti;2;Trasferimenti correnti a Famiglie;2;Interventi assistenziali;999;Altri assegni e sussidi assistenziali;20/01/2022
108;1;9999999;1.200,00;1.200,00;DATI IDENTIFICATIVI OMESSI EX ART.26 C.4 D.LGS.33/2013 - PRIVACY; ;CONTRIBUTO CANONI DI LOCAZIONE LEGGE 23 LUGLIO 2021, N. 106 MISURE URGENTI DI SOLIDARIETA ALIMENTARE E DI SOSTEGNO ALLE FAMIGLIE;17/01/2022;4157;0;923;1;Spese correnti;4;Trasferimenti correnti;2;Trasferimenti correnti a Famiglie;2;Interventi assistenziali;999;Altri assegni e sussidi assistenziali;20/01/2022
109;1;9999999;1.200,00;1.200,00;DATI IDENTIFICATIVI OMESSI EX ART.26 C.4 D.LGS.33/2013 - PRIVACY; ;CONTRIBUTO CANONI DI LOCAZIONE LEGGE 23 LUGLIO 2021, N. 106 MISURE URGENTI DI SOLIDARIETA ALIMENTARE E DI SOSTEGNO ALLE FAMIGLIE;17/01/2022;4157;0;923;1;Spese correnti;4;Trasferimenti correnti;2;Trasferimenti correnti a Famiglie;2;Interventi assistenziali;999;Altri assegni e sussidi assistenziali;20/01/2022
110;1;9999999;900;900;DATI IDENTIFICATIVI OMESSI EX ART.26 C.4 D.LGS.33/2013 - PRIVACY; ;CONTRIBUTO CANONI DI LOCAZIONE LEGGE 23 LUGLIO 2021, N. 106 MISURE URGENTI DI SOLIDARIETA ALIMENTARE E DI SOSTEGNO ALLE FAMIGLIE;17/01/2022;4157;0;923;1;Spese correnti;4;Trasferimenti correnti;2;Trasferimenti correnti a Famiglie;2;Interventi assistenziali;999;Altri assegni e sussidi assistenziali;20/01/2022
111;1;9999999;900;900;DATI IDENTIFICATIVI OMESSI EX ART.26 C.4 D.LGS.33/2013 - PRIVACY; ;CONTRIBUTO CANONI DI LOCAZIONE LEGGE 23 LUGLIO 2021, N. 106 MISURE URGENTI DI SOLIDARIETA ALIMENTARE E DI SOSTEGNO ALLE FAMIGLIE;17/01/2022;4157;0;923;1;Spese correnti;4;Trasferimenti correnti;2;Trasferimenti correnti a Famiglie;2;Interventi assistenziali;999;Altri assegni e sussidi assistenziali;20/01/2022
112;1;9999999;900;900;DATI IDENTIFICATIVI OMESSI EX ART.26 C.4 D.LGS.33/2013 - PRIVACY; ;CONTRIBUTO CANONI DI LOCAZIONE LEGGE 23 LUGLIO 2021, N. 106 MISURE URGENTI DI SOLIDARIETA ALIMENTARE E DI SOSTEGNO ALLE FAMIGLIE;17/01/2022;4157;0;923;1;Spese correnti;4;Trasferimenti correnti;2;Trasferimenti correnti a Famiglie;2;Interventi assistenziali;999;Altri assegni e sussidi assistenziali;20/01/2022
113;1;9999999;900;900;DATI IDENTIFICATIVI OMESSI EX ART.26 C.4 D.LGS.33/2013 - PRIVACY; ;CONTRIBUTO CANONI DI LOCAZIONE LEGGE 23 LUGLIO 2021, N. 106 MISURE URGENTI DI SOLIDARIETA ALIMENTARE E DI SOSTEGNO ALLE FAMIGLIE;17/01/2022;4157;0;923;1;Spese correnti;4;Trasferimenti correnti;2;Trasferimenti correnti a Famiglie;2;Interventi assistenziali;999;Altri assegni e sussidi assistenziali;20/01/2022
114;1;9999999;900;900;DATI IDENTIFICATIVI OMESSI EX ART.26 C.4 D.LGS.33/2013 - PRIVACY; ;CONTRIBUTO CANONI DI LOCAZIONE LEGGE 23 LUGLIO 2021, N. 106 MISURE URGENTI DI SOLIDARIETA ALIMENTARE E DI SOSTEGNO ALLE FAMIGLIE;17/01/2022;4157;0;923;1;Spese correnti;4;Trasferimenti correnti;2;Trasferimenti correnti a Famiglie;2;Interventi assistenziali;999;Altri assegni e sussidi assistenziali;20/01/2022
115;1;9999999;900;900;DATI IDENTIFICATIVI OMESSI EX ART.26 C.4 D.LGS.33/2013 - PRIVACY; ;CONTRIBUTO CANONI DI LOCAZIONE LEGGE 23 LUGLIO 2021, N. 106 MISURE URGENTI DI SOLIDARIETA ALIMENTARE E DI SOSTEGNO ALLE FAMIGLIE;17/01/2022;4157;0;923;1;Spese correnti;4;Trasferimenti correnti;2;Trasferimenti correnti a Famiglie;2;Interventi assistenziali;999;Altri assegni e sussidi assistenziali;20/01/2022
116;1;9999999;900;900;DATI IDENTIFICATIVI OMESSI EX ART.26 C.4 D.LGS.33/2013 - PRIVACY; ;CONTRIBUTO CANONI DI LOCAZIONE LEGGE 23 LUGLIO 2021, N. 106 MISURE URGENTI DI SOLIDARIETA ALIMENTARE E DI SOSTEGNO ALLE FAMIGLIE;17/01/2022;4157;0;923;1;Spese correnti;4;Trasferimenti correnti;2;Trasferimenti correnti a Famiglie;2;Interventi assistenziali;999;Altri assegni e sussidi assistenziali;20/01/2022
117;1;9999999;900;900;DATI IDENTIFICATIVI OMESSI EX ART.26 C.4 D.LGS.33/2013 - PRIVACY; ;CONTRIBUTO CANONI DI LOCAZIONE LEGGE 23 LUGLIO 2021, N. 106 MISURE URGENTI DI SOLIDARIETA ALIMENTARE E DI SOSTEGNO ALLE FAMIGLIE;17/01/2022;4157;0;923;1;Spese correnti;4;Trasferimenti correnti;2;Trasferimenti correnti a Famiglie;2;Interventi assistenziali;999;Altri assegni e sussidi assistenziali;20/01/2022
118;1;9999999;600;600;DATI IDENTIFICATIVI OMESSI EX ART.26 C.4 D.LGS.33/2013 - PRIVACY; ;CONTRIBUTO CANONI DI LOCAZIONE LEGGE 23 LUGLIO 2021, N. 106 MISURE URGENTI DI SOLIDARIETA ALIMENTARE E DI SOSTEGNO ALLE FAMIGLIE;17/01/2022;4157;0;37;1;Spese correnti;4;Trasferimenti correnti;2;Trasferimenti correnti a Famiglie;2;Interventi assistenziali;999;Altri assegni e sussidi assistenziali;20/01/2022
119;1;9999999;1.200,00;1.200,00;DATI IDENTIFICATIVI OMESSI EX ART.26 C.4 D.LGS.33/2013 - PRIVACY; ;CONTRIBUTO CANONI DI LOCAZIONE LEGGE 23 LUGLIO 2021, N. 106 MISURE URGENTI DI SOLIDARIETA ALIMENTARE E DI SOSTEGNO ALLE FAMIGLIE;17/01/2022;4157;0;923;1;Spese correnti;4;Trasferimenti correnti;2;Trasferimenti correnti a Famiglie;2;Interventi assistenziali;999;Altri assegni e sussidi assistenziali;20/01/2022
120;1;9999999;1.200,00;1.200,00;DATI IDENTIFICATIVI OMESSI EX ART.26 C.4 D.LGS.33/2013 - PRIVACY; ;CONTRIBUTO CANONI DI LOCAZIONE LEGGE 23 LUGLIO 2021, N. 106 MISURE URGENTI DI SOLIDARIETA ALIMENTARE E DI SOSTEGNO ALLE FAMIGLIE;17/01/2022;4157;0;923;1;Spese correnti;4;Trasferimenti correnti;2;Trasferimenti correnti a Famiglie;2;Interventi assistenziali;999;Altri assegni e sussidi assistenziali;20/01/2022
121;1;9999999;400;400;DATI IDENTIFICATIVI OMESSI EX ART.26 C.4 D.LGS.33/2013 - PRIVACY; ;CONTRIBUTO UTENZE DOMESTICHE LEGGE 23 LUGLIO 2021, N. 106 MISURE URGENTI DI SOLIDARIETA ALIMENTARE E DI SOSTEGNO ALLE FAMIGLIE;17/01/2022;4157;0;923;1;Spese correnti;4;Trasferimenti correnti;2;Trasferimenti correnti a Famiglie;2;Interventi assistenziali;999;Altri assegni e sussidi assistenziali;20/01/2022
122;1;9999999;400;400;DATI IDENTIFICATIVI OMESSI EX ART.26 C.4 D.LGS.33/2013 - PRIVACY; ;CONTRIBUTO UTENZE DOMESTICHE  2021 LEGGE 23 LUGLIO 2021, N. 106 MISURE URGENTI DI SOLIDARIETA ALIMENTARE E DI SOSTEGNO ALLE FAMIGLIE;17/01/2022;4157;0;923;1;Spese correnti;4;Trasferimenti correnti;2;Trasferimenti correnti a Famiglie;2;Interventi assistenziali;999;Altri assegni e sussidi assistenziali;20/01/2022
123;1;9999999;400;400;DATI IDENTIFICATIVI OMESSI EX ART.26 C.4 D.LGS.33/2013 - PRIVACY; ;CONTRIBUTO UTENZE DOMESTICHE  2021 LEGGE 23 LUGLIO 2021, N. 106 MISURE URGENTI DI SOLIDARIETA ALIMENTARE E DI SOSTEGNO ALLE FAMIGLIE;17/01/2022;4157;0;923;1;Spese correnti;4;Trasferimenti correnti;2;Trasferimenti correnti a Famiglie;2;Interventi assistenziali;999;Altri assegni e sussidi assistenziali;20/01/2022
124;1;9999999;400;400;DATI IDENTIFICATIVI OMESSI EX ART.26 C.4 D.LGS.33/2013 - PRIVACY; ;CONTRIBUTO UTENZE DOMESTICHE  2021 LEGGE 23 LUGLIO 2021, N. 106 MISURE URGENTI DI SOLIDARIETA ALIMENTARE E DI SOSTEGNO ALLE FAMIGLIE;17/01/2022;4157;0;923;1;Spese correnti;4;Trasferimenti correnti;2;Trasferimenti correnti a Famiglie;2;Interventi assistenziali;999;Altri assegni e sussidi assistenziali;20/01/2022
125;1;9999999;400;400;DATI IDENTIFICATIVI OMESSI EX ART.26 C.4 D.LGS.33/2013 - PRIVACY; ;CONTRIBUTO UTENZE DOMESTICHE  2021 LEGGE 23 LUGLIO 2021, N. 106 MISURE URGENTI DI SOLIDARIETA ALIMENTARE E DI SOSTEGNO ALLE FAMIGLIE;17/01/2022;4157;0;923;1;Spese correnti;4;Trasferimenti correnti;2;Trasferimenti correnti a Famiglie;2;Interventi assistenziali;999;Altri assegni e sussidi assistenziali;20/01/2022
126;1;9999999;400;400;DATI IDENTIFICATIVI OMESSI EX ART.26 C.4 D.LGS.33/2013 - PRIVACY; ;CONTRIBUTO UTENZE DOMESTICHE  2021 LEGGE 23 LUGLIO 2021, N. 106 MISURE URGENTI DI SOLIDARIETA ALIMENTARE E DI SOSTEGNO ALLE FAMIGLIE;17/01/2022;4157;0;923;1;Spese correnti;4;Trasferimenti correnti;2;Trasferimenti correnti a Famiglie;2;Interventi assistenziali;999;Altri assegni e sussidi assistenziali;20/01/2022
127;1;9999999;300;300;DATI IDENTIFICATIVI OMESSI EX ART.26 C.4 D.LGS.33/2013 - PRIVACY; ;CONTRIBUTO UTENZE DOMESTICHE  2021 LEGGE 23 LUGLIO 2021, N. 106 MISURE URGENTI DI SOLIDARIETA ALIMENTARE E DI SOSTEGNO ALLE FAMIGLIE;17/01/2022;4157;0;923;1;Spese correnti;4;Trasferimenti correnti;2;Trasferimenti correnti a Famiglie;2;Interventi assistenziali;999;Altri assegni e sussidi assistenziali;20/01/2022
128;1;9999999;300;300;DATI IDENTIFICATIVI OMESSI EX ART.26 C.4 D.LGS.33/2013 - PRIVACY; ;CONTRIBUTO UTENZE DOMESTICHE  2021 LEGGE 23 LUGLIO 2021, N. 106 MISURE URGENTI DI SOLIDARIETA ALIMENTARE E DI SOSTEGNO ALLE FAMIGLIE;17/01/2022;4157;0;923;1;Spese correnti;4;Trasferimenti correnti;2;Trasferimenti correnti a Famiglie;2;Interventi assistenziali;999;Altri assegni e sussidi assistenziali;20/01/2022
129;1;9999999;300;300;DATI IDENTIFICATIVI OMESSI EX ART.26 C.4 D.LGS.33/2013 - PRIVACY; ;CONTRIBUTO UTENZE DOMESTICHE  2021 LEGGE 23 LUGLIO 2021, N. 106 MISURE URGENTI DI SOLIDARIETA ALIMENTARE E DI SOSTEGNO ALLE FAMIGLIE;17/01/2022;4157;0;923;1;Spese correnti;4;Trasferimenti correnti;2;Trasferimenti correnti a Famiglie;2;Interventi assistenziali;999;Altri assegni e sussidi assistenziali;20/01/2022
130;1;9999999;200;200;DATI IDENTIFICATIVI OMESSI EX ART.26 C.4 D.LGS.33/2013 - PRIVACY; ;CONTRIBUTO UTENZE DOMESTICHE  2021 LEGGE 23 LUGLIO 2021, N. 106 MISURE URGENTI DI SOLIDARIETA ALIMENTARE E DI SOSTEGNO ALLE FAMIGLIE;17/01/2022;4157;0;923;1;Spese correnti;4;Trasferimenti correnti;2;Trasferimenti correnti a Famiglie;2;Interventi assistenziali;999;Altri assegni e sussidi assistenziali;20/01/2022
131;1;9999999;200;200;DATI IDENTIFICATIVI OMESSI EX ART.26 C.4 D.LGS.33/2013 - PRIVACY; ;CONTRIBUTO UTENZE DOMESTICHE  2021 LEGGE 23 LUGLIO 2021, N. 106 MISURE URGENTI DI SOLIDARIETA ALIMENTARE E DI SOSTEGNO ALLE FAMIGLIE;17/01/2022;4157;0;923;1;Spese correnti;4;Trasferimenti correnti;2;Trasferimenti correnti a Famiglie;2;Interventi assistenziali;999;Altri assegni e sussidi assistenziali;20/01/2022
132;1;9999999;200;200;DATI IDENTIFICATIVI OMESSI EX ART.26 C.4 D.LGS.33/2013 - PRIVACY; ;CONTRIBUTO UTENZE DOMESTICHE  2021 LEGGE 23 LUGLIO 2021, N. 106 MISURE URGENTI DI SOLIDARIETA ALIMENTARE E DI SOSTEGNO ALLE FAMIGLIE;17/01/2022;4157;0;923;1;Spese correnti;4;Trasferimenti correnti;2;Trasferimenti correnti a Famiglie;2;Interventi assistenziali;999;Altri assegni e sussidi assistenziali;20/01/2022
133;1;9999999;200;200;DATI IDENTIFICATIVI OMESSI EX ART.26 C.4 D.LGS.33/2013 - PRIVACY; ;CONTRIBUTO UTENZE DOMESTICHE  2021 LEGGE 23 LUGLIO 2021, N. 106 MISURE URGENTI DI SOLIDARIETA ALIMENTARE E DI SOSTEGNO ALLE FAMIGLIE;17/01/2022;4157;0;923;1;Spese correnti;4;Trasferimenti correnti;2;Trasferimenti correnti a Famiglie;2;Interventi assistenziali;999;Altri assegni e sussidi assistenziali;20/01/2022
134;1;9999999;200;200;DATI IDENTIFICATIVI OMESSI EX ART.26 C.4 D.LGS.33/2013 - PRIVACY; ;CONTRIBUTO UTENZE DOMESTICHE LEGGE 23 LUGLIO 2021, N. 106 MISURE URGENTI DI SOLIDARIETA ALIMENTARE E DI SOSTEGNO ALLE FAMIGLIE;17/01/2022;4157;0;923;1;Spese correnti;4;Trasferimenti correnti;2;Trasferimenti correnti a Famiglie;2;Interventi assistenziali;999;Altri assegni e sussidi assistenziali;20/01/2022
135;1;9999999;200;200;DATI IDENTIFICATIVI OMESSI EX ART.26 C.4 D.LGS.33/2013 - PRIVACY; ;CONTRIBUTO UTENZE DOMESTICHE  2021 LEGGE 23 LUGLIO 2021, N. 106 MISURE URGENTI DI SOLIDARIETA ALIMENTARE E DI SOSTEGNO ALLE FAMIGLIE;17/01/2022;4157;0;923;1;Spese correnti;4;Trasferimenti correnti;2;Trasferimenti correnti a Famiglie;2;Interventi assistenziali;999;Altri assegni e sussidi assistenziali;20/01/2022
136;1;9999999;200;200;DATI IDENTIFICATIVI OMESSI EX ART.26 C.4 D.LGS.33/2013 - PRIVACY; ;CONTRIBUTO UTENZE DOMESTICHE  2021 LEGGE 23 LUGLIO 2021, N. 106 MISURE URGENTI DI SOLIDARIETA ALIMENTARE E DI SOSTEGNO ALLE FAMIGLIE;17/01/2022;4157;0;923;1;Spese correnti;4;Trasferimenti correnti;2;Trasferimenti correnti a Famiglie;2;Interventi assistenziali;999;Altri assegni e sussidi assistenziali;20/01/2022
137;1;9999999;200;200;DATI IDENTIFICATIVI OMESSI EX ART.26 C.4 D.LGS.33/2013 - PRIVACY; ;CONTRIBUTO UTENZE DOMESTICHE  2021 LEGGE 23 LUGLIO 2021, N. 106 MISURE URGENTI DI SOLIDARIETA ALIMENTARE E DI SOSTEGNO ALLE FAMIGLIE;17/01/2022;4157;0;923;1;Spese correnti;4;Trasferimenti correnti;2;Trasferimenti correnti a Famiglie;2;Interventi assistenziali;999;Altri assegni e sussidi assistenziali;20/01/2022
138;1;9999999;25;8.211,72;DIVERSI - DIPENDENTI COMUNALI; ;STIPENDI MESE DI GENNAIO 22;18/01/2022;30;99;0;1;Spese correnti;3;Acquisto di beni e servizi;2;Acquisto di servizi;1;Organi e incarichi istituzionali dell'amministrazione;1;Organi istituzionali dell'amministrazione - Indennità;27/01/2022
138;2;9999999;8.186,72;8.211,72;DIVERSI-AMMINISTRATORI COM.LI; ;STIPENDI MESE DI GENNAIO 22;18/01/2022;30;99;0;1;Spese correnti;3;Acquisto di beni e servizi;2;Acquisto di servizi;1;Organi e incarichi istituzionali dell'amministrazione;1;Organi istituzionali dell'amministrazione - Indennità;27/01/2022
218;1;9999999;5.000,00;5.000,00;CONFCOMMERCIO DEL MIRANESE; ;CONTRIBUTO PER LA REALIZZAZIONE DI UN DOCU-FILM QUALE INIZIATIVA PREVISTA NEL PROGETTO DEL DISTRETTO DEL COMMERCIO;19/01/2022;4759;0;1091;1;Spese correnti;4;Trasferimenti correnti;4;Trasferimenti correnti a Istituzioni Sociali Private;1;Trasferimenti correnti a Istituzioni Sociali Private;1;Trasferimenti correnti a Istituzioni Sociali Private;21/01/2022
219;1;9999999;3.000,00;3.000,00;QUADIENT ITALY SRL;Z9234B8874;FONDO SPESE PER UTILIZZO MACCHINA AFFRANCATRICE IN USO ALLUFFICIO PROTOCOLLO - ANNO 2022.;19/01/2022;145;0;38;1;Spese correnti;3;Acquisto di beni e servizi;2;Acquisto di servizi;16;Servizi amministrativi;999;Altre spese per servizi amministrativi;21/01/2022
220;1;9999999;764,78;764,78;C.E.I.F. DI BESSEGA VANNI;ZB9305D59C;SALDO Fatt.n. 1-17  del 30/12/2021 MATERIALE VARIO DI FERRAMENTA PER MANUTENZIONI;19/01/2022;522;0;58;1;Spese correnti;3;Acquisto di beni e servizi;1;Acquisto di beni;2;Altri beni di consumo;999;Altri beni e materiali di consumo n.a.c.;21/01/2022
221;1;9999999;426,09;426,09;CARROZZERIA  CARRARO  & SCATTOLIN  SNC;Z9F3446B4E;SALDO Fatt.n. 211  del 29/12/2021 LAVORI ESEGUITI SU RENAULT TRAFIC TARGATO EK065AV;19/01/2022;3538;0;1076;1;Spese correnti;3;Acquisto di beni e servizi;2;Acquisto di servizi;9;Manutenzione ordinaria e riparazioni;1;Manutenzione ordinaria e riparazioni di mezzi di trasporto ad uso civile, di sicurezza e ordine pubblico;21/01/2022
222;1;9999999;480;480;PNEUSQUATTRO S.R.L.;Z71345173C;SALDO Fatt.n. 203  del 15/12/2021 SOSTITUZIONE PNEUMATICI DEL MEZZO TG. ET168HC;19/01/2022;3538;0;1087;1;Spese correnti;3;Acquisto di beni e servizi;2;Acquisto di servizi;9;Manutenzione ordinaria e riparazioni;1;Manutenzione ordinaria e riparazioni di mezzi di trasporto ad uso civile, di sicurezza e ordine pubblico;21/01/2022
223;1;9999999;12.530,74;12.530,74;SO.GE.DI.CO. SRL-IMPIANTI COSTR.GENERALI;Z47343E2D5;SALDO Fatt.n. 236FEP  del 28/12/2021 INTERVENTI DI MANUTENZIONE STRAORDINARIA SUI PLESSI SCOLASTICI VOLTI AL CONTRASTO DELLA DIFFUSIONE DEL CONTAGIO DA COVID 19;19/01/2022;7681;0;1019;2;Spese in conto capitale;2;Investimenti fissi lordi e acquisto di terreni;1;Beni materiali;9;Beni immobili;3;Fabbricati ad uso scolastico;21/01/2022
224;1;9999999;348,72;348,72;ZORZATO MATTEO; ;ACCONTO 80% INDENNITA DI ESPROPRIO PER LA CESSIONE DELLE AREE NECESSARIE ALLA REALIZZAZIONE DELLA PISTA CICLO PEDONALE LUNGO LA S.R.515 TRATTO TREPONTI -VIA SANZIO -VIA VERONESE;20/01/2022;8563;0;1362;2;Spese in conto capitale;2;Investimenti fissi lordi e acquisto di terreni;1;Beni materiali;9;Beni immobili;12;Infrastrutture stradali;24/01/2022
225;1;9999999;461,58;461,58;PERIN LOREDANA; ;ACCONTO 80% INDENNITA DI ESPROPRIO PER LA CESSIONE DELLE AREE NECESSARIE ALLA REALIZZAZIONE DELLA PISTA CICLO PEDONALE LUNGO LA S.R.515 TRATTO TREPONTI -VIA SANZIO -VIA VERONESE;20/01/2022;8563;0;1362;2;Spese in conto capitale;2;Investimenti fissi lordi e acquisto di terreni;1;Beni materiali;9;Beni immobili;12;Infrastrutture stradali;24/01/2022
226;1;9999999;1.518,96;1.518,96;PAVAN VANESSA; ;ACCONTO 80% INDENNITA DI ESPROPRIO PER LA CESSIONE DELLE AREE NECESSARIE ALLA REALIZZAZIONE DELLA PISTA CICLO PEDONALE LUNGO LA S.R.515 TRATTO TREPONTI -VIA SANZIO -VIA VERONESE;20/01/2022;8563;0;1362;2;Spese in conto capitale;2;Investimenti fissi lordi e acquisto di terreni;1;Beni materiali;9;Beni immobili;12;Infrastrutture stradali;24/01/2022
227;1;9999999;379,74;379,74;CALZAVARA LORETA; ;ACCONTO 80% INDENNITA DI ESPROPRIO PER LA CESSIONE DELLE AREE NECESSARIE ALLA REALIZZAZIONE DELLA PISTA CICLO PEDONALE LUNGO LA S.R.515 TRATTO TREPONTI -VIA SANZIO -VIA VERONESE;20/01/2022;8563;0;1362;2;Spese in conto capitale;2;Investimenti fissi lordi e acquisto di terreni;1;Beni materiali;9;Beni immobili;12;Infrastrutture stradali;24/01/2022
228;1;9999999;304,44;304,44;CALZAVARA LITIANA; ;ACCONTO 80% INDENNITA DI ESPROPRIO PER LA CESSIONE DELLE AREE NECESSARIE ALLA REALIZZAZIONE DELLA PISTA CICLO PEDONALE LUNGO LA S.R.515 TRATTO TREPONTI -VIA SANZIO -VIA VERONESE;20/01/2022;8563;0;1362;2;Spese in conto capitale;2;Investimenti fissi lordi e acquisto di terreni;1;Beni materiali;9;Beni immobili;12;Infrastrutture stradali;24/01/2022
229;1;9999999;304,44;304,44;CALZAVARA LIAM; ;ACCONTO 80% INDENNITA DI ESPROPRIO PER LA CESSIONE DELLE AREE NECESSARIE ALLA REALIZZAZIONE DELLA PISTA CICLO PEDONALE LUNGO LA S.R.515 TRATTO TREPONTI -VIA SANZIO -VIA VERONESE;20/01/2022;8563;0;1362;2;Spese in conto capitale;2;Investimenti fissi lordi e acquisto di terreni;1;Beni materiali;9;Beni immobili;12;Infrastrutture stradali;24/01/2022
230;1;9999999;304,44;304,44;CALZAVARA LERRY; ;ACCONTO 80% INDENNITA DI ESPROPRIO PER LA CESSIONE DELLE AREE NECESSARIE ALLA REALIZZAZIONE DELLA PISTA CICLO PEDONALE LUNGO LA S.R.515 TRATTO TREPONTI -VIA SANZIO -VIA VERONESE;20/01/2022;8563;0;1362;2;Spese in conto capitale;2;Investimenti fissi lordi e acquisto di terreni;1;Beni materiali;9;Beni immobili;12;Infrastrutture stradali;24/01/2022
231;1;9999999;323;323;TOSON MANUELA; ;ACCONTO 80% INDENNITA DI ESPROPRIO PER LA CESSIONE DELLE AREE NECESSARIE ALLA REALIZZAZIONE DELLA PISTA CICLO PEDONALE LUNGO LA S.R.515 TRATTO TREPONTI -VIA SANZIO -VIA VERONESE;20/01/2022;8563;0;1362;2;Spese in conto capitale;2;Investimenti fissi lordi e acquisto di terreni;1;Beni materiali;9;Beni immobili;12;Infrastrutture stradali;24/01/2022
232;1;9999999;323;323;TOSON CLARA; ;ACCONTO 80% INDENNITA DI ESPROPRIO PER LA CESSIONE DELLE AREE NECESSARIE ALLA REALIZZAZIONE DELLA PISTA CICLO PEDONALE LUNGO LA S.R.515 TRATTO TREPONTI -VIA SANZIO -VIA VERONESE;20/01/2022;8563;0;1362;2;Spese in conto capitale;2;Investimenti fissi lordi e acquisto di terreni;1;Beni materiali;9;Beni immobili;12;Infrastrutture stradali;24/01/2022
233;1;9999999;323;323;TOSON ANTONELLA; ;ACCONTO 80% INDENNITA DI ESPROPRIO PER LA CESSIONE DELLE AREE NECESSARIE ALLA REALIZZAZIONE DELLA PISTA CICLO PEDONALE LUNGO LA S.R.515 TRATTO TREPONTI -VIA SANZIO -VIA VERONESE;20/01/2022;8563;0;1362;2;Spese in conto capitale;2;Investimenti fissi lordi e acquisto di terreni;1;Beni materiali;9;Beni immobili;12;Infrastrutture stradali;24/01/2022
234;1;9999999;646;646;CUOGO RINA; ;ACCONTO 80% INDENNITA DI ESPROPRIO PER LA CESSIONE DELLE AREE NECESSARIE ALLA REALIZZAZIONE DELLA PISTA CICLO PEDONALE LUNGO LA S.R.515 TRATTO TREPONTI -VIA SANZIO -VIA VERONESE;20/01/2022;8563;0;1362;2;Spese in conto capitale;2;Investimenti fissi lordi e acquisto di terreni;1;Beni materiali;9;Beni immobili;12;Infrastrutture stradali;24/01/2022
235;1;9999999;107,67;107,67;CARRARO LUCA; ;ACCONTO 80% INDENNITA DI ESPROPRIO PER LA CESSIONE DELLE AREE NECESSARIE ALLA REALIZZAZIONE DELLA PISTA CICLO PEDONALE LUNGO LA S.R.515 TRATTO TREPONTI -VIA SANZIO -VIA VERONESE;20/01/2022;8563;0;1362;2;Spese in conto capitale;2;Investimenti fissi lordi e acquisto di terreni;1;Beni materiali;9;Beni immobili;12;Infrastrutture stradali;24/01/2022
236;1;9999999;107,67;107,67;CARRARO DAVIDE; ;ACCONTO 80% INDENNITA DI ESPROPRIO PER LA CESSIONE DELLE AREE NECESSARIE ALLA REALIZZAZIONE DELLA PISTA CICLO PEDONALE LUNGO LA S.R.515 TRATTO TREPONTI -VIA SANZIO -VIA VERONESE;20/01/2022;8563;0;1362;2;Spese in conto capitale;2;Investimenti fissi lordi e acquisto di terreni;1;Beni materiali;9;Beni immobili;12;Infrastrutture stradali;24/01/2022
237;1;9999999;107,66;107,66;CARRARO SARA; ;ACCONTO 80% INDENNITA DI ESPROPRIO PER LA CESSIONE DELLE AREE NECESSARIE ALLA REALIZZAZIONE DELLA PISTA CICLO PEDONALE LUNGO LA S.R.515 TRATTO TREPONTI -VIA SANZIO -VIA VERONESE;20/01/2022;8563;0;1362;2;Spese in conto capitale;2;Investimenti fissi lordi e acquisto di terreni;1;Beni materiali;9;Beni immobili;12;Infrastrutture stradali;24/01/2022
238;1;9999999;1.447,60;1.447,60;POLCAN SABRINA; ;ACCONTO 80% INDENNITA DI ESPROPRIO PER LA CESSIONE DELLE AREE NECESSARIE ALLA REALIZZAZIONE DELLA PISTA CICLO PEDONALE LUNGO LA S.R.515 TRATTO TREPONTI -VIA SANZIO -VIA VERONESE;20/01/2022;8563;0;1362;2;Spese in conto capitale;2;Investimenti fissi lordi e acquisto di terreni;1;Beni materiali;9;Beni immobili;12;Infrastrutture stradali;24/01/2022
239;1;9999999;2.270,40;2.270,40;CALZAVARA REMO; ;ACCONTO 80% INDENNITA DI ESPROPRIO PER LA CESSIONE DELLE AREE NECESSARIE ALLA REALIZZAZIONE DELLA PISTA CICLO PEDONALE LUNGO LA S.R.515 TRATTO TREPONTI -VIA SANZIO -VIA VERONESE;20/01/2022;8563;0;1362;2;Spese in conto capitale;2;Investimenti fissi lordi e acquisto di terreni;1;Beni materiali;9;Beni immobili;12;Infrastrutture stradali;24/01/2022
240;1;9999999;2.270,40;2.270,40;GATTO GIULIA; ;ACCONTO 80% INDENNITA DI ESPROPRIO PER LA CESSIONE DELLE AREE NECESSARIE ALLA REALIZZAZIONE DELLA PISTA CICLO PEDONALE LUNGO LA S.R.515 TRATTO TREPONTI -VIA SANZIO -VIA VERONESE;20/01/2022;8563;0;1362;2;Spese in conto capitale;2;Investimenti fissi lordi e acquisto di terreni;1;Beni materiali;9;Beni immobili;12;Infrastrutture stradali;24/01/2022
241;1;9999999;606,67;606,67;TOSON GIANFRANCO; ;ACCONTO 80% INDENNITA DI ESPROPRIO PER LA CESSIONE DELLE AREE NECESSARIE ALLA REALIZZAZIONE DELLA PISTA CICLO PEDONALE LUNGO LA S.R.515 TRATTO TREPONTI -VIA SANZIO -VIA VERONESE;20/01/2022;8563;0;1362;2;Spese in conto capitale;2;Investimenti fissi lordi e acquisto di terreni;1;Beni materiali;9;Beni immobili;12;Infrastrutture stradali;24/01/2022
242;1;9999999;606,66;606,66;TOSON RUGGERO; ;ACCONTO 80% INDENNITA DI ESPROPRIO PER LA CESSIONE DELLE AREE NECESSARIE ALLA REALIZZAZIONE DELLA PISTA CICLO PEDONALE LUNGO LA S.R.515 TRATTO TREPONTI -VIA SANZIO -VIA VERONESE;20/01/2022;8563;0;1362;2;Spese in conto capitale;2;Investimenti fissi lordi e acquisto di terreni;1;Beni materiali;9;Beni immobili;12;Infrastrutture stradali;24/01/2022
243;1;9999999;606,67;606,67;TOSON MARIALUISA; ;ACCONTO 80% INDENNITA DI ESPROPRIO PER LA CESSIONE DELLE AREE NECESSARIE ALLA REALIZZAZIONE DELLA PISTA CICLO PEDONALE LUNGO LA S.R.515 TRATTO TREPONTI -VIA SANZIO -VIA VERONESE;20/01/2022;8563;0;1362;2;Spese in conto capitale;2;Investimenti fissi lordi e acquisto di terreni;1;Beni materiali;9;Beni immobili;12;Infrastrutture stradali;24/01/2022
244;1;9999999;7.497,60;7.497,60;DALLA BONA GABRIELE; ;ACCONTO 80% INDENNITA DI ESPROPRIO PER LA CESSIONE DELLE AREE NECESSARIE ALLA REALIZZAZIONE DELLA PISTA CICLO PEDONALE LUNGO LA S.R.515 TRATTO TREPONTI -VIA SANZIO -VIA VERONESE;20/01/2022;8563;0;1362;2;Spese in conto capitale;2;Investimenti fissi lordi e acquisto di terreni;1;Beni materiali;9;Beni immobili;12;Infrastrutture stradali;24/01/2022
248;1;9999999;100;100;DATI IDENTIFICATIVI OMESSI EX ART.26 C.4 D.LGS.33/2013 - PRIVACY; ;GENNAIO 2022 CONTRIBUTI ORDINARI E STRAORDINARI;21/01/2022;4157;0;872;1;Spese correnti;4;Trasferimenti correnti;2;Trasferimenti correnti a Famiglie;2;Interventi assistenziali;999;Altri assegni e sussidi assistenziali;25/01/2022
249;1;9999999;2.100,00;2.100,00;DATI IDENTIFICATIVI OMESSI EX ART.26 C.4 D.LGS.33/2013 - PRIVACY; ;GIRO CONTABILE MINIMO VITALE GENNAIO 2022 ( COPERTURA ACCERTAMENTI);21/01/2022;4157;0;1125;1;Spese correnti;4;Trasferimenti correnti;2;Trasferimenti correnti a Famiglie;2;Interventi assistenziali;999;Altri assegni e sussidi assistenziali;27/01/2022
250;1;9999999;700;700;DATI IDENTIFICATIVI OMESSI EX ART.26 C.4 D.LGS.33/2013 - PRIVACY; ;GENNAIO 2022 PROGETTO RILEVANZA SOCIALE;21/01/2022;4157;0;91;1;Spese correnti;4;Trasferimenti correnti;2;Trasferimenti correnti a Famiglie;2;Interventi assistenziali;999;Altri assegni e sussidi assistenziali;25/01/2022
251;1;9999999;150;150;DATI IDENTIFICATIVI OMESSI EX ART.26 C.4 D.LGS.33/2013 - PRIVACY; ;GENNAIO 2022 MINIMO VITALE;21/01/2022;4157;0;842;1;Spese correnti;4;Trasferimenti correnti;2;Trasferimenti correnti a Famiglie;2;Interventi assistenziali;999;Altri assegni e sussidi assistenziali;25/01/2022
252;1;9999999;115;115;DATI IDENTIFICATIVI OMESSI EX ART.26 C.4 D.LGS.33/2013 - PRIVACY; ;GENNAIO 2022 COMPETENZE TIROCINIO DI INSERIMENTO LAVORATIVO;21/01/2022;4157;0;355;1;Spese correnti;4;Trasferimenti correnti;2;Trasferimenti correnti a Famiglie;2;Interventi assistenziali;999;Altri assegni e sussidi assistenziali;25/01/2022
253;1;9999999;1.000,00;1.000,00;DATI IDENTIFICATIVI OMESSI EX ART.26 C.4 D.LGS.33/2013 - PRIVACY; ;CANONI DI LOCAZIONE ARRETRATI NOGARA ULISSE;21/01/2022;4157;0;1124;1;Spese correnti;4;Trasferimenti correnti;2;Trasferimenti correnti a Famiglie;2;Interventi assistenziali;999;Altri assegni e sussidi assistenziali;25/01/2022
254;1;9999999;1.000,00;1.000,00;DATI IDENTIFICATIVI OMESSI EX ART.26 C.4 D.LGS.33/2013 - PRIVACY; ;CANONI DI LOCAZIONE ARRETRATI NOGARA ULISSE;21/01/2022;4157;0;1124;1;Spese correnti;4;Trasferimenti correnti;2;Trasferimenti correnti a Famiglie;2;Interventi assistenziali;999;Altri assegni e sussidi assistenziali;25/01/2022
255;1;9999999;160;160;DATI IDENTIFICATIVI OMESSI EX ART.26 C.4 D.LGS.33/2013 - PRIVACY; ;INT.RETTA SCUOLA MATERNA NOVEMBRE DICEMBRE 2021;21/01/2022;3757;0;899;1;Spese correnti;4;Trasferimenti correnti;2;Trasferimenti correnti a Famiglie;5;Altri trasferimenti a famiglie;999;Altri trasferimenti a famiglie n.a.c.;25/01/2022
256;1;9999999;340;340;DATI IDENTIFICATIVI OMESSI EX ART.26 C.4 D.LGS.33/2013 - PRIVACY; ;NOVEMBRE DICEMBRE 2021 INT.RETTA;21/01/2022;3757;0;902;1;Spese correnti;4;Trasferimenti correnti;2;Trasferimenti correnti a Famiglie;5;Altri trasferimenti a famiglie;999;Altri trasferimenti a famiglie n.a.c.;25/01/2022
257;1;9999999;340;340;DATI IDENTIFICATIVI OMESSI EX ART.26 C.4 D.LGS.33/2013 - PRIVACY; ;INT.RETTA NOVEMBRE DICEMBRE 2021 SCUOLA MATERNA;21/01/2022;3757;0;903;1;Spese correnti;4;Trasferimenti correnti;2;Trasferimenti correnti a Famiglie;5;Altri trasferimenti a famiglie;999;Altri trasferimenti a famiglie n.a.c.;25/01/2022
258;1;9999999;340;340;DATI IDENTIFICATIVI OMESSI EX ART.26 C.4 D.LGS.33/2013 - PRIVACY; ;INT.RETTA NOVEMBRE DICEMBRE 2021 SCUOLA MATERNA;21/01/2022;3757;0;900;1;Spese correnti;4;Trasferimenti correnti;2;Trasferimenti correnti a Famiglie;5;Altri trasferimenti a famiglie;999;Altri trasferimenti a famiglie n.a.c.;25/01/2022
259;1;9999999;340;340;DATI IDENTIFICATIVI OMESSI EX ART.26 C.4 D.LGS.33/2013 - PRIVACY; ;INT.RETTA NOVEMBRE DICEMBRE 2021 SCUOLA MATERNA;21/01/2022;3757;0;991;1;Spese correnti;4;Trasferimenti correnti;2;Trasferimenti correnti a Famiglie;5;Altri trasferimenti a famiglie;999;Altri trasferimenti a famiglie n.a.c.;25/01/2022
260;1;9999999;175;175;DATI IDENTIFICATIVI OMESSI EX ART.26 C.4 D.LGS.33/2013 - PRIVACY; ;DOPOSCUOLA RETTA NOVEMBRE DICEMBRE 2021 G.F.;21/01/2022;3757;0;904;1;Spese correnti;4;Trasferimenti correnti;2;Trasferimenti correnti a Famiglie;5;Altri trasferimenti a famiglie;999;Altri trasferimenti a famiglie n.a.c.;25/01/2022
261;1;9999999;175;175;DATI IDENTIFICATIVI OMESSI EX ART.26 C.4 D.LGS.33/2013 - PRIVACY; ;DOPOSCUOLA RETTA NOVEMBRE DICEMBRE 2021 M.A.;21/01/2022;3757;0;905;1;Spese correnti;4;Trasferimenti correnti;2;Trasferimenti correnti a Famiglie;5;Altri trasferimenti a famiglie;999;Altri trasferimenti a famiglie n.a.c.;25/01/2022
262;1;9999999;175;175;DATI IDENTIFICATIVI OMESSI EX ART.26 C.4 D.LGS.33/2013 - PRIVACY; ;DOPOSCUOLA RETTA NOVEMBRE DICEMBRE 2021 M.M.;21/01/2022;3757;0;906;1;Spese correnti;4;Trasferimenti correnti;2;Trasferimenti correnti a Famiglie;5;Altri trasferimenti a famiglie;999;Altri trasferimenti a famiglie n.a.c.;25/01/2022
263;1;9999999;436,8;436,8;DATI IDENTIFICATIVI OMESSI EX ART.26 C.4 D.LGS.33/2013 - PRIVACY; ;DICEMBRE 2021 PROGETTO PERSONALIZZATO DINTERVENTO SOCIO-ASSISTENZIALE A FAVORE DI MINORE -;21/01/2022;3757;0;851;1;Spese correnti;4;Trasferimenti correnti;2;Trasferimenti correnti a Famiglie;5;Altri trasferimenti a famiglie;999;Altri trasferimenti a famiglie n.a.c.;25/01/2022
264;1;9999999;1.663,20;1.663,20;CALZAVARA ORNELLA; ;ACCONTO 80% INDENNITA DI ESPROPRIO PER LA CESSIONE DELLE AREE NECESSARIE ALLA REALIZZAZIONE DELLA PISTA CICLO PEDONALE LUNGO LA S.R.515 TRATTO TREPONTI -VIA SANZIO -VIA VERONESE;21/01/2022;8563;0;1362;2;Spese in conto capitale;2;Investimenti fissi lordi e acquisto di terreni;1;Beni materiali;9;Beni immobili;12;Infrastrutture stradali;25/01/2022
265;1;9999999;1.663,20;1.663,20;CALZAVARA FRANCESCO; ;ACCONTO 80% INDENNITA DI ESPROPRIO PER LA CESSIONE DELLE AREE NECESSARIE ALLA REALIZZAZIONE DELLA PISTA CICLO PEDONALE LUNGO LA S.R.515 TRATTO TREPONTI -VIA SANZIO -VIA VERONESE;21/01/2022;8563;0;1362;2;Spese in conto capitale;2;Investimenti fissi lordi e acquisto di terreni;1;Beni materiali;9;Beni immobili;12;Infrastrutture stradali;25/01/2022
266;1;9999999;356,4;356,4;CALZAVARA FRANCESCO; ;ACCONTO 80% INDENNITA DI ESPROPRIO PER LA CESSIONE DELLE AREE NECESSARIE ALLA REALIZZAZIONE DELLA PISTA CICLO PEDONALE LUNGO LA S.R.515 TRATTO TREPONTI -VIA SANZIO -VIA VERONESE;21/01/2022;8563;0;1362;2;Spese in conto capitale;2;Investimenti fissi lordi e acquisto di terreni;1;Beni materiali;9;Beni immobili;12;Infrastrutture stradali;25/01/2022
267;1;9999999;118,8;118,8;CALZAVARA LORENA; ;ACCONTO 80% INDENNITA DI ESPROPRIO PER LA CESSIONE DELLE AREE NECESSARIE ALLA REALIZZAZIONE DELLA PISTA CICLO PEDONALE LUNGO LA S.R.515 TRATTO TREPONTI -VIA SANZIO -VIA VERONESE;21/01/2022;8563;0;1362;2;Spese in conto capitale;2;Investimenti fissi lordi e acquisto di terreni;1;Beni materiali;9;Beni immobili;12;Infrastrutture stradali;25/01/2022
268;1;9999999;170;170;DATI IDENTIFICATIVI OMESSI EX ART.26 C.4 D.LGS.33/2013 - PRIVACY; ;NOVEMBRE DICEMBRE 2021 INT.RETTA C.G.;21/01/2022;3757;0;901;1;Spese correnti;4;Trasferimenti correnti;2;Trasferimenti correnti a Famiglie;5;Altri trasferimenti a famiglie;999;Altri trasferimenti a famiglie n.a.c.;25/01/2022
269;1;9999999;1.343,20;1.343,20;DATI IDENTIFICATIVI OMESSI EX ART.26 C.4 D.LGS.33/2013 - PRIVACY; ;OTT/NOV/DIC.2021 PROGETTO PERSONALIZZATO DINTERVENTO SOCIO-ASSISTENZIALE A FAVORE DI MINORE;21/01/2022;3757;0;1061;1;Spese correnti;4;Trasferimenti correnti;2;Trasferimenti correnti a Famiglie;5;Altri trasferimenti a famiglie;999;Altri trasferimenti a famiglie n.a.c.;25/01/2022
270;1;9999999;631,27;631,27;ANCI VENETO;Z6B34DA6ED;QUOTA ASSOCIATIVA ALLA.N.C.I. VENETO ANNO 2022;21/01/2022;833;0;60;1;Spese correnti;3;Acquisto di beni e servizi;2;Acquisto di servizi;4;Acquisto di servizi per formazione e addestramento del personale dell'ente;999;Acquisto di servizi per altre spese per formazione e addestramento n.a.c.;25/01/2022
271;1;9999999;958,59;958,59;ANCI VENETO;Z6B34DA6ED;QUOTA ASSOCIATIVA ALLA.N.C.I. VENETO ANNO 2022;21/01/2022;49;0;59;1;Spese correnti;3;Acquisto di beni e servizi;2;Acquisto di servizi;99;Altri servizi;3;Quote di associazioni;25/01/2022
279;1;9999999;150;150;DATI IDENTIFICATIVI OMESSI EX ART.26 C.4 D.LGS.33/2013 - PRIVACY; ;GENNAIO 2022 AFFIDO FAMILIARE;24/01/2022;3757;50;282;1;Spese correnti;4;Trasferimenti correnti;2;Trasferimenti correnti a Famiglie;2;Interventi assistenziali;999;Altri assegni e sussidi assistenziali;27/01/2022
280;1;9999999;569;569;COMUNE DI DOLO; ;RETTA OTTOBRE 2021 OSPITE GRUPPO APPARTAMENTO;24/01/2022;4051;0;179;1;Spese correnti;4;Trasferimenti correnti;1;Trasferimenti correnti a Amministrazioni Pubbliche;2;Trasferimenti correnti a Amministrazioni Locali;3;Trasferimenti correnti a Comuni;27/01/2022
281;1;9999999;1.200,00;1.200,00;A.I.L. ASSOCIAZIONE ITALIANA LEUCEMIE; ;EROGAZIONE DI CONTRIBUTI ECONOMICI ALLE ASSOCIAZIONI IMPEGNATE NELLA REALIZZAZIONE DEL CARTELLONE CULTURALE DEL NATALE SOLIDALE 2021 PROMOSSO IN OCCASIONE DELLE FESTIVIT -;24/01/2022;1859;0;1141;1;Spese correnti;4;Trasferimenti correnti;4;Trasferimenti correnti a Istituzioni Sociali Private;1;Trasferimenti correnti a Istituzioni Sociali Private;1;Trasferimenti correnti a Istituzioni Sociali Private;27/01/2022
282;1;9999999;2.000,00;2.000,00;ASSOCIAZIONE ALBACHIARA; ;EROGAZIONE DI CONTRIBUTI ECONOMICI ALLE ASSOCIAZIONI IMPEGNATE NELLA REALIZZAZIONE DEL CARTELLONE CULTURALE DEL NATALE SOLIDALE 2021 PROMOSSO IN OCCASIONE DELLE FESTIVIT;24/01/2022;1859;0;1142;1;Spese correnti;4;Trasferimenti correnti;4;Trasferimenti correnti a Istituzioni Sociali Private;1;Trasferimenti correnti a Istituzioni Sociali Private;1;Trasferimenti correnti a Istituzioni Sociali Private;27/01/2022
283;1;9999999;500;500;ASS.CULTURALE GENTE SALESE; ;EROGAZIONE DI CONTRIBUTI ECONOMICI ALLE ASSOCIAZIONI IMPEGNATE NELLA REALIZZAZIONE DEL CARTELLONE CULTURALE DEL NATALE SOLIDALE 2021 PROMOSSO IN OCCASIONE DELLE FESTIVITA;24/01/2022;1859;0;1149;1;Spese correnti;4;Trasferimenti correnti;4;Trasferimenti correnti a Istituzioni Sociali Private;1;Trasferimenti correnti a Istituzioni Sociali Private;1;Trasferimenti correnti a Istituzioni Sociali Private;27/01/2022
284;1;9999999;1.188,00;1.188,00;COMPAGNIA TEATRALE GLI ALCUNI - ASSOCIAZIONE CULTURALE; ;EROGAZIONE DI CONTRIBUTI ECONOMICI ALLE ASSOCIAZIONI IMPEGNATE NELLA REALIZZAZIONE DEL CARTELLONE CULTURALE DEL NATALE SOLIDALE 2021 PROMOSSO IN OCCASIONE DELLE FESTIVITA;24/01/2022;1859;0;1144;1;Spese correnti;4;Trasferimenti correnti;4;Trasferimenti correnti a Istituzioni Sociali Private;1;Trasferimenti correnti a Istituzioni Sociali Private;1;Trasferimenti correnti a Istituzioni Sociali Private;27/01/2022
285;1;9999999;1.000,00;1.000,00;ASSOCIAZIONE  LA CASA SULL' ALBERO; ;EROGAZIONE DI CONTRIBUTI ECONOMICI ALLE ASSOCIAZIONI IMPEGNATE NELLA REALIZZAZIONE DEL CARTELLONE CULTURALE DEL NATALE SOLIDALE 2021 PROMOSSO IN OCCASIONE DELLE FESTIVITA;24/01/2022;1859;0;1145;1;Spese correnti;4;Trasferimenti correnti;4;Trasferimenti correnti a Istituzioni Sociali Private;1;Trasferimenti correnti a Istituzioni Sociali Private;1;Trasferimenti correnti a Istituzioni Sociali Private;27/01/2022
286;1;9999999;1.250,00;1.250,00;LABS LABORATORIO SOLIDALE ONLUS; ;EROGAZIONE DI CONTRIBUTI ECONOMICI ALLE ASSOCIAZIONI IMPEGNATE NELLA REALIZZAZIONE DEL CARTELLONE CULTURALE DEL NATALE SOLIDALE 2021 PROMOSSO IN OCCASIONE DELLE FESTIVITA;24/01/2022;1859;0;1146;1;Spese correnti;4;Trasferimenti correnti;4;Trasferimenti correnti a Istituzioni Sociali Private;1;Trasferimenti correnti a Istituzioni Sociali Private;1;Trasferimenti correnti a Istituzioni Sociali Private;27/01/2022
287;1;9999999;1.200,00;1.200,00;MANO AMICA - GRUPPO SALESE DI IMPEGNO SOCIALE O.D.V.; ;EROGAZIONE DI CONTRIBUTI ECONOMICI ALLE ASSOCIAZIONI IMPEGNATE NELLA REALIZZAZIONE DEL CARTELLONE CULTURALE DEL NATALE SOLIDALE 2021 PROMOSSO IN OCCASIONE DELLE FESTIVITA;24/01/2022;1859;0;1147;1;Spese correnti;4;Trasferimenti correnti;4;Trasferimenti correnti a Istituzioni Sociali Private;1;Trasferimenti correnti a Istituzioni Sociali Private;1;Trasferimenti correnti a Istituzioni Sociali Private;27/01/2022
288;1;9999999;1.000,00;1.000,00;ORCHESTRA DI FIATI DEL VENETO; ;EROGAZIONE DI CONTRIBUTI ECONOMICI ALLE ASSOCIAZIONI IMPEGNATE NELLA REALIZZAZIONE DEL CARTELLONE CULTURALE DEL NATALE SOLIDALE 2021 PROMOSSO IN OCCASIONE DELLE FESTIVITA;24/01/2022;1859;0;1148;1;Spese correnti;4;Trasferimenti correnti;4;Trasferimenti correnti a Istituzioni Sociali Private;1;Trasferimenti correnti a Istituzioni Sociali Private;1;Trasferimenti correnti a Istituzioni Sociali Private;27/01/2022
289;1;9999999;99,95;99,95;ZAMENGO UGO; ;01/07/21-31/12/21 INDENNITA DI PRESENZA AI COMPONENTI DEL CONSIGLIO COMUNALE, DELLE COMMISSIONI CONSILIARI E DELLA COMMISSIONE ELETTORALE;24/01/2022;30;99;24;1;Spese correnti;3;Acquisto di beni e servizi;2;Acquisto di servizi;1;Organi e incarichi istituzionali dell'amministrazione;1;Organi istituzionali dell'amministrazione - Indennità;27/01/2022
290;1;9999999;159,92;159,92;MERLO ENRICO; ;01/07/21-31/12/21 INDENNITA DI PRESENZA AI COMPONENTI DEL CONSIGLIO COMUNALE, DELLE COMMISSIONI CONSILIARI E DELLA COMMISSIONE ELETTORALE;24/01/2022;30;99;24;1;Spese correnti;3;Acquisto di beni e servizi;2;Acquisto di servizi;1;Organi e incarichi istituzionali dell'amministrazione;1;Organi istituzionali dell'amministrazione - Indennità;27/01/2022
291;1;9999999;99,95;99,95;MIELE LUIGINO; ;01/07/21-31/12/21 INDENNITA DI PRESENZA AI COMPONENTI DEL CONSIGLIO COMUNALE, DELLE COMMISSIONI CONSILIARI E DELLA COMMISSIONE ELETTORALE;24/01/2022;30;99;24;1;Spese correnti;3;Acquisto di beni e servizi;2;Acquisto di servizi;1;Organi e incarichi istituzionali dell'amministrazione;1;Organi istituzionali dell'amministrazione - Indennità;27/01/2022
292;1;9999999;159,92;159,92;RAGAZZO GABRIELE; ;01/07/21-31/12/21 INDENNITA DI PRESENZA AI COMPONENTI DEL CONSIGLIO COMUNALE, DELLE COMMISSIONI CONSILIARI E DELLA COMMISSIONE ELETTORALE;24/01/2022;30;99;24;1;Spese correnti;3;Acquisto di beni e servizi;2;Acquisto di servizi;1;Organi e incarichi istituzionali dell'amministrazione;1;Organi istituzionali dell'amministrazione - Indennità;27/01/2022
293;1;9999999;19,99;19,99;CARRILLO ANGELA; ;01/07/21-31/12/21 INDENNITA DI PRESENZA AI COMPONENTI DEL CONSIGLIO COMUNALE, DELLE COMMISSIONI CONSILIARI E DELLA COMMISSIONE ELETTORALE;24/01/2022;30;99;24;1;Spese correnti;3;Acquisto di beni e servizi;2;Acquisto di servizi;1;Organi e incarichi istituzionali dell'amministrazione;1;Organi istituzionali dell'amministrazione - Indennità;27/01/2022
294;1;9999999;79,96;79,96;BASSO MARIA CHIARA; ;01/07/21-31/12/21 INDENNITA DI PRESENZA AI COMPONENTI DEL CONSIGLIO COMUNALE, DELLE COMMISSIONI CONSILIARI E DELLA COMMISSIONE ELETTORALE;24/01/2022;30;99;24;1;Spese correnti;3;Acquisto di beni e servizi;2;Acquisto di servizi;1;Organi e incarichi istituzionali dell'amministrazione;1;Organi istituzionali dell'amministrazione - Indennità;27/01/2022
295;1;9999999;79,96;79,96;BERTOLIN MONICA; ;01/07/21-31/12/21 INDENNITA DI PRESENZA AI COMPONENTI DEL CONSIGLIO COMUNALE, DELLE COMMISSIONI CONSILIARI E DELLA COMMISSIONE ELETTORALE;24/01/2022;30;99;24;1;Spese correnti;3;Acquisto di beni e servizi;2;Acquisto di servizi;1;Organi e incarichi istituzionali dell'amministrazione;1;Organi istituzionali dell'amministrazione - Indennità;27/01/2022
296;1;9999999;139,93;139,93;ZANCHIN ALESSIO; ;01/07/21-31/12/21 INDENNITA DI PRESENZA AI COMPONENTI DEL CONSIGLIO COMUNALE, DELLE COMMISSIONI CONSILIARI E DELLA COMMISSIONE ELETTORALE;24/01/2022;30;99;24;1;Spese correnti;3;Acquisto di beni e servizi;2;Acquisto di servizi;1;Organi e incarichi istituzionali dell'amministrazione;1;Organi istituzionali dell'amministrazione - Indennità;27/01/2022
297;1;9999999;79,96;79,96;MOGNO GLENDA; ;01/07/21-31/12/21 INDENNITA DI PRESENZA AI COMPONENTI DEL CONSIGLIO COMUNALE, DELLE COMMISSIONI CONSILIARI E DELLA COMMISSIONE ELETTORALE;24/01/2022;30;99;24;1;Spese correnti;3;Acquisto di beni e servizi;2;Acquisto di servizi;1;Organi e incarichi istituzionali dell'amministrazione;1;Organi istituzionali dell'amministrazione - Indennità;27/01/2022
298;1;9999999;199,9;199,9;BASSO GIOIA; ;01/07/21-31/12/21 INDENNITA DI PRESENZA AI COMPONENTI DEL CONSIGLIO COMUNALE, DELLE COMMISSIONI CONSILIARI E DELLA COMMISSIONE ELETTORALE;24/01/2022;30;99;24;1;Spese correnti;3;Acquisto di beni e servizi;2;Acquisto di servizi;1;Organi e incarichi istituzionali dell'amministrazione;1;Organi istituzionali dell'amministrazione - Indennità;27/01/2022
299;1;9999999;139,93;139,93;ANDREELLO GIULIANA; ;01/07/21-31/12/21 INDENNITA DI PRESENZA AI COMPONENTI DEL CONSIGLIO COMUNALE, DELLE COMMISSIONI CONSILIARI E DELLA COMMISSIONE ELETTORALE;24/01/2022;30;99;24;1;Spese correnti;3;Acquisto di beni e servizi;2;Acquisto di servizi;1;Organi e incarichi istituzionali dell'amministrazione;1;Organi istituzionali dell'amministrazione - Indennità;27/01/2022
300;1;9999999;119,94;119,94;FAVARO LEANDRO; ;01/07/21-31/12/21 INDENNITA DI PRESENZA AI COMPONENTI DEL CONSIGLIO COMUNALE, DELLE COMMISSIONI CONSILIARI E DELLA COMMISSIONE ELETTORALE;24/01/2022;30;99;24;1;Spese correnti;3;Acquisto di beni e servizi;2;Acquisto di servizi;1;Organi e incarichi istituzionali dell'amministrazione;1;Organi istituzionali dell'amministrazione - Indennità;27/01/2022
301;1;9999999;99,95;99,95;COLETTO CRISTIANO; ;01/07/21-31/12/21 INDENNITA DI PRESENZA AI COMPONENTI DEL CONSIGLIO COMUNALE, DELLE COMMISSIONI CONSILIARI E DELLA COMMISSIONE ELETTORALE;24/01/2022;30;99;24;1;Spese correnti;3;Acquisto di beni e servizi;2;Acquisto di servizi;1;Organi e incarichi istituzionali dell'amministrazione;1;Organi istituzionali dell'amministrazione - Indennità;27/01/2022
302;1;9999999;99,95;99,95;BUGIN LAURA; ;01/07/21-31/12/21 INDENNITA DI PRESENZA AI COMPONENTI DEL CONSIGLIO COMUNALE, DELLE COMMISSIONI CONSILIARI E DELLA COMMISSIONE ELETTORALE;24/01/2022;30;99;24;1;Spese correnti;3;Acquisto di beni e servizi;2;Acquisto di servizi;1;Organi e incarichi istituzionali dell'amministrazione;1;Organi istituzionali dell'amministrazione - Indennità;27/01/2022
303;1;9999999;139,93;139,93;GIORDAN CHRISTIAN; ;01/07/21-31/12/21 INDENNITA DI PRESENZA AI COMPONENTI DEL CONSIGLIO COMUNALE, DELLE COMMISSIONI CONSILIARI E DELLA COMMISSIONE ELETTORALE;24/01/2022;30;99;24;1;Spese correnti;3;Acquisto di beni e servizi;2;Acquisto di servizi;1;Organi e incarichi istituzionali dell'amministrazione;1;Organi istituzionali dell'amministrazione - Indennità;27/01/2022
304;1;9999999;27,29;27,29;C/C/P 15453301 SERVIZIO DI TESORERIA COM; ;SPESE DI GESTIONE CCP MESE DI DICEMBRE 2021;25/01/2022;146;0;0;1;Spese correnti;3;Acquisto di beni e servizi;2;Acquisto di servizi;17;Servizi finanziari;999;Spese per servizi finanziari n.a.c.;27/01/2022
305;1;9999999;55;55;CITTA' METROPOLITANA DI VENEZIA; ;RIMBORSO SPESE AGEVOLATE TPL 2021;25/01/2022;3851;0;153;1;Spese correnti;4;Trasferimenti correnti;1;Trasferimenti correnti a Amministrazioni Pubbliche;2;Trasferimenti correnti a Amministrazioni Locali;4;Trasferimenti correnti a Città metropolitane e Roma capitale;27/01/2022
306;1;9999999;11.000,00;11.000,00;MAG SPA;ZE834C4A3C;PAGAMENTO PREMIO POLIZZA ASSICURATIVA PER INCENDIO ANNO 2022;25/01/2022;992;0;53;1;Spese correnti;10;Altre spese correnti;4;Premi di assicurazione;1;Premi di assicurazione contro i danni;2;Premi di assicurazione su beni immobili;27/01/2022
307;1;9999999;18.785,00;18.785,00;MAG SPA;ZC634C47EF;PAGAMENTO PREMIO POLIZZA ASSICURATIVA PER RESPONSABILITA CIVILE VERSO TERZI ANNO 2022;25/01/2022;992;0;57;1;Spese correnti;10;Altre spese correnti;4;Premi di assicurazione;1;Premi di assicurazione contro i danni;3;Premi di assicurazione per responsabilità civile verso terzi;27/01/2022
308;1;9999999;75,11;75,11;MCTC MINISTERO INFRASTRUTTURE TRASPORTI; ;CORRISPETTIVO III TRIMESTRE 2021 UTENZA DPR 634/94 - CAPO XV CAP 2459;25/01/2022;1134;0;43;1;Spese correnti;3;Acquisto di beni e servizi;2;Acquisto di servizi;5;Utenze e canoni;3;Accesso a banche dati e a pubblicazioni on line;27/01/2022
309;1;9999999;16,24;16,24;MCTC MINISTERO INFRASTRUTTURE TRASPORTI; ;CORRISPETTIVO IV TRIMESTRE 2021 UTENZA DPR 634/94 CAPO XV CAPITOLO 2459;25/01/2022;1134;0;43;1;Spese correnti;3;Acquisto di beni e servizi;2;Acquisto di servizi;5;Utenze e canoni;3;Accesso a banche dati e a pubblicazioni on line;27/01/2022
310;1;9999999;1.220,25;1.220,25;MCTC MINISTERO INFRASTRUTTURE TRASPORTI; ;CANONE ANNO 2022 UTENZA DPR 634/94 CAPO XV CAPITOLO 2454 ART.5;25/01/2022;1134;0;70;1;Spese correnti;3;Acquisto di beni e servizi;2;Acquisto di servizi;5;Utenze e canoni;3;Accesso a banche dati e a pubblicazioni on line;27/01/2022
311;1;9999999;6.031,18;6.031,18;COMUNE DI MIRANO; ;RIMBORSO QUOTA COSTO CONTRIBUTO ARAN 2020 PER CONVENZIONESEGRETERIA PROT.30610;26/01/2022;151;0;1386;1;Spese correnti;4;Trasferimenti correnti;1;Trasferimenti correnti a Amministrazioni Pubbliche;2;Trasferimenti correnti a Amministrazioni Locali;3;Trasferimenti correnti a Comuni;28/01/2022
312;1;9999999;8.899,40;8.899,40;COMUNE DI MIRANO; ;RIMBORSO QUOTA COSTO CONTRIBUTO ARAN 2021 PER CONVENZIONE SEGRETERIA PROT. 30612;26/01/2022;151;0;1125;1;Spese correnti;4;Trasferimenti correnti;1;Trasferimenti correnti a Amministrazioni Pubbliche;2;Trasferimenti correnti a Amministrazioni Locali;3;Trasferimenti correnti a Comuni;28/01/2022
313;1;9999999;30;30;AUTORITA'VIGILANZA SUI CONTRATTI PUBBLIC; ;SPESE AUTORITA DI VIGILANZA - LAVORI DI MESSA IN SICUREZZA VIABILITA CARRABILE E CICLO PEDONALE DEL CENTRO ABITATO SI SANTA MARIA DI SALA STRALCIO 2 INTERVENTO 1;26/01/2022;8563;0;1371;2;Spese in conto capitale;2;Investimenti fissi lordi e acquisto di terreni;1;Beni materiali;9;Beni immobili;12;Infrastrutture stradali;27/01/2022
314;1;9999999;30;30;AUTORITA'VIGILANZA SUI CONTRATTI PUBBLIC; ;SPESE DI AUTORITA VIGILANZA SOSTITUZIONE INFISSI SCUOLE COMUNALI;26/01/2022;7630;1;612;2;Spese in conto capitale;2;Investimenti fissi lordi e acquisto di terreni;1;Beni materiali;9;Beni immobili;3;Fabbricati ad uso scolastico;27/01/2022
315;1;9999999;375;375;AUTORITA'VIGILANZA SUI CONTRATTI PUBBLIC; ;QUOTA AUTORITA DI VIGILANZA PROGETTO REALIZZAZIONE PISTA CICLO PEDONALE TREPONTI;26/01/2022;8563;0;1362;2;Spese in conto capitale;2;Investimenti fissi lordi e acquisto di terreni;1;Beni materiali;9;Beni immobili;12;Infrastrutture stradali;27/01/2022
316;1;9999999;225;225;AUTORITA'VIGILANZA SUI CONTRATTI PUBBLIC; ;QUOTA AUTORITA DI VIGILANZA SERVIZIO DI TRASPORTO SCOLASTICO TRAMITE NOLEGGIO DI AUTOBUS PER GLI ALUNNI DELLA SCUOLA SECONDARIA DI PRIMO GRADO DELLISTITUTO COMPRENSIVO CORDENONS DI SANTA MARIA DI SALA PER GLI AA.SS. 2021/2022,;26/01/2022;1344;0;384;1;Spese correnti;3;Acquisto di beni e servizi;2;Acquisto di servizi;15;Contratti di servizio pubblico;2;Contratti di servizio di trasporto scolastico;27/01/2022
317;1;9999999;7.815,81;7.815,81;IMMOBILIARE SALA S.R.L.; ;SALDO Fatt.n. 1 / PA  del 20/01/2022 ACCONTO 80 PER CENTO PER INDENNITA DI ESPROPRIO PER LA REALIZZAZIONE DELLA PISTA CICLO-PEDONALE LUNGO LA S.R. 515  TRATTO TRE PONTI VIA R. SANZIO - VIA VERONESE;26/01/2022;8563;0;1362;2;Spese in conto capitale;2;Investimenti fissi lordi e acquisto di terreni;1;Beni materiali;9;Beni immobili;12;Infrastrutture stradali;28/01/2022
318;1;9999999;1.200,00;1.200,00;DATI IDENTIFICATIVI OMESSI EX ART.26 C.4 D.LGS.33/2013 - PRIVACY; ;CONTRIBUTO REGIONALE ICD M E ICD Mgs - 3 TRIMESTRE 2021 luglio agosto settembre 2021;27/01/2022;3957;50;1182;1;Spese correnti;4;Trasferimenti correnti;2;Trasferimenti correnti a Famiglie;2;Interventi assistenziali;999;Altri assegni e sussidi assistenziali;01/02/2022
319;1;9999999;1.200,00;1.200,00;DATI IDENTIFICATIVI OMESSI EX ART.26 C.4 D.LGS.33/2013 - PRIVACY; ;CONTRIBUTO REGIONALE ICD M E ICD Mgs - 3 TRIMESTRE 2021 luglio agosto settembre 2021;27/01/2022;3957;50;1183;1;Spese correnti;4;Trasferimenti correnti;2;Trasferimenti correnti a Famiglie;2;Interventi assistenziali;999;Altri assegni e sussidi assistenziali;01/02/2022
320;1;9999999;1.200,00;1.200,00;DATI IDENTIFICATIVI OMESSI EX ART.26 C.4 D.LGS.33/2013 - PRIVACY; ;CONTRIBUTO REGIONALE ICD M E ICD Mgs - 3 TRIMESTRE 2021 luglio agosto settembre 2021;27/01/2022;3957;50;1184;1;Spese correnti;4;Trasferimenti correnti;2;Trasferimenti correnti a Famiglie;2;Interventi assistenziali;999;Altri assegni e sussidi assistenziali;01/02/2022
321;1;9999999;1.200,00;1.200,00;DATI IDENTIFICATIVI OMESSI EX ART.26 C.4 D.LGS.33/2013 - PRIVACY; ;CONTRIBUTO REGIONALE ICD M E ICD Mgs - 3 TRIMESTRE 2021 luglio agosto settembre 2021;27/01/2022;3957;50;1185;1;Spese correnti;4;Trasferimenti correnti;2;Trasferimenti correnti a Famiglie;2;Interventi assistenziali;999;Altri assegni e sussidi assistenziali;01/02/2022
322;1;9999999;1.200,00;1.200,00;DATI IDENTIFICATIVI OMESSI EX ART.26 C.4 D.LGS.33/2013 - PRIVACY; ;CONTRIBUTO REGIONALE ICD M E ICD Mgs - 3 TRIMESTRE 2021 luglio agosto settembre 2021;27/01/2022;3957;50;1186;1;Spese correnti;4;Trasferimenti correnti;2;Trasferimenti correnti a Famiglie;2;Interventi assistenziali;999;Altri assegni e sussidi assistenziali;01/02/2022
323;1;9999999;1.200,00;1.200,00;DATI IDENTIFICATIVI OMESSI EX ART.26 C.4 D.LGS.33/2013 - PRIVACY; ;CONTRIBUTO REGIONALE ICD M E ICD Mgs - 3 TRIMESTRE 2021 luglio agosto settembre 2021;27/01/2022;3957;50;1187;1;Spese correnti;4;Trasferimenti correnti;2;Trasferimenti correnti a Famiglie;2;Interventi assistenziali;999;Altri assegni e sussidi assistenziali;01/02/2022
324;1;9999999;1.200,00;1.200,00;DATI IDENTIFICATIVI OMESSI EX ART.26 C.4 D.LGS.33/2013 - PRIVACY; ;CONTRIBUTO REGIONALE ICD M E ICD Mgs - 3 TRIMESTRE 2021 luglio agosto settembre 2021;27/01/2022;3957;50;1188;1;Spese correnti;4;Trasferimenti correnti;2;Trasferimenti correnti a Famiglie;2;Interventi assistenziali;999;Altri assegni e sussidi assistenziali;01/02/2022
325;1;9999999;1.200,00;1.200,00;DATI IDENTIFICATIVI OMESSI EX ART.26 C.4 D.LGS.33/2013 - PRIVACY; ;CONTRIBUTO REGIONALE ICD M E ICD Mgs - 3 TRIMESTRE 2021 luglio agosto settembre 2021;27/01/2022;3957;50;1190;1;Spese correnti;4;Trasferimenti correnti;2;Trasferimenti correnti a Famiglie;2;Interventi assistenziali;999;Altri assegni e sussidi assistenziali;01/02/2022
326;1;9999999;1.200,00;1.200,00;DATI IDENTIFICATIVI OMESSI EX ART.26 C.4 D.LGS.33/2013 - PRIVACY; ;CONTRIBUTO REGIONALE ICD M E ICD Mgs - 3 TRIMESTRE 2021 luglio agosto settembre 2021;27/01/2022;3957;50;1191;1;Spese correnti;4;Trasferimenti correnti;2;Trasferimenti correnti a Famiglie;2;Interventi assistenziali;999;Altri assegni e sussidi assistenziali;01/02/2022
327;1;9999999;1.200,00;1.200,00;DATI IDENTIFICATIVI OMESSI EX ART.26 C.4 D.LGS.33/2013 - PRIVACY; ;CONTRIBUTO REGIONALE ICD M E ICD Mgs - 3 TRIMESTRE 2021 luglio agosto settembre 2021;27/01/2022;3957;50;1192;1;Spese correnti;4;Trasferimenti correnti;2;Trasferimenti correnti a Famiglie;2;Interventi assistenziali;999;Altri assegni e sussidi assistenziali;01/02/2022
328;1;9999999;1.200,00;1.200,00;DATI IDENTIFICATIVI OMESSI EX ART.26 C.4 D.LGS.33/2013 - PRIVACY; ;CONTRIBUTO REGIONALE ICD M E ICD Mgs - 3 TRIMESTRE 2021 luglio agosto settembre 2021;27/01/2022;3957;50;1193;1;Spese correnti;4;Trasferimenti correnti;2;Trasferimenti correnti a Famiglie;2;Interventi assistenziali;999;Altri assegni e sussidi assistenziali;01/02/2022
329;1;9999999;1.200,00;1.200,00;DATI IDENTIFICATIVI OMESSI EX ART.26 C.4 D.LGS.33/2013 - PRIVACY; ;CONTRIBUTO REGIONALE ICD M E ICD Mgs - 3 TRIMESTRE 2021 luglio agosto settembre 2021;27/01/2022;3957;50;1194;1;Spese correnti;4;Trasferimenti correnti;2;Trasferimenti correnti a Famiglie;2;Interventi assistenziali;999;Altri assegni e sussidi assistenziali;01/02/2022
330;1;9999999;1.200,00;1.200,00;DATI IDENTIFICATIVI OMESSI EX ART.26 C.4 D.LGS.33/2013 - PRIVACY; ;CONTRIBUTO REGIONALE ICD M E ICD Mgs - 3 TRIMESTRE 2021 luglio agosto settembre 2021;27/01/2022;3957;50;1195;1;Spese correnti;4;Trasferimenti correnti;2;Trasferimenti correnti a Famiglie;2;Interventi assistenziali;999;Altri assegni e sussidi assistenziali;01/02/2022
331;1;9999999;1.200,00;1.200,00;DATI IDENTIFICATIVI OMESSI EX ART.26 C.4 D.LGS.33/2013 - PRIVACY; ;CONTRIBUTO REGIONALE ICD M E ICD Mgs - 3 TRIMESTRE 2021 luglio agosto settembre 2021;27/01/2022;3957;50;1196;1;Spese correnti;4;Trasferimenti correnti;2;Trasferimenti correnti a Famiglie;2;Interventi assistenziali;999;Altri assegni e sussidi assistenziali;01/02/2022
332;1;9999999;1.200,00;1.200,00;DATI IDENTIFICATIVI OMESSI EX ART.26 C.4 D.LGS.33/2013 - PRIVACY; ;CONTRIBUTO REGIONALE ICD M E ICD Mgs - 3 TRIMESTRE 2021 luglio agosto settembre 2021;27/01/2022;3957;50;1197;1;Spese correnti;4;Trasferimenti correnti;2;Trasferimenti correnti a Famiglie;2;Interventi assistenziali;999;Altri assegni e sussidi assistenziali;01/02/2022
333;1;9999999;1.200,00;1.200,00;DATI IDENTIFICATIVI OMESSI EX ART.26 C.4 D.LGS.33/2013 - PRIVACY; ;CONTRIBUTO REGIONALE ICD M E ICD Mgs - 3 TRIMESTRE 2021 luglio agosto settembre 2021;27/01/2022;3957;50;1198;1;Spese correnti;4;Trasferimenti correnti;2;Trasferimenti correnti a Famiglie;2;Interventi assistenziali;999;Altri assegni e sussidi assistenziali;01/02/2022
334;1;9999999;400;400;DATI IDENTIFICATIVI OMESSI EX ART.26 C.4 D.LGS.33/2013 - PRIVACY; ;CONTRIBUTO REGIONALE ICD M E ICD Mgs - 3 TRIMESTRE 2021 luglio agosto settembre 2021;27/01/2022;3957;50;1199;1;Spese correnti;4;Trasferimenti correnti;2;Trasferimenti correnti a Famiglie;2;Interventi assistenziali;999;Altri assegni e sussidi assistenziali;01/02/2022
335;1;9999999;318,49;318,49;DATI IDENTIFICATIVI OMESSI EX ART.26 C.4 D.LGS.33/2013 - PRIVACY; ;CONTRIBUTO REGIONALE ICD M E ICD Mgs - 3 TRIMESTRE 2021 luglio agosto settembre 2021;27/01/2022;3957;50;1200;1;Spese correnti;4;Trasferimenti correnti;2;Trasferimenti correnti a Famiglie;2;Interventi assistenziali;999;Altri assegni e sussidi assistenziali;01/02/2022
336;1;9999999;881,51;881,51;DATI IDENTIFICATIVI OMESSI EX ART.26 C.4 D.LGS.33/2013 - PRIVACY; ;CONTRIBUTO REGIONALE ICD M E ICD Mgs - 3 TRIMESTRE 2021 luglio agosto settembre 2021;27/01/2022;3957;50;1200;1;Spese correnti;4;Trasferimenti correnti;2;Trasferimenti correnti a Famiglie;2;Interventi assistenziali;999;Altri assegni e sussidi assistenziali;01/02/2022
337;1;9999999;1.200,00;1.200,00;DATI IDENTIFICATIVI OMESSI EX ART.26 C.4 D.LGS.33/2013 - PRIVACY; ;ACCERTAMENTO ENTRATA E IMPEGNO  DI SPESA CONTRIBUTO REGIONALE ICD M E ICD Mgs - 3 TRIMESTRE 2021;27/01/2022;3957;50;1201;1;Spese correnti;4;Trasferimenti correnti;2;Trasferimenti correnti a Famiglie;2;Interventi assistenziali;999;Altri assegni e sussidi assistenziali;01/02/2022
338;1;9999999;1.200,00;1.200,00;DATI IDENTIFICATIVI OMESSI EX ART.26 C.4 D.LGS.33/2013 - PRIVACY; ;CONTRIBUTO REGIONALE ICD M E ICD Mgs - 3 TRIMESTRE 2021 luglio agosto settembre 2021;27/01/2022;3957;50;1202;1;Spese correnti;4;Trasferimenti correnti;2;Trasferimenti correnti a Famiglie;2;Interventi assistenziali;999;Altri assegni e sussidi assistenziali;01/02/2022
339;1;9999999;1.200,00;1.200,00;DATI IDENTIFICATIVI OMESSI EX ART.26 C.4 D.LGS.33/2013 - PRIVACY; ;CONTRIBUTO REGIONALE ICD M E ICD Mgs - 3 TRIMESTRE 2021 luglio agosto settembre 2021;27/01/2022;3957;50;1203;1;Spese correnti;4;Trasferimenti correnti;2;Trasferimenti correnti a Famiglie;2;Interventi assistenziali;999;Altri assegni e sussidi assistenziali;01/02/2022
340;1;9999999;721,49;721,49;BORTOLATO SAS DI BORTOLATO ONORINO & C.;Z1532107D6;SALDO Fatt.n. 000010/PA  del 30/12/2021 PRODOTTI PER MANUTENZIONE VERDE;27/01/2022;521;0;578;1;Spese correnti;3;Acquisto di beni e servizi;1;Acquisto di beni;2;Altri beni di consumo;999;Altri beni e materiali di consumo n.a.c.;01/02/2022
341;1;9999999;1.272,37;1.272,37;MEB SRL;ZEB310D930;ACCONTO Fatt.n. 067037  del 30/12/2021 MATERIALE ELETTRICO PER MANUTENZIONI;27/01/2022;521;0;1082;1;Spese correnti;3;Acquisto di beni e servizi;1;Acquisto di beni;2;Altri beni di consumo;999;Altri beni e materiali di consumo n.a.c.;01/02/2022
342;1;9999999;2.535,06;2.535,06;AEC ILLUMINAZIONE SRL;Z1D34626BC;SALDO Fatt.n. 1000_VCI_21000414  del 31/12/2021 FORNITURA DI MATERIALE ELETTRICO PER LA MANUTENZIONE DEGLI IMPIANTI ELETTRICI COMUNALI;27/01/2022;522;0;1104;1;Spese correnti;3;Acquisto di beni e servizi;1;Acquisto di beni;2;Altri beni di consumo;999;Altri beni e materiali di consumo n.a.c.;01/02/2022
343;1;9999999;23,14;23,14;LIBRERIA KOALA DI MUNARO SANDRA; ;SALDO Fatt.n. 7/00  del 20/01/2022 FORNITURA LIBRI DI TESTO  PER SCUOLE  ELEMENTARI  A.S. 2021-2022;27/01/2022;1357;0;156;1;Spese correnti;4;Trasferimenti correnti;2;Trasferimenti correnti a Famiglie;5;Altri trasferimenti a famiglie;999;Altri trasferimenti a famiglie n.a.c.;01/02/2022
344;1;9999999;38,65;38,65;EPIU' SRL - COSTRUIRE INSIEME;Z4230934B4;SALDO Fatt.n. 34038  del 31/12/2021 MATERIALE EDILE PER MANUTENZIONI;27/01/2022;3538;0;167;1;Spese correnti;3;Acquisto di beni e servizi;2;Acquisto di servizi;9;Manutenzione ordinaria e riparazioni;8;Manutenzione ordinaria e riparazioni di beni immobili;01/02/2022
345;1;9999999;1.890,39;1.890,39;BORTOLATO SAS DI BORTOLATO ONORINO & C.;ZB73446DDA;SALDO Fatt.n. 000009/PA  del 30/12/2021 SALE SALGEMMA INDUST. STRADALE;27/01/2022;3538;0;1077;1;Spese correnti;3;Acquisto di beni e servizi;2;Acquisto di servizi;9;Manutenzione ordinaria e riparazioni;8;Manutenzione ordinaria e riparazioni di beni immobili;01/02/2022
346;1;9999999;1.528,86;1.528,86;BIASIBETTI MARCO;ZE433EFDF3;SALDO Fatt.n. FPA 1/22  del 04/01/2022 COORDINAMENTO DELLA SICUREZZA IN FASE DI PROGETTO  D.Lgs 81-08 PER LAVORI DI MANUTENZIONE STRAORDINARIA STRADE  NEL TERRITORIO COMUNALE;27/01/2022;8558;0;1033;2;Spese in conto capitale;2;Investimenti fissi lordi e acquisto di terreni;1;Beni materiali;9;Beni immobili;12;Infrastrutture stradali;01/02/2022
347;1;9999999;800;800;DATI IDENTIFICATIVI OMESSI EX ART.26 C.4 D.LGS.33/2013 - PRIVACY; ;CONTRIBUTO REGIONALE ICD M E ICD Mgs - 3 TRIMESTRE 2021;27/01/2022;3957;50;1189;1;Spese correnti;4;Trasferimenti correnti;2;Trasferimenti correnti a Famiglie;2;Interventi assistenziali;999;Altri assegni e sussidi assistenziali;01/02/2022
348;1;9999999;13.609,10;13.609,10;PINATO MARINO;ZF1343CEF6;SALDO Fatt.n. 1/FE  del 04/01/2022 LAVORI DI INTERVENTI DI MANUTENZIONE STRAORDINARIA SUI PLESSI SCOLASTICI VOLTI AL CONTRASTO DELLA DIFFUSIONE DEL CONTAGIO DA COVID 19 -;28/01/2022;7681;0;1019;2;Spese in conto capitale;2;Investimenti fissi lordi e acquisto di terreni;1;Beni materiali;9;Beni immobili;3;Fabbricati ad uso scolastico;03/02/2022
349;1;9999999;480;480;DATI IDENTIFICATIVI OMESSI EX ART.26 C.4 D.LGS.33/2013 - PRIVACY; ;CONTRIBUTO REGIONALE IMPEGNATIVA DI CURA DOMICILIARE - ICD B 1 SEMESTRE 2021 E ICD M 2 TRIMESTRE 2021. - BENEFICIARIO CARRARO SERGIO DECEDUTO;01/02/2022;3957;50;776;1;Spese correnti;4;Trasferimenti correnti;2;Trasferimenti correnti a Famiglie;2;Interventi assistenziali;999;Altri assegni e sussidi assistenziali;03/02/2022
350;1;9999999;720;720;DATI IDENTIFICATIVI OMESSI EX ART.26 C.4 D.LGS.33/2013 - PRIVACY; ;CONTRIBUTO REGIONALE IMPEGNATIVA DI CURA DOMICILIARE - ICD B 1 SEMESTRE 2021 E ICD M 2 TRIMESTRE 2021. - BENEFICIARIO PULLIERO LORETA DECEDUTA 25/6/21;01/02/2022;3957;50;809;1;Spese correnti;4;Trasferimenti correnti;2;Trasferimenti correnti a Famiglie;2;Interventi assistenziali;999;Altri assegni e sussidi assistenziali;03/02/2022
351;1;9999999;1.135,00;1.135,00;MAG SPA;Z0834C49AB;PAGAMENTO PREMIO POLIZZA ASSICURATIVA PER KASKO ANNO 2022;01/02/2022;993;0;51;1;Spese correnti;10;Altre spese correnti;4;Premi di assicurazione;99;Altri premi di assicurazione n.a.c.;999;Altri premi di assicurazione n.a.c.;03/02/2022
352;1;9999999;1.334,00;1.334,00;MAG SPA;ZB134C4B19;PAGAMENTO PREMIO POLIZZA ASSICURATIVA PER INFORTUNI ANNO 2022;01/02/2022;993;0;54;1;Spese correnti;10;Altre spese correnti;4;Premi di assicurazione;99;Altri premi di assicurazione n.a.c.;999;Altri premi di assicurazione n.a.c.;03/02/2022
353;1;9999999;5.379,00;5.379,00;MAG SPA;Z0F34C489D;PAGAMENTO PREMIO POLIZZA ASSICURATIVA PER RC PATRIMONIALE ANNO 2022;01/02/2022;992;0;56;1;Spese correnti;10;Altre spese correnti;4;Premi di assicurazione;1;Premi di assicurazione contro i danni;3;Premi di assicurazione per responsabilità civile verso terzi;03/02/2022
354;1;9999999;4.268,00;4.268,00;MAG SPA;Z0F34C4A93;PAGAMENTO PREMIO POLIZZA ASDSICURATIVA PER TUTELA LEGALE ANNO 2022;01/02/2022;993;0;55;1;Spese correnti;10;Altre spese correnti;4;Premi di assicurazione;99;Altri premi di assicurazione n.a.c.;999;Altri premi di assicurazione n.a.c.;03/02/2022
355;1;9999999;1.477,43;1.477,43;FASSIOLI GIANCARLO; ;RESTITUZIONE DEL CONTRIBUTO DI COSTRUZIONERELATIVO LA S.C.I.A. N. 11357 DEL 23.11.2021.;01/02/2022;8820;0;114;2;Spese in conto capitale;5;Altre spese in conto capitale;99;Altre spese in conto capitale n.a.c.;99;Altre spese in conto capitale n.a.c.;999;Altre spese in conto capitale n.a.c.;03/02/2022
356;1;9999999;396;396;DATI IDENTIFICATIVI OMESSI EX ART.26 C.4 D.LGS.33/2013 - PRIVACY; ;LIQUIDAZIONE AGEVOLAZIONI ECONOMICHE MENSA SCOLASTICA MINORI;01/02/2022;3757;0;1078;1;Spese correnti;4;Trasferimenti correnti;2;Trasferimenti correnti a Famiglie;5;Altri trasferimenti a famiglie;999;Altri trasferimenti a famiglie n.a.c.;03/02/2022
357;1;9999999;228;228;DATI IDENTIFICATIVI OMESSI EX ART.26 C.4 D.LGS.33/2013 - PRIVACY; ;LIQUIDAZIONE AGEVOLAZIONI ECONOMICHE MENSA SCOLASTICA MINORI;01/02/2022;3757;0;987;1;Spese correnti;4;Trasferimenti correnti;2;Trasferimenti correnti a Famiglie;5;Altri trasferimenti a famiglie;999;Altri trasferimenti a famiglie n.a.c.;03/02/2022
358;1;9999999;396;792;DATI IDENTIFICATIVI OMESSI EX ART.26 C.4 D.LGS.33/2013 - PRIVACY; ;LIQUIDAZIONE AGEVOLAZIONI ECONOMICHE MENSA SCOLASTICA MINORI;01/02/2022;3757;0;1077;1;Spese correnti;4;Trasferimenti correnti;2;Trasferimenti correnti a Famiglie;5;Altri trasferimenti a famiglie;999;Altri trasferimenti a famiglie n.a.c.;03/02/2022
358;2;9999999;396;792;DATI IDENTIFICATIVI OMESSI EX ART.26 C.4 D.LGS.33/2013 - PRIVACY; ;LIQUIDAZIONE AGEVOLAZIONI ECONOMICHE MENSA SCOLASTICA MINORI;01/02/2022;3757;0;1077;1;Spese correnti;4;Trasferimenti correnti;2;Trasferimenti correnti a Famiglie;5;Altri trasferimenti a famiglie;999;Altri trasferimenti a famiglie n.a.c.;03/02/2022
359;1;9999999;228;228;DATI IDENTIFICATIVI OMESSI EX ART.26 C.4 D.LGS.33/2013 - PRIVACY; ;LIQUIDAZIONE AGEVOLAZIONI ECONOMICHE MENSA SCOLASTICA MINORI;01/02/2022;3757;0;985;1;Spese correnti;4;Trasferimenti correnti;2;Trasferimenti correnti a Famiglie;5;Altri trasferimenti a famiglie;999;Altri trasferimenti a famiglie n.a.c.;03/02/2022
360;1;9999999;228;228;DATI IDENTIFICATIVI OMESSI EX ART.26 C.4 D.LGS.33/2013 - PRIVACY; ;LIQUIDAZIONE AGEVOLAZIONI ECONOMICHE MENSA SCOLASTICA MINORI;01/02/2022;3757;0;986;1;Spese correnti;4;Trasferimenti correnti;2;Trasferimenti correnti a Famiglie;5;Altri trasferimenti a famiglie;999;Altri trasferimenti a famiglie n.a.c.;03/02/2022
361;1;9999999;48;48;DATI IDENTIFICATIVI OMESSI EX ART.26 C.4 D.LGS.33/2013 - PRIVACY; ;LIQUIDAZIONE AGEVOLAZIONI ECONOMICHE MENSA SCOLASTICA MINORI;01/02/2022;3757;0;988;1;Spese correnti;4;Trasferimenti correnti;2;Trasferimenti correnti a Famiglie;5;Altri trasferimenti a famiglie;999;Altri trasferimenti a famiglie n.a.c.;03/02/2022
362;1;9999999;48;48;DATI IDENTIFICATIVI OMESSI EX ART.26 C.4 D.LGS.33/2013 - PRIVACY; ;LIQUIDAZIONE AGEVOLAZIONI ECONOMICHE MENSA SCOLASTICA MINORI;01/02/2022;3757;0;989;1;Spese correnti;4;Trasferimenti correnti;2;Trasferimenti correnti a Famiglie;5;Altri trasferimenti a famiglie;999;Altri trasferimenti a famiglie n.a.c.;03/02/2022
363;1;9999999;228;228;DATI IDENTIFICATIVI OMESSI EX ART.26 C.4 D.LGS.33/2013 - PRIVACY; ;LIQUIDAZIONE AGEVOLAZIONI ECONOMICHE MENSA SCOLASTICA MINORI;01/02/2022;3757;0;990;1;Spese correnti;4;Trasferimenti correnti;2;Trasferimenti correnti a Famiglie;5;Altri trasferimenti a famiglie;999;Altri trasferimenti a famiglie n.a.c.;03/02/2022
364;1;9999999;110;110;DATI IDENTIFICATIVI OMESSI EX ART.26 C.4 D.LGS.33/2013 - PRIVACY; ;LIQUIDAZIONE AGEVOLAZIONI ECONOMICHE TRASPORTO  SCOLASTICO MINORI;01/02/2022;3757;0;983;1;Spese correnti;4;Trasferimenti correnti;2;Trasferimenti correnti a Famiglie;5;Altri trasferimenti a famiglie;999;Altri trasferimenti a famiglie n.a.c.;03/02/2022
365;1;9999999;1.909,60;1.909,60;INFOCLIP SRL;Z9534D417E;SALDO Fatt.n. FVL98  del 27/01/2022 ATTIVA E GESTIONE ABBONAMENTI E RIVISTE ANNO 2022;01/02/2022;1820;0;71;1;Spese correnti;3;Acquisto di beni e servizi;1;Acquisto di beni;1;Giornali, riviste e pubblicazioni;1;Giornali e riviste;03/02/2022
366;1;9999999;258,95;258,95;COMUNE DI S.MARIA DI SALA; ;CONTRIBUTO IFEL RISCOSSIONE IMU RENDICONTO AL 01/02/2022;01/02/2022;332;0;0;1;Spese correnti;3;Acquisto di beni e servizi;2;Acquisto di servizi;3;Aggi di riscossione;999;Altri aggi di riscossione n.a.c.;04/02/2022
367;1;9999999;370;370;PUBLIKA SRL;Z3234C4066;SALDO Fatt.n. 82/PA  del 18/01/2022 ABBONAMENTO RIVISTA PERSONALE - PACCHETTO COMPLETO NEWS ANNO 2022;02/02/2022;120;0;33;1;Spese correnti;3;Acquisto di beni e servizi;1;Acquisto di beni;1;Giornali, riviste e pubblicazioni;1;Giornali e riviste;04/02/2022
368;1;9999999;3.235,87;3.235,87;COOP.SOCIALE LIBERTA' ONLUS;Z05313C21F;SALDO Fatt.n. 1078  del 31/12/2021 DICEMBRE 2021 - SERVIZIO DI PULIZIA E SANIFICAZIONE UFFICI COMUNALI;02/02/2022;142;0;358;1;Spese correnti;3;Acquisto di beni e servizi;2;Acquisto di servizi;13;Servizi ausiliari per il funzionamento dell'ente;2;Servizi di pulizia e lavanderia;04/02/2022
369;1;9999999;3.087,80;3.087,80;FALEGNAMERIA DAL CORSO SNC;ZA63442794;ACCONTO Fatt.n. 1  del 11/01/2022  LAVORI PER OPERE DI FALEGNAMERIA SU FABBRICATI COMUNALI;02/02/2022;548;0;1071;1;Spese correnti;3;Acquisto di beni e servizi;2;Acquisto di servizi;9;Manutenzione ordinaria e riparazioni;8;Manutenzione ordinaria e riparazioni di beni immobili;04/02/2022
370;1;9999999;1.000,00;1.000,00;FALEGNAMERIA DAL CORSO SNC;ZA63442794;ACCONTO Fatt.n. 1  del 11/01/2022  LAVORI PER OPERE DI FALEGNAMERIA SU FABBRICATI COMUNALI;02/02/2022;1338;0;1072;1;Spese correnti;3;Acquisto di beni e servizi;2;Acquisto di servizi;9;Manutenzione ordinaria e riparazioni;8;Manutenzione ordinaria e riparazioni di beni immobili;04/02/2022
371;1;9999999;2.000,00;2.000,00;FALEGNAMERIA DAL CORSO SNC;ZA63442794;SALDO Fatt.n. 1  del 11/01/2022  LAVORI PER OPERE DI FALEGNAMERIA SU FABBRICATI COMUNALI;02/02/2022;1938;0;1073;1;Spese correnti;3;Acquisto di beni e servizi;2;Acquisto di servizi;9;Manutenzione ordinaria e riparazioni;8;Manutenzione ordinaria e riparazioni di beni immobili;04/02/2022
372;1;9999999;126,74;126,74;BALDAN ARTURO; ;SALDO Fatt.n. 1A  del 11/01/2022 COMPETENZE A SALDO PER INDENNITA' DI PRESENZA QUALE COMPONENTE DELLA COMMISSIONE PER IL PAESAGGIO ANNO 2021;02/02/2022;2430;0;153;1;Spese correnti;3;Acquisto di beni e servizi;2;Acquisto di servizi;1;Organi e incarichi istituzionali dell'amministrazione;1;Organi istituzionali dell'amministrazione - Indennità;04/02/2022
373;1;9999999;152,18;152,18;MARTIGNON MASSIMILIANO; ;SALDO Fatt.n. FPA 1/22  del 14/01/2022 INDENNITA DI PRESENZA QUALE ESPERTO COMMISSIONE PER IL PAESAGGIO 2021;02/02/2022;2430;0;154;1;Spese correnti;3;Acquisto di beni e servizi;2;Acquisto di servizi;1;Organi e incarichi istituzionali dell'amministrazione;1;Organi istituzionali dell'amministrazione - Indennità;04/02/2022
374;1;9999999;338,31;29.656,07;SOC. SOCIOCULTURALE COOP. SOCIALE;80171200B8;SALDO Fatt.n. 104 PAS  del 03/01/2022 INTEGRAZIONE PER ADEGUAMENTO ISTAT AGOSTO 2021  - ASSISTENZA DOMICILIARE E TRASPORTO;02/02/2022;3944;0;975;1;Spese correnti;3;Acquisto di beni e servizi;2;Acquisto di servizi;15;Contratti di servizio pubblico;9;Contratti di servizio di assistenza sociale domiciliare;04/02/2022
374;2;9999999;14.207,29;29.656,07;SOC. SOCIOCULTURALE COOP. SOCIALE;80171200B8;SALDO Fatt.n. 103 PAS  del 03/01/2022 MESE DI SETTEMBRE  2021 - ASSISTENZA DOMICILIARE E TRASPORTO + INTEGRAZIONE PER ADEGUAMENTO ISTAT LUGLIO 2021;02/02/2022;3944;0;975;1;Spese correnti;3;Acquisto di beni e servizi;2;Acquisto di servizi;15;Contratti di servizio pubblico;9;Contratti di servizio di assistenza sociale domiciliare;04/02/2022
374;3;9999999;15.110,47;29.656,07;SOC. SOCIOCULTURALE COOP. SOCIALE;80171200B8;SALDO Fatt.n. 105 PAS  del 03/01/2022 MESE DI OTTOBRE  2021 - ASSISTENZA DOMICILIARE E TRASPORTO;02/02/2022;3944;0;975;1;Spese correnti;3;Acquisto di beni e servizi;2;Acquisto di servizi;15;Contratti di servizio pubblico;9;Contratti di servizio di assistenza sociale domiciliare;04/02/2022
375;1;9999999;87,34;87,34;ENI SPA DIVISIONE REFINING & MARKETING;ZA2305CE6E;ACCONTO Fatt.n. 30475712  del 31/12/2021 DICEMBRE 2021 - FORNITURA METANO;02/02/2022;4121;0;57;1;Spese correnti;3;Acquisto di beni e servizi;1;Acquisto di beni;2;Altri beni di consumo;2;Carburanti, combustibili e lubrificanti;03/02/2022
376;1;9999999;14,15;14,15;ENI SPA DIVISIONE REFINING & MARKETING;ZA2305CE6E;SALDO Fatt.n. 30475712  del 31/12/2021 DICEMBRE 2021 - FORNITURA METANO;02/02/2022;4121;0;57;1;Spese correnti;3;Acquisto di beni e servizi;1;Acquisto di beni;2;Altri beni di consumo;2;Carburanti, combustibili e lubrificanti;04/02/2022
377;1;9999999;15,09;15,09;ABACO S.P.A.;5325258DE8;SALDO Fatt.n. 2022140000174  del 10/01/2022 AGGIO INCASSI ICI IMU LOTTO 2 - DET AFFIDAMENTO 556 DEL 30/11/2015 RENDICONTO DELLA GESTIONE DAL 01/12/2021 A 31/12/2021 CIG5325258DE8;02/02/2022;332;0;671;1;Spese correnti;3;Acquisto di beni e servizi;2;Acquisto di servizi;3;Aggi di riscossione;999;Altri aggi di riscossione n.a.c.;04/02/2022
378;1;9999999;140,3;140,3;VEDETTA 2 MONDIALPOL SPA;ZD032B120B;SALDO Fatt.n. VZ-2126  del 12/01/2022 DICEMBRE 2021 SERVIZIO DI VIGILANZA MAGAZZINO - PROTEZIONE CIVILE VIALE FERRARIS - VILLA FARSETTI;02/02/2022;548;0;688;1;Spese correnti;3;Acquisto di beni e servizi;2;Acquisto di servizi;9;Manutenzione ordinaria e riparazioni;8;Manutenzione ordinaria e riparazioni di beni immobili;04/02/2022
379;1;9999999;150;150;DATI IDENTIFICATIVI OMESSI EX ART.26 C.4 D.LGS.33/2013 - PRIVACY; ;FEBBRAIO 2022 AFFIDO FAMILIARE;02/02/2022;3757;50;282;1;Spese correnti;4;Trasferimenti correnti;2;Trasferimenti correnti a Famiglie;2;Interventi assistenziali;999;Altri assegni e sussidi assistenziali;04/02/2022
380;1;9999999;100;100;DATI IDENTIFICATIVI OMESSI EX ART.26 C.4 D.LGS.33/2013 - PRIVACY; ;BORSE DI STUDIO A STUDENTI DELLA SCUOLA SUPERIORE DI I E II GRADO E CFP - ANNO SCOLASTICO 2020/2021.;03/02/2022;1355;0;72;1;Spese correnti;4;Trasferimenti correnti;2;Trasferimenti correnti a Famiglie;5;Altri trasferimenti a famiglie;999;Altri trasferimenti a famiglie n.a.c.;07/02/2022
381;1;9999999;100;100;DATI IDENTIFICATIVI OMESSI EX ART.26 C.4 D.LGS.33/2013 - PRIVACY; ;BORSE DI STUDIO A STUDENTI DELLA SCUOLA SUPERIORE DI I E II GRADO E CFP - ANNO SCOLASTICO 2020/2021.;03/02/2022;1355;0;73;1;Spese correnti;4;Trasferimenti correnti;2;Trasferimenti correnti a Famiglie;5;Altri trasferimenti a famiglie;999;Altri trasferimenti a famiglie n.a.c.;07/02/2022
382;1;9999999;100;100;DATI IDENTIFICATIVI OMESSI EX ART.26 C.4 D.LGS.33/2013 - PRIVACY; ;BORSE DI STUDIO A STUDENTI DELLA SCUOLA SUPERIORE DI I E II GRADO E CFP - ANNO SCOLASTICO 2020/2021.;03/02/2022;1355;0;74;1;Spese correnti;4;Trasferimenti correnti;2;Trasferimenti correnti a Famiglie;5;Altri trasferimenti a famiglie;999;Altri trasferimenti a famiglie n.a.c.;07/02/2022
383;1;9999999;100;100;DATI IDENTIFICATIVI OMESSI EX ART.26 C.4 D.LGS.33/2013 - PRIVACY; ;BORSE DI STUDIO A STUDENTI DELLA SCUOLA SUPERIORE DI I E II GRADO E CFP - ANNO SCOLASTICO 2020/2021.;03/02/2022;1355;0;75;1;Spese correnti;4;Trasferimenti correnti;2;Trasferimenti correnti a Famiglie;5;Altri trasferimenti a famiglie;999;Altri trasferimenti a famiglie n.a.c.;07/02/2022
384;1;9999999;100;100;DATI IDENTIFICATIVI OMESSI EX ART.26 C.4 D.LGS.33/2013 - PRIVACY; ;BORSE DI STUDIO A STUDENTI DELLA SCUOLA SUPERIORE DI I E II GRADO E CFP - ANNO SCOLASTICO 2020/2021.;03/02/2022;1355;0;76;1;Spese correnti;4;Trasferimenti correnti;2;Trasferimenti correnti a Famiglie;5;Altri trasferimenti a famiglie;999;Altri trasferimenti a famiglie n.a.c.;07/02/2022
385;1;9999999;100;100;DATI IDENTIFICATIVI OMESSI EX ART.26 C.4 D.LGS.33/2013 - PRIVACY; ;BORSE DI STUDIO A STUDENTI DELLA SCUOLA SUPERIORE DI I E II GRADO E CFP - ANNO SCOLASTICO 2020/2021.;03/02/2022;1355;0;77;1;Spese correnti;4;Trasferimenti correnti;2;Trasferimenti correnti a Famiglie;5;Altri trasferimenti a famiglie;999;Altri trasferimenti a famiglie n.a.c.;07/02/2022
386;1;9999999;100;100;DATI IDENTIFICATIVI OMESSI EX ART.26 C.4 D.LGS.33/2013 - PRIVACY; ;BORSE DI STUDIO A STUDENTI DELLA SCUOLA SUPERIORE DI I E II GRADO E CFP - ANNO SCOLASTICO 2020/2021.;03/02/2022;1355;0;78;1;Spese correnti;4;Trasferimenti correnti;2;Trasferimenti correnti a Famiglie;5;Altri trasferimenti a famiglie;999;Altri trasferimenti a famiglie n.a.c.;07/02/2022
387;1;9999999;100;100;DATI IDENTIFICATIVI OMESSI EX ART.26 C.4 D.LGS.33/2013 - PRIVACY; ;BORSE DI STUDIO A STUDENTI DELLA SCUOLA SUPERIORE DI I E II GRADO E CFP - ANNO SCOLASTICO 2020/2021.;03/02/2022;1355;0;79;1;Spese correnti;4;Trasferimenti correnti;2;Trasferimenti correnti a Famiglie;5;Altri trasferimenti a famiglie;999;Altri trasferimenti a famiglie n.a.c.;07/02/2022
388;1;9999999;100;100;DATI IDENTIFICATIVI OMESSI EX ART.26 C.4 D.LGS.33/2013 - PRIVACY; ;BORSE DI STUDIO A STUDENTI DELLA SCUOLA SUPERIORE DI I E II GRADO E CFP - ANNO SCOLASTICO 2020/2021.;03/02/2022;1355;0;80;1;Spese correnti;4;Trasferimenti correnti;2;Trasferimenti correnti a Famiglie;5;Altri trasferimenti a famiglie;999;Altri trasferimenti a famiglie n.a.c.;07/02/2022
389;1;9999999;100;100;DATI IDENTIFICATIVI OMESSI EX ART.26 C.4 D.LGS.33/2013 - PRIVACY; ;BORSE DI STUDIO A STUDENTI DELLA SCUOLA SUPERIORE DI I E II GRADO E CFP - ANNO SCOLASTICO 2020/2021.;03/02/2022;1355;0;81;1;Spese correnti;4;Trasferimenti correnti;2;Trasferimenti correnti a Famiglie;5;Altri trasferimenti a famiglie;999;Altri trasferimenti a famiglie n.a.c.;07/02/2022
390;1;9999999;100;100;DATI IDENTIFICATIVI OMESSI EX ART.26 C.4 D.LGS.33/2013 - PRIVACY; ;BORSE DI STUDIO A STUDENTI DELLA SCUOLA SUPERIORE DI I E II GRADO E CFP - ANNO SCOLASTICO 2020/2021.;03/02/2022;1355;0;82;1;Spese correnti;4;Trasferimenti correnti;2;Trasferimenti correnti a Famiglie;5;Altri trasferimenti a famiglie;999;Altri trasferimenti a famiglie n.a.c.;07/02/2022
391;1;9999999;100;100;DATI IDENTIFICATIVI OMESSI EX ART.26 C.4 D.LGS.33/2013 - PRIVACY; ;BORSE DI STUDIO A STUDENTI DELLA SCUOLA SUPERIORE DI I E II GRADO E CFP - ANNO SCOLASTICO 2020/2021;03/02/2022;1355;0;83;1;Spese correnti;4;Trasferimenti correnti;2;Trasferimenti correnti a Famiglie;5;Altri trasferimenti a famiglie;999;Altri trasferimenti a famiglie n.a.c.;15/02/2022
392;1;9999999;100;100;DATI IDENTIFICATIVI OMESSI EX ART.26 C.4 D.LGS.33/2013 - PRIVACY; ;BORSE DI STUDIO A STUDENTI DELLA SCUOLA SUPERIORE DI I E II GRADO E CFP - ANNO SCOLASTICO 2020/2021.;03/02/2022;1355;0;84;1;Spese correnti;4;Trasferimenti correnti;2;Trasferimenti correnti a Famiglie;5;Altri trasferimenti a famiglie;999;Altri trasferimenti a famiglie n.a.c.;07/02/2022
393;1;9999999;100;100;DATI IDENTIFICATIVI OMESSI EX ART.26 C.4 D.LGS.33/2013 - PRIVACY; ;BORSE DI STUDIO A STUDENTI DELLA SCUOLA SUPERIORE DI I E II GRADO E CFP - ANNO SCOLASTICO 2020/2021.;03/02/2022;1355;0;85;1;Spese correnti;4;Trasferimenti correnti;2;Trasferimenti correnti a Famiglie;5;Altri trasferimenti a famiglie;999;Altri trasferimenti a famiglie n.a.c.;07/02/2022
394;1;9999999;100;100;DATI IDENTIFICATIVI OMESSI EX ART.26 C.4 D.LGS.33/2013 - PRIVACY; ;BORSE DI STUDIO A STUDENTI DELLA SCUOLA SUPERIORE DI I E II GRADO E CFP - ANNO SCOLASTICO 2020/2021.;03/02/2022;1355;0;86;1;Spese correnti;4;Trasferimenti correnti;2;Trasferimenti correnti a Famiglie;5;Altri trasferimenti a famiglie;999;Altri trasferimenti a famiglie n.a.c.;07/02/2022
395;1;9999999;100;100;DATI IDENTIFICATIVI OMESSI EX ART.26 C.4 D.LGS.33/2013 - PRIVACY; ;BORSE DI STUDIO A STUDENTI DELLA SCUOLA SUPERIORE DI I E II GRADO E CFP - ANNO SCOLASTICO 2020/2021.;03/02/2022;1355;0;87;1;Spese correnti;4;Trasferimenti correnti;2;Trasferimenti correnti a Famiglie;5;Altri trasferimenti a famiglie;999;Altri trasferimenti a famiglie n.a.c.;07/02/2022
396;1;9999999;100;100;DATI IDENTIFICATIVI OMESSI EX ART.26 C.4 D.LGS.33/2013 - PRIVACY; ;BORSE DI STUDIO A STUDENTI DELLA SCUOLA SUPERIORE DI I E II GRADO E CFP - ANNO SCOLASTICO 2020/2021.;03/02/2022;1355;0;88;1;Spese correnti;4;Trasferimenti correnti;2;Trasferimenti correnti a Famiglie;5;Altri trasferimenti a famiglie;999;Altri trasferimenti a famiglie n.a.c.;07/02/2022
397;1;9999999;100;100;DATI IDENTIFICATIVI OMESSI EX ART.26 C.4 D.LGS.33/2013 - PRIVACY; ;BORSE DI STUDIO A STUDENTI DELLA SCUOLA SUPERIORE DI I E II GRADO E CFP - ANNO SCOLASTICO 2020/2021.;03/02/2022;1355;0;89;1;Spese correnti;4;Trasferimenti correnti;2;Trasferimenti correnti a Famiglie;5;Altri trasferimenti a famiglie;999;Altri trasferimenti a famiglie n.a.c.;07/02/2022
398;1;9999999;100;100;DATI IDENTIFICATIVI OMESSI EX ART.26 C.4 D.LGS.33/2013 - PRIVACY; ;BORSE DI STUDIO A STUDENTI DELLA SCUOLA SUPERIORE DI I E II GRADO E CFP - ANNO SCOLASTICO 2020/2021.;03/02/2022;1355;0;90;1;Spese correnti;4;Trasferimenti correnti;2;Trasferimenti correnti a Famiglie;5;Altri trasferimenti a famiglie;999;Altri trasferimenti a famiglie n.a.c.;07/02/2022
399;1;9999999;100;100;DATI IDENTIFICATIVI OMESSI EX ART.26 C.4 D.LGS.33/2013 - PRIVACY; ;BORSE DI STUDIO A STUDENTI DELLA SCUOLA SUPERIORE DI I E II GRADO E CFP - ANNO SCOLASTICO 2020/2021.;03/02/2022;1355;0;91;1;Spese correnti;4;Trasferimenti correnti;2;Trasferimenti correnti a Famiglie;5;Altri trasferimenti a famiglie;999;Altri trasferimenti a famiglie n.a.c.;07/02/2022
400;1;9999999;100;100;DATI IDENTIFICATIVI OMESSI EX ART.26 C.4 D.LGS.33/2013 - PRIVACY; ;BORSE DI STUDIO A STUDENTI DELLA SCUOLA SUPERIORE DI I E II GRADO E CFP - ANNO SCOLASTICO 2020/2021.;03/02/2022;1355;0;92;1;Spese correnti;4;Trasferimenti correnti;2;Trasferimenti correnti a Famiglie;5;Altri trasferimenti a famiglie;999;Altri trasferimenti a famiglie n.a.c.;07/02/2022
401;1;9999999;100;100;DATI IDENTIFICATIVI OMESSI EX ART.26 C.4 D.LGS.33/2013 - PRIVACY; ;BORSE DI STUDIO A STUDENTI DELLA SCUOLA SUPERIORE DI I E II GRADO E CFP - ANNO SCOLASTICO 2020/2021.;03/02/2022;1355;0;93;1;Spese correnti;4;Trasferimenti correnti;2;Trasferimenti correnti a Famiglie;5;Altri trasferimenti a famiglie;999;Altri trasferimenti a famiglie n.a.c.;07/02/2022
402;1;9999999;100;100;DATI IDENTIFICATIVI OMESSI EX ART.26 C.4 D.LGS.33/2013 - PRIVACY; ;BORSE DI STUDIO A STUDENTI DELLA SCUOLA SUPERIORE DI I E II GRADO E CFP - ANNO SCOLASTICO 2020/2021.;03/02/2022;1355;0;94;1;Spese correnti;4;Trasferimenti correnti;2;Trasferimenti correnti a Famiglie;5;Altri trasferimenti a famiglie;999;Altri trasferimenti a famiglie n.a.c.;07/02/2022
403;1;9999999;100;100;DATI IDENTIFICATIVI OMESSI EX ART.26 C.4 D.LGS.33/2013 - PRIVACY; ;BORSE DI STUDIO A STUDENTI DELLA SCUOLA SUPERIORE DI I E II GRADO E CFP - ANNO SCOLASTICO 2020/2021.;03/02/2022;1355;0;96;1;Spese correnti;4;Trasferimenti correnti;2;Trasferimenti correnti a Famiglie;5;Altri trasferimenti a famiglie;999;Altri trasferimenti a famiglie n.a.c.;07/02/2022
404;1;9999999;100;100;DATI IDENTIFICATIVI OMESSI EX ART.26 C.4 D.LGS.33/2013 - PRIVACY; ;BORSE DI STUDIO A STUDENTI DELLA SCUOLA SUPERIORE DI I E II GRADO E CFP - ANNO SCOLASTICO 2020/2021.;03/02/2022;1355;0;95;1;Spese correnti;4;Trasferimenti correnti;2;Trasferimenti correnti a Famiglie;5;Altri trasferimenti a famiglie;999;Altri trasferimenti a famiglie n.a.c.;07/02/2022
405;1;9999999;100;100;DATI IDENTIFICATIVI OMESSI EX ART.26 C.4 D.LGS.33/2013 - PRIVACY; ;BORSE DI STUDIO A STUDENTI DELLA SCUOLA SUPERIORE DI I E II GRADO E CFP - ANNO SCOLASTICO 2020/2021.;03/02/2022;1355;0;107;1;Spese correnti;4;Trasferimenti correnti;2;Trasferimenti correnti a Famiglie;5;Altri trasferimenti a famiglie;999;Altri trasferimenti a famiglie n.a.c.;07/02/2022
406;1;9999999;100;100;DATI IDENTIFICATIVI OMESSI EX ART.26 C.4 D.LGS.33/2013 - PRIVACY; ;BORSE DI STUDIO A STUDENTI DELLA SCUOLA SUPERIORE DI I E II GRADO E CFP - ANNO SCOLASTICO 2020/2021.;03/02/2022;1355;0;97;1;Spese correnti;4;Trasferimenti correnti;2;Trasferimenti correnti a Famiglie;5;Altri trasferimenti a famiglie;999;Altri trasferimenti a famiglie n.a.c.;07/02/2022
407;1;9999999;150;150;DATI IDENTIFICATIVI OMESSI EX ART.26 C.4 D.LGS.33/2013 - PRIVACY; ;BORSE DI STUDIO A STUDENTI DELLA SCUOLA SUPERIORE DI I E II GRADO E CFP - ANNO SCOLASTICO 2020/2021.;03/02/2022;1355;0;98;1;Spese correnti;4;Trasferimenti correnti;2;Trasferimenti correnti a Famiglie;5;Altri trasferimenti a famiglie;999;Altri trasferimenti a famiglie n.a.c.;07/02/2022
408;1;9999999;150;150;DATI IDENTIFICATIVI OMESSI EX ART.26 C.4 D.LGS.33/2013 - PRIVACY; ;BORSE DI STUDIO A STUDENTI DELLA SCUOLA SUPERIORE DI I E II GRADO E CFP - ANNO SCOLASTICO 2020/2021.;03/02/2022;1355;0;99;1;Spese correnti;4;Trasferimenti correnti;2;Trasferimenti correnti a Famiglie;5;Altri trasferimenti a famiglie;999;Altri trasferimenti a famiglie n.a.c.;07/02/2022
409;1;9999999;150;150;DATI IDENTIFICATIVI OMESSI EX ART.26 C.4 D.LGS.33/2013 - PRIVACY; ;BORSE DI STUDIO A STUDENTI DELLA SCUOLA SUPERIORE DI I E II GRADO E CFP - ANNO SCOLASTICO 2020/2021.;03/02/2022;1355;0;100;1;Spese correnti;4;Trasferimenti correnti;2;Trasferimenti correnti a Famiglie;5;Altri trasferimenti a famiglie;999;Altri trasferimenti a famiglie n.a.c.;07/02/2022
410;1;9999999;150;150;DATI IDENTIFICATIVI OMESSI EX ART.26 C.4 D.LGS.33/2013 - PRIVACY; ;BORSE DI STUDIO A STUDENTI DELLA SCUOLA SUPERIORE DI I E II GRADO E CFP - ANNO SCOLASTICO 2020/2021.;03/02/2022;1355;0;101;1;Spese correnti;4;Trasferimenti correnti;2;Trasferimenti correnti a Famiglie;5;Altri trasferimenti a famiglie;999;Altri trasferimenti a famiglie n.a.c.;07/02/2022
411;1;9999999;150;150;DATI IDENTIFICATIVI OMESSI EX ART.26 C.4 D.LGS.33/2013 - PRIVACY; ;BORSE DI STUDIO A STUDENTI DELLA SCUOLA SUPERIORE DI I E II GRADO E CFP - ANNO SCOLASTICO 2020/2021.;03/02/2022;1355;0;102;1;Spese correnti;4;Trasferimenti correnti;2;Trasferimenti correnti a Famiglie;5;Altri trasferimenti a famiglie;999;Altri trasferimenti a famiglie n.a.c.;07/02/2022
412;1;9999999;150;150;DATI IDENTIFICATIVI OMESSI EX ART.26 C.4 D.LGS.33/2013 - PRIVACY; ;BORSE DI STUDIO A STUDENTI DELLA SCUOLA SUPERIORE DI I E II GRADO E CFP - ANNO SCOLASTICO 2020/2021.;03/02/2022;1355;0;103;1;Spese correnti;4;Trasferimenti correnti;2;Trasferimenti correnti a Famiglie;5;Altri trasferimenti a famiglie;999;Altri trasferimenti a famiglie n.a.c.;07/02/2022
413;1;9999999;150;150;DATI IDENTIFICATIVI OMESSI EX ART.26 C.4 D.LGS.33/2013 - PRIVACY; ;BORSE DI STUDIO A STUDENTI DELLA SCUOLA SUPERIORE DI I E II GRADO E CFP - ANNO SCOLASTICO 2020/2021.;03/02/2022;1355;0;104;1;Spese correnti;4;Trasferimenti correnti;2;Trasferimenti correnti a Famiglie;5;Altri trasferimenti a famiglie;999;Altri trasferimenti a famiglie n.a.c.;07/02/2022
414;1;9999999;150;150;DATI IDENTIFICATIVI OMESSI EX ART.26 C.4 D.LGS.33/2013 - PRIVACY; ;BORSE DI STUDIO A STUDENTI DELLA SCUOLA SUPERIORE DI I E II GRADO E CFP - ANNO SCOLASTICO 2020/2021.;03/02/2022;1355;0;105;1;Spese correnti;4;Trasferimenti correnti;2;Trasferimenti correnti a Famiglie;5;Altri trasferimenti a famiglie;999;Altri trasferimenti a famiglie n.a.c.;07/02/2022
415;1;9999999;150;150;DATI IDENTIFICATIVI OMESSI EX ART.26 C.4 D.LGS.33/2013 - PRIVACY; ;BORSE DI STUDIO A STUDENTI DELLA SCUOLA SUPERIORE DI I E II GRADO E CFP - ANNO SCOLASTICO 2020/2021.;03/02/2022;1355;0;106;1;Spese correnti;4;Trasferimenti correnti;2;Trasferimenti correnti a Famiglie;5;Altri trasferimenti a famiglie;999;Altri trasferimenti a famiglie n.a.c.;07/02/2022
416;1;9999999;1,36;1,36;MEB SRL;ZEB310D930;SALDO Fatt.n. 067037  del 30/12/2021 MATERIALE ELETTRICO PER MANUTENZIONI;04/02/2022;1938;0;407;1;Spese correnti;3;Acquisto di beni e servizi;2;Acquisto di servizi;9;Manutenzione ordinaria e riparazioni;4;Manutenzione ordinaria e riparazioni di impianti e macchinari;08/02/2022
417;1;9999999;14.762,00;14.762,00;SIMIONATO F.LLI S.R.L.; ;SALDO Fatt.n. 1/AP  del 25/01/2022 ACCONTO 80 PER CENTO PER INDENNITA DI ESPROPRIO PER LA REALIZZAZIONE DELLA PISTA CICLO-PEDONALE LUNGO LA S.R. 515  TRATTO TRE PONTI VIA R. SANZIO - VIA VERONESE;04/02/2022;8563;0;1362;2;Spese in conto capitale;2;Investimenti fissi lordi e acquisto di terreni;1;Beni materiali;9;Beni immobili;12;Infrastrutture stradali;08/02/2022
418;1;9999999;1.660,03;1.660,03;LE 5 STELLE S.N.C DI ZORZATO ANNIBALE & C.; ;SALDO Fatt.n. FPA 3/22  del 25/01/2022 ACCONTO 80 PER CENTO PER INDENNITA DI ESPROPRIO PER LA REALIZZAZIONE DELLA PISTA CICLO-PEDONALE LUNGO LA S.R. 515  TRATTO TRE PONTI VIA R. SANZIO - VIA VERONESE;04/02/2022;8563;0;1362;2;Spese in conto capitale;2;Investimenti fissi lordi e acquisto di terreni;1;Beni materiali;9;Beni immobili;12;Infrastrutture stradali;08/02/2022
419;1;9999999;319,4;319,4;LE 5 STELLE S.N.C DI ZORZATO ANNIBALE & C.; ;SALDO Fatt.n. FPA 2/22  del 25/01/2022 ACCONTO 80 PER CENTO PER INDENNITA DI ESPROPRIO PER LA REALIZZAZIONE DELLA PISTA CICLO-PEDONALE LUNGO LA S.R. 515  TRATTO TRE PONTI VIA R. SANZIO - VIA VERONESE;04/02/2022;8563;0;1362;2;Spese in conto capitale;2;Investimenti fissi lordi e acquisto di terreni;1;Beni materiali;9;Beni immobili;12;Infrastrutture stradali;08/02/2022
420;1;9999999;5,5;5,5;INFOCERT SPA; ;SALDO Fatt.n. 1214674757  del 31/12/2021 RINNOVO CERTIFICATO FIRMA DIGITALE SINDACO;04/02/2022;748;0;0;1;Spese correnti;3;Acquisto di beni e servizi;2;Acquisto di servizi;19;Servizi informatici e di telecomunicazioni;999;Altri servizi informatici e di telecomunicazioni n.a.c.;10/02/2022
421;1;9999999;8,39;413,3;ENEL ENERGIA SPA;8426072694;SALDO Fatt.n. 004190104536  del 09/01/2022 DICEMBRE 2021 - CONSUMI ILLUMINAZIONE PUBBLICA;07/02/2022;134;31;111;1;Spese correnti;3;Acquisto di beni e servizi;2;Acquisto di servizi;5;Utenze e canoni;4;Energia elettrica;10/02/2022
421;2;9999999;8,74;413,3;ENEL ENERGIA SPA;8426072694;SALDO Fatt.n. 004190104537  del 09/01/2022 DICEMBRE 2021 - CONSUMI ILLUMINAZIONE PUBBLICA;07/02/2022;134;31;111;1;Spese correnti;3;Acquisto di beni e servizi;2;Acquisto di servizi;5;Utenze e canoni;4;Energia elettrica;10/02/2022
421;3;9999999;27,35;413,3;ENEL ENERGIA SPA;8426072694;SALDO Fatt.n. 004190104534  del 09/01/2022 DICEMBRE 2021 - CONSUMI ILLUMINAZIONE PUBBLICA;07/02/2022;134;31;111;1;Spese correnti;3;Acquisto di beni e servizi;2;Acquisto di servizi;5;Utenze e canoni;4;Energia elettrica;10/02/2022
421;4;9999999;139,01;413,3;ENEL ENERGIA SPA;8426072694;SALDO Fatt.n. 004190104533  del 09/01/2022 DICEMBRE 2021 - CONSUMI ILLUMINAZIONE PUBBLICA;07/02/2022;134;31;111;1;Spese correnti;3;Acquisto di beni e servizi;2;Acquisto di servizi;5;Utenze e canoni;4;Energia elettrica;10/02/2022
421;5;9999999;229,81;413,3;ENEL ENERGIA SPA;8426072694;SALDO Fatt.n. 004190104532  del 09/01/2022 DICEMBRE 2021 - CONSUMI ILLUMINAZIONE PUBBLICA;07/02/2022;134;31;111;1;Spese correnti;3;Acquisto di beni e servizi;2;Acquisto di servizi;5;Utenze e canoni;4;Energia elettrica;10/02/2022
422;1;9999999;384,42;384,42;ENEL ENERGIA SPA;8426072694;ACCONTO Fatt.n. 004196505589  del 16/01/2022 DICEMBRE 2021 - CONSUMI ILLUMINAZIONE PUBBLICA;07/02/2022;134;31;111;1;Spese correnti;3;Acquisto di beni e servizi;2;Acquisto di servizi;5;Utenze e canoni;4;Energia elettrica;10/02/2022
423;1;9999999;34,34;3.338,85;ENEL ENERGIA SPA;8426072694;SALDO Fatt.n. 004190104526  del 09/01/2022 DICEMBRE 2021 - CONSUMI SC. ELEM. SMS;07/02/2022;1334;30;1013;1;Spese correnti;3;Acquisto di beni e servizi;2;Acquisto di servizi;5;Utenze e canoni;4;Energia elettrica;10/02/2022
423;2;9999999;318,58;3.338,85;ENEL ENERGIA SPA;8426072694;SALDO Fatt.n. 004190104530  del 09/01/2022 DICEMBRE 2021 - CONSUMI  SC. ELEM. CASELLE;07/02/2022;1334;30;1013;1;Spese correnti;3;Acquisto di beni e servizi;2;Acquisto di servizi;5;Utenze e canoni;4;Energia elettrica;10/02/2022
423;3;9999999;362,83;3.338,85;ENEL ENERGIA SPA;8426072694;SALDO Fatt.n. 004190104554  del 09/01/2022 DICEMBRE 2021 - CONSUMI SC. ELEM. CALTANA;07/02/2022;1334;30;1013;1;Spese correnti;3;Acquisto di beni e servizi;2;Acquisto di servizi;5;Utenze e canoni;4;Energia elettrica;10/02/2022
423;4;9999999;2.623,10;3.338,85;ENEL ENERGIA SPA;8426072694;SALDO Fatt.n. 004190104565  del 09/01/2022 DICEMBRE 2021 - CONSUMI SCUOLA MEDIA SMS;07/02/2022;1334;30;1013;1;Spese correnti;3;Acquisto di beni e servizi;2;Acquisto di servizi;5;Utenze e canoni;4;Energia elettrica;10/02/2022
424;1;9999999;920,73;920,73;ENEL ENERGIA SPA;8426072694;SALDO Fatt.n. 004190104494  del 09/01/2022 DICEMBRE 2021 - CONSUMI SEDE MUNICIPALE;07/02/2022;1334;30;1013;1;Spese correnti;3;Acquisto di beni e servizi;2;Acquisto di servizi;5;Utenze e canoni;4;Energia elettrica;10/02/2022
425;1;9999999;403,83;403,83;ENEL ENERGIA SPA;8426072694;ACCONTO Fatt.n. 004190104566  del 09/01/2022 DICEMBRE 2021 - CONSUMI VILLA FARSETTI;07/02/2022;1334;30;1013;1;Spese correnti;3;Acquisto di beni e servizi;2;Acquisto di servizi;5;Utenze e canoni;4;Energia elettrica;10/02/2022
426;1;9999999;650,78;650,78;ENEL ENERGIA SPA;8426072694;SALDO Fatt.n. 004190104553  del 09/01/2022 DICEMBRE 2021 - CONSUMI VILLA FARSETTI;07/02/2022;1334;30;1013;1;Spese correnti;3;Acquisto di beni e servizi;2;Acquisto di servizi;5;Utenze e canoni;4;Energia elettrica;10/02/2022
427;1;9999999;23,01;536,5;ENEL ENERGIA SPA;8426072694;SALDO Fatt.n. 004190104499  del 09/01/2022 DICEMBRE 2021 - CONSUMI ILLUMINAZIONE PUBBLICA;07/02/2022;1834;0;113;1;Spese correnti;3;Acquisto di beni e servizi;2;Acquisto di servizi;5;Utenze e canoni;4;Energia elettrica;10/02/2022
427;2;9999999;30,04;536,5;ENEL ENERGIA SPA;8426072694;SALDO Fatt.n. 004190104495  del 09/01/2022 DICEMBRE 2021 - CONSUMI ILLUMINAZIONE PUBBLICA;07/02/2022;1834;0;113;1;Spese correnti;3;Acquisto di beni e servizi;2;Acquisto di servizi;5;Utenze e canoni;4;Energia elettrica;10/02/2022
427;3;9999999;109,1;536,5;ENEL ENERGIA SPA;8426072694;SALDO Fatt.n. 004190104500  del 09/01/2022 DICEMBRE 2021 - CONSUMI ILLUMINAZIONE PUBBLICA;07/02/2022;1834;0;113;1;Spese correnti;3;Acquisto di beni e servizi;2;Acquisto di servizi;5;Utenze e canoni;4;Energia elettrica;10/02/2022
427;4;9999999;134,33;536,5;ENEL ENERGIA SPA;8426072694;SALDO Fatt.n. 004190104493  del 09/01/2022 DICEMBRE 2021 - CONSUMI ILLUMINAZIONE PUBBLICA;07/02/2022;1834;0;113;1;Spese correnti;3;Acquisto di beni e servizi;2;Acquisto di servizi;5;Utenze e canoni;4;Energia elettrica;10/02/2022
427;5;9999999;240,02;536,5;ENEL ENERGIA SPA;8426072694;SALDO Fatt.n. 004190104496  del 09/01/2022 DICEMBRE 2021 - CONSUMI ILLUMINAZIONE PUBBLICA;07/02/2022;1834;0;113;1;Spese correnti;3;Acquisto di beni e servizi;2;Acquisto di servizi;5;Utenze e canoni;4;Energia elettrica;10/02/2022
428;1;9999999;18,58;601,84;ENEL ENERGIA SPA;8426072694;SALDO Fatt.n. 004190104501  del 09/01/2022 DICEMBRE 2021 - CONSUMI ILLUMINAZIONE PUBBLICA;07/02/2022;1834;0;113;1;Spese correnti;3;Acquisto di beni e servizi;2;Acquisto di servizi;5;Utenze e canoni;4;Energia elettrica;10/02/2022
428;2;9999999;45,7;601,84;ENEL ENERGIA SPA;8426072694;SALDO Fatt.n. 004190104505  del 09/01/2022 DICEMBRE 2021 - CONSUMI ILLUMINAZIONE PUBBLICA;07/02/2022;1834;0;113;1;Spese correnti;3;Acquisto di beni e servizi;2;Acquisto di servizi;5;Utenze e canoni;4;Energia elettrica;10/02/2022
428;3;9999999;119,54;601,84;ENEL ENERGIA SPA;8426072694;SALDO Fatt.n. 004190104504  del 09/01/2022 DICEMBRE 2021 - CONSUMI ILLUMINAZIONE PUBBLICA;07/02/2022;1834;0;113;1;Spese correnti;3;Acquisto di beni e servizi;2;Acquisto di servizi;5;Utenze e canoni;4;Energia elettrica;10/02/2022
428;4;9999999;168,91;601,84;ENEL ENERGIA SPA;8426072694;SALDO Fatt.n. 004190104506  del 09/01/2022 DICEMBRE 2021 - CONSUMI ILLUMINAZIONE PUBBLICA;07/02/2022;1834;0;113;1;Spese correnti;3;Acquisto di beni e servizi;2;Acquisto di servizi;5;Utenze e canoni;4;Energia elettrica;10/02/2022
428;5;9999999;249,11;601,84;ENEL ENERGIA SPA;8426072694;SALDO Fatt.n. 004190104507  del 09/01/2022 DICEMBRE 2021 - CONSUMI ILLUMINAZIONE PUBBLICA;07/02/2022;1834;0;113;1;Spese correnti;3;Acquisto di beni e servizi;2;Acquisto di servizi;5;Utenze e canoni;4;Energia elettrica;10/02/2022
429;1;9999999;44,32;493,41;ENEL ENERGIA SPA;8426072694;SALDO Fatt.n. 004190104518  del 09/01/2022 DICEMBRE 2021 - CONSUMI ILLUMINAZIONE PUBBLICA;07/02/2022;1834;0;113;1;Spese correnti;3;Acquisto di beni e servizi;2;Acquisto di servizi;5;Utenze e canoni;4;Energia elettrica;10/02/2022
429;2;9999999;59,9;493,41;ENEL ENERGIA SPA;8426072694;SALDO Fatt.n. 004190104519  del 09/01/2022 DICEMBRE 2021 - CONSUMI ILLUMINAZIONE PUBBLICA;07/02/2022;1834;0;113;1;Spese correnti;3;Acquisto di beni e servizi;2;Acquisto di servizi;5;Utenze e canoni;4;Energia elettrica;10/02/2022
429;3;9999999;82,73;493,41;ENEL ENERGIA SPA;8426072694;SALDO Fatt.n. 004190104517  del 09/01/2022 DICEMBRE 2021 - CONSUMI ILLUMINAZIONE PUBBLICA;07/02/2022;1834;0;113;1;Spese correnti;3;Acquisto di beni e servizi;2;Acquisto di servizi;5;Utenze e canoni;4;Energia elettrica;10/02/2022
429;4;9999999;144,68;493,41;ENEL ENERGIA SPA;8426072694;SALDO Fatt.n. 004190104515  del 09/01/2022 DICEMBRE 2021 - CONSUMI ILLUMINAZIONE PUBBLICA;07/02/2022;1834;0;113;1;Spese correnti;3;Acquisto di beni e servizi;2;Acquisto di servizi;5;Utenze e canoni;4;Energia elettrica;10/02/2022
429;5;9999999;161,78;493,41;ENEL ENERGIA SPA;8426072694;SALDO Fatt.n. 004190104516  del 09/01/2022 DICEMBRE 2021 - CONSUMI ILLUMINAZIONE PUBBLICA;07/02/2022;1834;0;113;1;Spese correnti;3;Acquisto di beni e servizi;2;Acquisto di servizi;5;Utenze e canoni;4;Energia elettrica;10/02/2022
430;1;9999999;8,05;598,44;ENEL ENERGIA SPA;8426072694;SALDO Fatt.n. 004190104527  del 09/01/2022 DICEMBRE 2021 - CONSUMI ILLUMINAZIONE PUBBLICA;07/02/2022;1834;0;113;1;Spese correnti;3;Acquisto di beni e servizi;2;Acquisto di servizi;5;Utenze e canoni;4;Energia elettrica;10/02/2022
430;2;9999999;33,06;598,44;ENEL ENERGIA SPA;8426072694;SALDO Fatt.n. 004190104528  del 09/01/2022 DICEMBRE 2021 - CONSUMI ILLUMINAZIONE PUBBLICA;07/02/2022;1834;0;113;1;Spese correnti;3;Acquisto di beni e servizi;2;Acquisto di servizi;5;Utenze e canoni;4;Energia elettrica;10/02/2022
430;3;9999999;99,3;598,44;ENEL ENERGIA SPA;8426072694;SALDO Fatt.n. 004190104524  del 09/01/2022 DICEMBRE 2021 - CONSUMI ILLUMINAZIONE PUBBLICA;07/02/2022;1834;0;113;1;Spese correnti;3;Acquisto di beni e servizi;2;Acquisto di servizi;5;Utenze e canoni;4;Energia elettrica;10/02/2022
430;4;9999999;197,86;598,44;ENEL ENERGIA SPA;8426072694;SALDO Fatt.n. 004190104525  del 09/01/2022 DICEMBRE 2021 - CONSUMI ILLUMINAZIONE PUBBLICA;07/02/2022;1834;0;113;1;Spese correnti;3;Acquisto di beni e servizi;2;Acquisto di servizi;5;Utenze e canoni;4;Energia elettrica;10/02/2022
430;5;9999999;260,17;598,44;ENEL ENERGIA SPA;8426072694;SALDO Fatt.n. 004190104521  del 09/01/2022 DICEMBRE 2021 - CONSUMI ILLUMINAZIONE PUBBLICA;07/02/2022;1834;0;113;1;Spese correnti;3;Acquisto di beni e servizi;2;Acquisto di servizi;5;Utenze e canoni;4;Energia elettrica;10/02/2022
431;1;9999999;12,32;318,38;ENEL ENERGIA SPA;8426072694;SALDO Fatt.n. 004190104549  del 09/01/2022 DICEMBRE 2021 - CONSUMI ILLUMINAZIONE PUBBLICA;07/02/2022;1834;0;113;1;Spese correnti;3;Acquisto di beni e servizi;2;Acquisto di servizi;5;Utenze e canoni;4;Energia elettrica;10/02/2022
431;2;9999999;33,06;318,38;ENEL ENERGIA SPA;8426072694;SALDO Fatt.n. 004190104556  del 09/01/2022 DICEMBRE 2021 - CONSUMI ILLUMINAZIONE PUBBLICA;07/02/2022;1834;0;113;1;Spese correnti;3;Acquisto di beni e servizi;2;Acquisto di servizi;5;Utenze e canoni;4;Energia elettrica;10/02/2022
431;3;9999999;53,36;318,38;ENEL ENERGIA SPA;8426072694;SALDO Fatt.n. 004190104557  del 09/01/2022 DICEMBRE 2021 - CONSUMI ILLUMINAZIONE PUBBLICA;07/02/2022;1834;0;113;1;Spese correnti;3;Acquisto di beni e servizi;2;Acquisto di servizi;5;Utenze e canoni;4;Energia elettrica;10/02/2022
431;4;9999999;107,47;318,38;ENEL ENERGIA SPA;8426072694;SALDO Fatt.n. 004190104558  del 09/01/2022 DICEMBRE 2021 - CONSUMI ILLUMINAZIONE PUBBLICA;07/02/2022;1834;0;113;1;Spese correnti;3;Acquisto di beni e servizi;2;Acquisto di servizi;5;Utenze e canoni;4;Energia elettrica;10/02/2022
431;5;9999999;112,17;318,38;ENEL ENERGIA SPA;8426072694;SALDO Fatt.n. 004190104552  del 09/01/2022 DICEMBRE 2021 - CONSUMI ILLUMINAZIONE PUBBLICA;07/02/2022;1834;0;113;1;Spese correnti;3;Acquisto di beni e servizi;2;Acquisto di servizi;5;Utenze e canoni;4;Energia elettrica;10/02/2022
432;1;9999999;14,46;358,39;ENEL ENERGIA SPA;8426072694;SALDO Fatt.n. 004190104590  del 09/01/2022 DICEMBRE 2021 - CONSUMI ILLUMINAZIONE PUBBLICA;07/02/2022;1834;0;1014;1;Spese correnti;3;Acquisto di beni e servizi;2;Acquisto di servizi;5;Utenze e canoni;4;Energia elettrica;10/02/2022
432;2;9999999;17,63;358,39;ENEL ENERGIA SPA;8426072694;SALDO Fatt.n. 004190104588  del 09/01/2022 DICEMBRE 2021 - CONSUMI ILLUMINAZIONE PUBBLICA;07/02/2022;1834;0;1014;1;Spese correnti;3;Acquisto di beni e servizi;2;Acquisto di servizi;5;Utenze e canoni;4;Energia elettrica;10/02/2022
432;3;9999999;25,68;358,39;ENEL ENERGIA SPA;8426072694;SALDO Fatt.n. 004190104593  del 09/01/2022 DICEMBRE 2021 - CONSUMI ILLUMINAZIONE PUBBLICA;07/02/2022;1834;0;1014;1;Spese correnti;3;Acquisto di beni e servizi;2;Acquisto di servizi;5;Utenze e canoni;4;Energia elettrica;10/02/2022
432;4;9999999;44,74;358,39;ENEL ENERGIA SPA;8426072694;SALDO Fatt.n. 004190104587  del 09/01/2022 DICEMBRE 2021 - CONSUMI ILLUMINAZIONE PUBBLICA;07/02/2022;1834;0;1014;1;Spese correnti;3;Acquisto di beni e servizi;2;Acquisto di servizi;5;Utenze e canoni;4;Energia elettrica;10/02/2022
432;5;9999999;58,76;358,39;ENEL ENERGIA SPA;8426072694;SALDO Fatt.n. 004190104591  del 09/01/2022 DICEMBRE 2021 - CONSUMI ILLUMINAZIONE PUBBLICA;07/02/2022;1834;0;1014;1;Spese correnti;3;Acquisto di beni e servizi;2;Acquisto di servizi;5;Utenze e canoni;4;Energia elettrica;10/02/2022
432;6;9999999;197,12;358,39;ENEL ENERGIA SPA;8426072694;SALDO Fatt.n. 004190104589  del 09/01/2022 DICEMBRE 2021 - CONSUMI ILLUMINAZIONE PUBBLICA;07/02/2022;1834;0;1014;1;Spese correnti;3;Acquisto di beni e servizi;2;Acquisto di servizi;5;Utenze e canoni;4;Energia elettrica;10/02/2022
433;1;9999999;21,13;380,33;ENEL ENERGIA SPA;8426072694;SALDO Fatt.n. 004197497079  del 19/01/2022 DICEMBRE 2021 - CONSUMI ILLUMINAZIONE PUBBLICA;07/02/2022;1834;0;1014;1;Spese correnti;3;Acquisto di beni e servizi;2;Acquisto di servizi;5;Utenze e canoni;4;Energia elettrica;10/02/2022
433;2;9999999;49,62;380,33;ENEL ENERGIA SPA;8426072694;SALDO Fatt.n. 004196505591  del 16/01/2022 DICEMBRE 2021 - CONSUMI ILLUMINAZIONE PUBBLICA;07/02/2022;1834;0;1014;1;Spese correnti;3;Acquisto di beni e servizi;2;Acquisto di servizi;5;Utenze e canoni;4;Energia elettrica;10/02/2022
433;3;9999999;55,06;380,33;ENEL ENERGIA SPA;8426072694;SALDO Fatt.n. 004196505584  del 16/01/2022 DICEMBRE 2021 - CONSUMI ILLUMINAZIONE PUBBLICA;07/02/2022;1834;0;1014;1;Spese correnti;3;Acquisto di beni e servizi;2;Acquisto di servizi;5;Utenze e canoni;4;Energia elettrica;10/02/2022
433;4;9999999;55,06;380,33;ENEL ENERGIA SPA;8426072694;SALDO Fatt.n. 004196505585  del 16/01/2022 DICEMBRE 2021 - CONSUMI ILLUMINAZIONE PUBBLICA;07/02/2022;1834;0;1014;1;Spese correnti;3;Acquisto di beni e servizi;2;Acquisto di servizi;5;Utenze e canoni;4;Energia elettrica;10/02/2022
433;5;9999999;199,46;380,33;ENEL ENERGIA SPA;8426072694;SALDO Fatt.n. 004196505587  del 16/01/2022 DICEMBRE 2021 - CONSUMI ILLUMINAZIONE PUBBLICA;07/02/2022;1834;0;1014;1;Spese correnti;3;Acquisto di beni e servizi;2;Acquisto di servizi;5;Utenze e canoni;4;Energia elettrica;10/02/2022
434;1;9999999;261,28;261,28;ENEL ENERGIA SPA;8426072694;SALDO Fatt.n. 004190104566  del 09/01/2022 DICEMBRE 2021 - CONSUMI VILLA FARSETTI;07/02/2022;1834;0;1014;1;Spese correnti;3;Acquisto di beni e servizi;2;Acquisto di servizi;5;Utenze e canoni;4;Energia elettrica;10/02/2022
435;1;9999999;50,43;50,43;ENEL ENERGIA SPA;8426072694;SALDO Fatt.n. 004196505588  del 16/01/2022 DICEMBRE 2021 - CONSUMI CAMPO DA CALCIO SMS;07/02/2022;1934;0;114;1;Spese correnti;3;Acquisto di beni e servizi;2;Acquisto di servizi;5;Utenze e canoni;4;Energia elettrica;10/02/2022
436;1;9999999;111,46;111,46;ENEL ENERGIA SPA;8426072694;SALDO Fatt.n. 004191998116  del 12/01/2022 DICEMBRE 2021 - CONSUMI CALCETTO CASELLE;07/02/2022;1934;0;114;1;Spese correnti;3;Acquisto di beni e servizi;2;Acquisto di servizi;5;Utenze e canoni;4;Energia elettrica;10/02/2022
437;1;9999999;107,87;107,87;ENEL ENERGIA SPA;8426072694;SALDO Fatt.n. 004190104497  del 09/01/2022 DICEMBRE 2021 - CONSUMI  IMP. SPORT. PARROCCHIA CASELLE;07/02/2022;1934;0;114;1;Spese correnti;3;Acquisto di beni e servizi;2;Acquisto di servizi;5;Utenze e canoni;4;Energia elettrica;10/02/2022
438;1;9999999;10,77;320,11;ENEL ENERGIA SPA;8426072694;SALDO Fatt.n. 004190104478  del 09/01/2022 DICEMBRE 2021 - CONSUMI ILLUMINAZIONE PUBBLICA;07/02/2022;3534;0;116;1;Spese correnti;3;Acquisto di beni e servizi;2;Acquisto di servizi;5;Utenze e canoni;4;Energia elettrica;10/02/2022
438;2;9999999;15,37;320,11;ENEL ENERGIA SPA;8426072694;SALDO Fatt.n. 004190104481  del 09/01/2022 DICEMBRE 2021 - CONSUMI ILLUMINAZIONE PUBBLICA;07/02/2022;3534;0;116;1;Spese correnti;3;Acquisto di beni e servizi;2;Acquisto di servizi;5;Utenze e canoni;4;Energia elettrica;10/02/2022
438;3;9999999;39,27;320,11;ENEL ENERGIA SPA;8426072694;SALDO Fatt.n. 004190104480  del 09/01/2022 DICEMBRE 2021 - CONSUMI ILLUMINAZIONE PUBBLICA;07/02/2022;3534;0;116;1;Spese correnti;3;Acquisto di beni e servizi;2;Acquisto di servizi;5;Utenze e canoni;4;Energia elettrica;10/02/2022
438;4;9999999;254,7;320,11;ENEL ENERGIA SPA;8426072694;SALDO Fatt.n. 004190104482  del 09/01/2022 DICEMBRE 2021 - CONSUMI ILLUMINAZIONE PUBBLICA;07/02/2022;3534;0;116;1;Spese correnti;3;Acquisto di beni e servizi;2;Acquisto di servizi;5;Utenze e canoni;4;Energia elettrica;10/02/2022
439;1;9999999;6,91;281,03;ENEL ENERGIA SPA;8426072694;SALDO Fatt.n. 004190104476  del 09/01/2022 DICEMBRE 2021 - CONSUMI ILLUMINAZIONE PUBBLICA;07/02/2022;3534;0;116;1;Spese correnti;3;Acquisto di beni e servizi;2;Acquisto di servizi;5;Utenze e canoni;4;Energia elettrica;10/02/2022
439;2;9999999;10,59;281,03;ENEL ENERGIA SPA;8426072694;SALDO Fatt.n. 004190104472  del 09/01/2022 DICEMBRE 2021 - CONSUMI ILLUMINAZIONE PUBBLICA;07/02/2022;3534;0;116;1;Spese correnti;3;Acquisto di beni e servizi;2;Acquisto di servizi;5;Utenze e canoni;4;Energia elettrica;10/02/2022
439;3;9999999;74,15;281,03;ENEL ENERGIA SPA;8426072694;SALDO Fatt.n. 004190104477  del 09/01/2022 DICEMBRE 2021 - CONSUMI ILLUMINAZIONE PUBBLICA;07/02/2022;3534;0;116;1;Spese correnti;3;Acquisto di beni e servizi;2;Acquisto di servizi;5;Utenze e canoni;4;Energia elettrica;10/02/2022
439;4;9999999;84,95;281,03;ENEL ENERGIA SPA;8426072694;SALDO Fatt.n. 004190104470  del 09/01/2022 DICEMBRE 2021 - CONSUMI ILLUMINAZIONE PUBBLICA;07/02/2022;3534;0;116;1;Spese correnti;3;Acquisto di beni e servizi;2;Acquisto di servizi;5;Utenze e canoni;4;Energia elettrica;10/02/2022
439;5;9999999;104,43;281,03;ENEL ENERGIA SPA;8426072694;SALDO Fatt.n. 004190104468  del 09/01/2022 DICEMBRE 2021 - CONSUMI ILLUMINAZIONE PUBBLICA;07/02/2022;3534;0;116;1;Spese correnti;3;Acquisto di beni e servizi;2;Acquisto di servizi;5;Utenze e canoni;4;Energia elettrica;10/02/2022
440;1;9999999;15,71;519,12;ENEL ENERGIA SPA;8426072694;SALDO Fatt.n. 004190104492  del 09/01/2022 DICEMBRE 2021 - CONSUMI ILLUMINAZIONE PUBBLICA;07/02/2022;3534;0;116;1;Spese correnti;3;Acquisto di beni e servizi;2;Acquisto di servizi;5;Utenze e canoni;4;Energia elettrica;10/02/2022
440;2;9999999;59,23;519,12;ENEL ENERGIA SPA;8426072694;SALDO Fatt.n. 004190104488  del 09/01/2022 DICEMBRE 2021 - CONSUMI ILLUMINAZIONE PUBBLICA;07/02/2022;3534;0;116;1;Spese correnti;3;Acquisto di beni e servizi;2;Acquisto di servizi;5;Utenze e canoni;4;Energia elettrica;10/02/2022
440;3;9999999;88,78;519,12;ENEL ENERGIA SPA;8426072694;SALDO Fatt.n. 004190104487  del 09/01/2022 DICEMBRE 2021 - CONSUMI ILLUMINAZIONE PUBBLICA;07/02/2022;3534;0;116;1;Spese correnti;3;Acquisto di beni e servizi;2;Acquisto di servizi;5;Utenze e canoni;4;Energia elettrica;10/02/2022
440;4;9999999;147,56;519,12;ENEL ENERGIA SPA;8426072694;SALDO Fatt.n. 004190104485  del 09/01/2022 DICEMBRE 2021 - CONSUMI ILLUMINAZIONE PUBBLICA;07/02/2022;3534;0;116;1;Spese correnti;3;Acquisto di beni e servizi;2;Acquisto di servizi;5;Utenze e canoni;4;Energia elettrica;10/02/2022
440;5;9999999;207,84;519,12;ENEL ENERGIA SPA;8426072694;SALDO Fatt.n. 004190104491  del 09/01/2022 DICEMBRE 2021 - CONSUMI ILLUMINAZIONE PUBBLICA;07/02/2022;3534;0;116;1;Spese correnti;3;Acquisto di beni e servizi;2;Acquisto di servizi;5;Utenze e canoni;4;Energia elettrica;10/02/2022
441;1;9999999;13,74;272,23;ENEL ENERGIA SPA;8426072694;SALDO Fatt.n. 004190104547  del 09/01/2022 DICEMBRE 2021 - CONSUMI ILLUMINAZIONE PUBBLICA;07/02/2022;3534;0;116;1;Spese correnti;3;Acquisto di beni e servizi;2;Acquisto di servizi;5;Utenze e canoni;4;Energia elettrica;10/02/2022
441;2;9999999;38,39;272,23;ENEL ENERGIA SPA;8426072694;SALDO Fatt.n. 004190104542  del 09/01/2022 DICEMBRE 2021 - CONSUMI ILLUMINAZIONE PUBBLICA;07/02/2022;3534;0;116;1;Spese correnti;3;Acquisto di beni e servizi;2;Acquisto di servizi;5;Utenze e canoni;4;Energia elettrica;10/02/2022
441;3;9999999;44,14;272,23;ENEL ENERGIA SPA;8426072694;SALDO Fatt.n. 004190104546  del 09/01/2022 DICEMBRE 2021 - CONSUMI ILLUMINAZIONE PUBBLICA;07/02/2022;3534;0;116;1;Spese correnti;3;Acquisto di beni e servizi;2;Acquisto di servizi;5;Utenze e canoni;4;Energia elettrica;10/02/2022
441;4;9999999;49,19;272,23;ENEL ENERGIA SPA;8426072694;SALDO Fatt.n. 004190104543  del 09/01/2022 DICEMBRE 2021 - CONSUMI ILLUMINAZIONE PUBBLICA;07/02/2022;3534;0;116;1;Spese correnti;3;Acquisto di beni e servizi;2;Acquisto di servizi;5;Utenze e canoni;4;Energia elettrica;10/02/2022
441;5;9999999;126,77;272,23;ENEL ENERGIA SPA;8426072694;SALDO Fatt.n. 004190104539  del 09/01/2022 DICEMBRE 2021 - CONSUMI ILLUMINAZIONE PUBBLICA;07/02/2022;3534;0;116;1;Spese correnti;3;Acquisto di beni e servizi;2;Acquisto di servizi;5;Utenze e canoni;4;Energia elettrica;10/02/2022
442;1;9999999;21,57;21,57;ENEL ENERGIA SPA;8426072694;SALDO Fatt.n. 004190104451  del 09/01/2022 DICEMBRE 2021 - CONSUMI ECOCENTRO COMUNALE;07/02/2022;3534;0;1015;1;Spese correnti;3;Acquisto di beni e servizi;2;Acquisto di servizi;5;Utenze e canoni;4;Energia elettrica;10/02/2022
443;1;9999999;205,14;205,14;ENEL ENERGIA SPA;8426072694;SALDO Fatt.n. 004190104529  del 09/01/2022 DICEMBRE 2021 - CONSUMI MAGAZZINO COMUNALE;07/02/2022;3534;0;1015;1;Spese correnti;3;Acquisto di beni e servizi;2;Acquisto di servizi;5;Utenze e canoni;4;Energia elettrica;10/02/2022
444;1;9999999;-3.303,70;174,26;ENEL ENERGIA SPA;8426072694;SALDO Fatt.n. 004197704035  del 27/01/2022 NOTA DI ACCREDITO PER CONG. CONSUMI;07/02/2022;3544;0;1018;1;Spese correnti;3;Acquisto di beni e servizi;2;Acquisto di servizi;15;Contratti di servizio pubblico;15;Contratti di servizio per l'illuminazione pubblica;10/02/2022
444;2;9999999;379,01;174,26;ENEL ENERGIA SPA;8426072694;SALDO Fatt.n. 004190104458  del 09/01/2022 DICEMBRE 2021 - CONSUMI ILLUMINAZIONE PUBBLICA;07/02/2022;3544;0;1018;1;Spese correnti;3;Acquisto di beni e servizi;2;Acquisto di servizi;15;Contratti di servizio pubblico;15;Contratti di servizio per l'illuminazione pubblica;10/02/2022
444;3;9999999;401,03;174,26;ENEL ENERGIA SPA;8426072694;SALDO Fatt.n. 004190104489  del 09/01/2022 DICEMBRE 2021 - CONSUMI ILLUMINAZIONE PUBBLICA;07/02/2022;3544;0;1018;1;Spese correnti;3;Acquisto di beni e servizi;2;Acquisto di servizi;15;Contratti di servizio pubblico;15;Contratti di servizio per l'illuminazione pubblica;10/02/2022
444;4;9999999;403,21;174,26;ENEL ENERGIA SPA;8426072694;SALDO Fatt.n. 004190104503  del 09/01/2022 DICEMBRE 2021 - CONSUMI ILLUMINAZIONE PUBBLICA;07/02/2022;3544;0;1018;1;Spese correnti;3;Acquisto di beni e servizi;2;Acquisto di servizi;15;Contratti di servizio pubblico;15;Contratti di servizio per l'illuminazione pubblica;10/02/2022
444;5;9999999;404,86;174,26;ENEL ENERGIA SPA;8426072694;SALDO Fatt.n. 004190104538  del 09/01/2022 DICEMBRE 2021 - CONSUMI ILLUMINAZIONE PUBBLICA;07/02/2022;3544;0;1018;1;Spese correnti;3;Acquisto di beni e servizi;2;Acquisto di servizi;15;Contratti di servizio pubblico;15;Contratti di servizio per l'illuminazione pubblica;10/02/2022
444;6;9999999;449,33;174,26;ENEL ENERGIA SPA;8426072694;SALDO Fatt.n. 004190104474  del 09/01/2022 DICEMBRE 2021 - CONSUMI ILLUMINAZIONE PUBBLICA;07/02/2022;3544;0;1018;1;Spese correnti;3;Acquisto di beni e servizi;2;Acquisto di servizi;15;Contratti di servizio pubblico;15;Contratti di servizio per l'illuminazione pubblica;10/02/2022
444;7;9999999;467;174,26;ENEL ENERGIA SPA;8426072694;SALDO Fatt.n. 004190104461  del 09/01/2022 DICEMBRE 2021 - CONSUMI ILLUMINAZIONE PUBBLICA;07/02/2022;3544;0;1018;1;Spese correnti;3;Acquisto di beni e servizi;2;Acquisto di servizi;15;Contratti di servizio pubblico;15;Contratti di servizio per l'illuminazione pubblica;10/02/2022
444;8;9999999;481,13;174,26;ENEL ENERGIA SPA;8426072694;SALDO Fatt.n. 004190104460  del 09/01/2022 DICEMBRE 2021 - CONSUMI ILLUMINAZIONE PUBBLICA;07/02/2022;3544;0;1018;1;Spese correnti;3;Acquisto di beni e servizi;2;Acquisto di servizi;15;Contratti di servizio pubblico;15;Contratti di servizio per l'illuminazione pubblica;10/02/2022
444;9;9999999;492,39;174,26;ENEL ENERGIA SPA;8426072694;SALDO Fatt.n. 004190104459  del 09/01/2022 DICEMBRE 2021 - CONSUMI ILLUMINAZIONE PUBBLICA;07/02/2022;3544;0;1018;1;Spese correnti;3;Acquisto di beni e servizi;2;Acquisto di servizi;15;Contratti di servizio pubblico;15;Contratti di servizio per l'illuminazione pubblica;10/02/2022
445;1;9999999;-2.465,51;201,85;ENEL ENERGIA SPA;8426072694;SALDO Fatt.n. 004191788682  del 12/01/2022 NOTA DI ACCREDITO PER CONG. CONSUMI;07/02/2022;3544;0;1018;1;Spese correnti;3;Acquisto di beni e servizi;2;Acquisto di servizi;15;Contratti di servizio pubblico;15;Contratti di servizio per l'illuminazione pubblica;10/02/2022
445;2;9999999;347,5;201,85;ENEL ENERGIA SPA;8426072694;SALDO Fatt.n. 004190104567  del 09/01/2022 DICEMBRE 2021 - CONSUMI ILLUMINAZIONE PUBBLICA;07/02/2022;3544;0;1018;1;Spese correnti;3;Acquisto di beni e servizi;2;Acquisto di servizi;15;Contratti di servizio pubblico;15;Contratti di servizio per l'illuminazione pubblica;10/02/2022
445;3;9999999;526,43;201,85;ENEL ENERGIA SPA;8426072694;SALDO Fatt.n. 004190104541  del 09/01/2022 DICEMBRE 2021 - CONSUMI ILLUMINAZIONE PUBBLICA;07/02/2022;3544;0;1018;1;Spese correnti;3;Acquisto di beni e servizi;2;Acquisto di servizi;15;Contratti di servizio pubblico;15;Contratti di servizio per l'illuminazione pubblica;10/02/2022
445;4;9999999;534,3;201,85;ENEL ENERGIA SPA;8426072694;SALDO Fatt.n. 004190104449  del 09/01/2022 DICEMBRE 2021 - CONSUMI ILLUMINAZIONE PUBBLICA;07/02/2022;3544;0;1018;1;Spese correnti;3;Acquisto di beni e servizi;2;Acquisto di servizi;15;Contratti di servizio pubblico;15;Contratti di servizio per l'illuminazione pubblica;10/02/2022
445;5;9999999;595,08;201,85;ENEL ENERGIA SPA;8426072694;SALDO Fatt.n. 004190104561  del 09/01/2022 DICEMBRE 2021 - CONSUMI ILLUMINAZIONE PUBBLICA;07/02/2022;3544;0;1018;1;Spese correnti;3;Acquisto di beni e servizi;2;Acquisto di servizi;15;Contratti di servizio pubblico;15;Contratti di servizio per l'illuminazione pubblica;10/02/2022
445;6;9999999;664,05;201,85;ENEL ENERGIA SPA;8426072694;SALDO Fatt.n. 004190104520  del 09/01/2022 DICEMBRE 2021 - CONSUMI ILLUMINAZIONE PUBBLICA;07/02/2022;3544;0;1018;1;Spese correnti;3;Acquisto di beni e servizi;2;Acquisto di servizi;15;Contratti di servizio pubblico;15;Contratti di servizio per l'illuminazione pubblica;10/02/2022
446;1;9999999;-3.834,14;146,34;ENEL ENERGIA SPA;8426072694;SALDO Fatt.n. 004190220128  del 10/01/2022 NOTA DI ACCREDITO PER CONG. CONSUMI;07/02/2022;3544;0;1018;1;Spese correnti;3;Acquisto di beni e servizi;2;Acquisto di servizi;15;Contratti di servizio pubblico;15;Contratti di servizio per l'illuminazione pubblica;10/02/2022
446;2;9999999;568,8;146,34;ENEL ENERGIA SPA;8426072694;SALDO Fatt.n. 004190104572  del 09/01/2022 DICEMBRE 2021 - CONSUMI ILLUMINAZIONE PUBBLICA;07/02/2022;3544;0;1018;1;Spese correnti;3;Acquisto di beni e servizi;2;Acquisto di servizi;15;Contratti di servizio pubblico;15;Contratti di servizio per l'illuminazione pubblica;10/02/2022
446;3;9999999;758,58;146,34;ENEL ENERGIA SPA;8426072694;SALDO Fatt.n. 004190104548  del 09/01/2022 DICEMBRE 2021 - CONSUMI ILLUMINAZIONE PUBBLICA;07/02/2022;3544;0;1018;1;Spese correnti;3;Acquisto di beni e servizi;2;Acquisto di servizi;15;Contratti di servizio pubblico;15;Contratti di servizio per l'illuminazione pubblica;10/02/2022
446;4;9999999;775,59;146,34;ENEL ENERGIA SPA;8426072694;SALDO Fatt.n. 004190104550  del 09/01/2022 DICEMBRE 2021 - CONSUMI ILLUMINAZIONE PUBBLICA;07/02/2022;3544;0;1018;1;Spese correnti;3;Acquisto di beni e servizi;2;Acquisto di servizi;15;Contratti di servizio pubblico;15;Contratti di servizio per l'illuminazione pubblica;10/02/2022
446;5;9999999;794,37;146,34;ENEL ENERGIA SPA;8426072694;SALDO Fatt.n. 004190104462  del 09/01/2022 DICEMBRE 2021 - CONSUMI ILLUMINAZIONE PUBBLICA;07/02/2022;3544;0;1018;1;Spese correnti;3;Acquisto di beni e servizi;2;Acquisto di servizi;15;Contratti di servizio pubblico;15;Contratti di servizio per l'illuminazione pubblica;10/02/2022
446;6;9999999;1.083,14;146,34;ENEL ENERGIA SPA;8426072694;SALDO Fatt.n. 004190104551  del 09/01/2022 DICEMBRE 2021 - CONSUMI ILLUMINAZIONE PUBBLICA;07/02/2022;3544;0;1018;1;Spese correnti;3;Acquisto di beni e servizi;2;Acquisto di servizi;15;Contratti di servizio pubblico;15;Contratti di servizio per l'illuminazione pubblica;10/02/2022
447;1;9999999;-230,62;104,37;ENEL ENERGIA SPA;8426072694;SALDO Fatt.n. 004190104580  del 09/01/2022 NOTA DI ACCREDITO PER CONG. CONSUMI;07/02/2022;3544;0;1018;1;Spese correnti;3;Acquisto di beni e servizi;2;Acquisto di servizi;15;Contratti di servizio pubblico;15;Contratti di servizio per l'illuminazione pubblica;10/02/2022
447;2;9999999;334,99;104,37;ENEL ENERGIA SPA;8426072694;SALDO Fatt.n. 004190104576  del 09/01/2022 DICEMBRE 2021 - CONSUMI ILLUMINAZIONE PUBBLICA;07/02/2022;3544;0;1018;1;Spese correnti;3;Acquisto di beni e servizi;2;Acquisto di servizi;15;Contratti di servizio pubblico;15;Contratti di servizio per l'illuminazione pubblica;10/02/2022
448;1;9999999;-3,36;107,12;ENEL ENERGIA SPA;8426072694;SALDO Fatt.n. 004190104448  del 09/01/2022 NOTA DI ACCREDITO PER CONG. CONSUMI;07/02/2022;3544;0;1018;1;Spese correnti;3;Acquisto di beni e servizi;2;Acquisto di servizi;15;Contratti di servizio pubblico;15;Contratti di servizio per l'illuminazione pubblica;10/02/2022
448;2;9999999;110,48;107,12;ENEL ENERGIA SPA;8426072694;SALDO Fatt.n. 004195953448  del 15/01/2022 DICEMBRE 2021 - CONSUMI ILLUMINAZIONE PUBBLICA;07/02/2022;3544;0;1018;1;Spese correnti;3;Acquisto di beni e servizi;2;Acquisto di servizi;15;Contratti di servizio pubblico;15;Contratti di servizio per l'illuminazione pubblica;10/02/2022
449;1;9999999;-21,36;147,95;ENEL ENERGIA SPA;8426072694;SALDO Fatt.n. 004197497078  del 19/01/2022 NOTA DI ACCREDITO PER CONG. CONSUMI;07/02/2022;3544;0;1018;1;Spese correnti;3;Acquisto di beni e servizi;2;Acquisto di servizi;15;Contratti di servizio pubblico;15;Contratti di servizio per l'illuminazione pubblica;10/02/2022
449;2;9999999;169,31;147,95;ENEL ENERGIA SPA;8426072694;SALDO Fatt.n. 004190104484  del 09/01/2022 DICEMBRE 2021 - CONSUMI ILLUMINAZIONE PUBBLICA;07/02/2022;3544;0;1018;1;Spese correnti;3;Acquisto di beni e servizi;2;Acquisto di servizi;15;Contratti di servizio pubblico;15;Contratti di servizio per l'illuminazione pubblica;10/02/2022
450;1;9999999;269,13;1.566,75;ENEL ENERGIA SPA;8426072694;SALDO Fatt.n. 004190104456  del 09/01/2022 DICEMBRE 2021 - CONSUMI ILLUMINAZIONE PUBBLICA;07/02/2022;3544;0;1018;1;Spese correnti;3;Acquisto di beni e servizi;2;Acquisto di servizi;15;Contratti di servizio pubblico;15;Contratti di servizio per l'illuminazione pubblica;10/02/2022
450;2;9999999;303,05;1.566,75;ENEL ENERGIA SPA;8426072694;SALDO Fatt.n. 004190104502  del 09/01/2022 DICEMBRE 2021 - CONSUMI ILLUMINAZIONE PUBBLICA;07/02/2022;3544;0;1018;1;Spese correnti;3;Acquisto di beni e servizi;2;Acquisto di servizi;15;Contratti di servizio pubblico;15;Contratti di servizio per l'illuminazione pubblica;10/02/2022
450;3;9999999;313,94;1.566,75;ENEL ENERGIA SPA;8426072694;SALDO Fatt.n. 004190104522  del 09/01/2022 DICEMBRE 2021 - CONSUMI ILLUMINAZIONE PUBBLICA;07/02/2022;3544;0;1018;1;Spese correnti;3;Acquisto di beni e servizi;2;Acquisto di servizi;15;Contratti di servizio pubblico;15;Contratti di servizio per l'illuminazione pubblica;10/02/2022
450;4;9999999;339,16;1.566,75;ENEL ENERGIA SPA;8426072694;SALDO Fatt.n. 004190104475  del 09/01/2022 DICEMBRE 2021 - CONSUMI ILLUMINAZIONE PUBBLICA;07/02/2022;3544;0;1018;1;Spese correnti;3;Acquisto di beni e servizi;2;Acquisto di servizi;15;Contratti di servizio pubblico;15;Contratti di servizio per l'illuminazione pubblica;10/02/2022
450;5;9999999;341,47;1.566,75;ENEL ENERGIA SPA;8426072694;SALDO Fatt.n. 004190104560  del 09/01/2022 DICEMBRE 2021 - CONSUMI ILLUMINAZIONE PUBBLICA;07/02/2022;3544;0;1018;1;Spese correnti;3;Acquisto di beni e servizi;2;Acquisto di servizi;15;Contratti di servizio pubblico;15;Contratti di servizio per l'illuminazione pubblica;10/02/2022
451;1;9999999;6,73;316,36;ENEL ENERGIA SPA;8426072694;SALDO Fatt.n. 004190104450  del 09/01/2022 DICEMBRE 2021 - CONSUMI ILLUMINAZIONE PUBBLICA;07/02/2022;3544;0;1018;1;Spese correnti;3;Acquisto di beni e servizi;2;Acquisto di servizi;15;Contratti di servizio pubblico;15;Contratti di servizio per l'illuminazione pubblica;10/02/2022
451;2;9999999;8,39;316,36;ENEL ENERGIA SPA;8426072694;SALDO Fatt.n. 004190104455  del 09/01/2022 DICEMBRE 2021 - CONSUMI ILLUMINAZIONE PUBBLICA;07/02/2022;3544;0;1018;1;Spese correnti;3;Acquisto di beni e servizi;2;Acquisto di servizi;15;Contratti di servizio pubblico;15;Contratti di servizio per l'illuminazione pubblica;10/02/2022
451;3;9999999;16,47;316,36;ENEL ENERGIA SPA;8426072694;SALDO Fatt.n. 004190104454  del 09/01/2022 DICEMBRE 2021 - CONSUMI ILLUMINAZIONE PUBBLICA;07/02/2022;3544;0;1018;1;Spese correnti;3;Acquisto di beni e servizi;2;Acquisto di servizi;15;Contratti di servizio pubblico;15;Contratti di servizio per l'illuminazione pubblica;10/02/2022
451;4;9999999;114,17;316,36;ENEL ENERGIA SPA;8426072694;SALDO Fatt.n. 004190104452  del 09/01/2022 DICEMBRE 2021 - CONSUMI ILLUMINAZIONE PUBBLICA;07/02/2022;3544;0;1018;1;Spese correnti;3;Acquisto di beni e servizi;2;Acquisto di servizi;15;Contratti di servizio pubblico;15;Contratti di servizio per l'illuminazione pubblica;10/02/2022
451;5;9999999;170,6;316,36;ENEL ENERGIA SPA;8426072694;SALDO Fatt.n. 004190104453  del 09/01/2022 DICEMBRE 2021 - CONSUMI ILLUMINAZIONE PUBBLICA;07/02/2022;3544;0;1018;1;Spese correnti;3;Acquisto di beni e servizi;2;Acquisto di servizi;15;Contratti di servizio pubblico;15;Contratti di servizio per l'illuminazione pubblica;10/02/2022
452;1;9999999;8,56;538,92;ENEL ENERGIA SPA;8426072694;SALDO Fatt.n. 004190104466  del 09/01/2022 DICEMBRE 2021 - CONSUMI ILLUMINAZIONE PUBBLICA;07/02/2022;3544;0;1018;1;Spese correnti;3;Acquisto di beni e servizi;2;Acquisto di servizi;15;Contratti di servizio pubblico;15;Contratti di servizio per l'illuminazione pubblica;10/02/2022
452;2;9999999;20,48;538,92;ENEL ENERGIA SPA;8426072694;SALDO Fatt.n. 004190104463  del 09/01/2022 DICEMBRE 2021 - CONSUMI ILLUMINAZIONE PUBBLICA;07/02/2022;3544;0;1018;1;Spese correnti;3;Acquisto di beni e servizi;2;Acquisto di servizi;15;Contratti di servizio pubblico;15;Contratti di servizio per l'illuminazione pubblica;10/02/2022
452;3;9999999;115,88;538,92;ENEL ENERGIA SPA;8426072694;SALDO Fatt.n. 004190104457  del 09/01/2022 DICEMBRE 2021 - CONSUMI ILLUMINAZIONE PUBBLICA;07/02/2022;3544;0;1018;1;Spese correnti;3;Acquisto di beni e servizi;2;Acquisto di servizi;15;Contratti di servizio pubblico;15;Contratti di servizio per l'illuminazione pubblica;10/02/2022
452;4;9999999;177,9;538,92;ENEL ENERGIA SPA;8426072694;SALDO Fatt.n. 004190104467  del 09/01/2022 DICEMBRE 2021 - CONSUMI ILLUMINAZIONE PUBBLICA;07/02/2022;3544;0;1018;1;Spese correnti;3;Acquisto di beni e servizi;2;Acquisto di servizi;15;Contratti di servizio pubblico;15;Contratti di servizio per l'illuminazione pubblica;10/02/2022
452;5;9999999;216,1;538,92;ENEL ENERGIA SPA;8426072694;SALDO Fatt.n. 004190104464  del 09/01/2022 DICEMBRE 2021 - CONSUMI ILLUMINAZIONE PUBBLICA;07/02/2022;3544;0;1018;1;Spese correnti;3;Acquisto di beni e servizi;2;Acquisto di servizi;15;Contratti di servizio pubblico;15;Contratti di servizio per l'illuminazione pubblica;10/02/2022
453;1;9999999;148,93;148,93;ENEL ENERGIA SPA;8426072694;ACCONTO Fatt.n. 004190104479  del 09/01/2022 DICEMBRE 2021 - CONSUMI ILLUMINAZIONE PUBBLICA;07/02/2022;3544;0;1018;1;Spese correnti;3;Acquisto di beni e servizi;2;Acquisto di servizi;15;Contratti di servizio pubblico;15;Contratti di servizio per l'illuminazione pubblica;10/02/2022
454;1;9999999;23,01;346,92;ENEL ENERGIA SPA;8426072694;SALDO Fatt.n. 004190104512  del 09/01/2022 DICEMBRE 2021 - CONSUMI ILLUMINAZIONE PUBBLICA;07/02/2022;4234;0;117;1;Spese correnti;3;Acquisto di beni e servizi;2;Acquisto di servizi;5;Utenze e canoni;4;Energia elettrica;10/02/2022
454;2;9999999;28,71;346,92;ENEL ENERGIA SPA;8426072694;SALDO Fatt.n. 004190104511  del 09/01/2022 DICEMBRE 2021 - CONSUMI ILLUMINAZIONE PUBBLICA;07/02/2022;4234;0;117;1;Spese correnti;3;Acquisto di beni e servizi;2;Acquisto di servizi;5;Utenze e canoni;4;Energia elettrica;10/02/2022
454;3;9999999;56,93;346,92;ENEL ENERGIA SPA;8426072694;SALDO Fatt.n. 004190104509  del 09/01/2022 DICEMBRE 2021 - CONSUMI ILLUMINAZIONE PUBBLICA;07/02/2022;4234;0;117;1;Spese correnti;3;Acquisto di beni e servizi;2;Acquisto di servizi;5;Utenze e canoni;4;Energia elettrica;10/02/2022
454;4;9999999;63,09;346,92;ENEL ENERGIA SPA;8426072694;SALDO Fatt.n. 004190104510  del 09/01/2022 DICEMBRE 2021 - CONSUMI ILLUMINAZIONE PUBBLICA;07/02/2022;4234;0;117;1;Spese correnti;3;Acquisto di beni e servizi;2;Acquisto di servizi;5;Utenze e canoni;4;Energia elettrica;10/02/2022
454;5;9999999;175,18;346,92;ENEL ENERGIA SPA;8426072694;SALDO Fatt.n. 004190104508  del 09/01/2022 DICEMBRE 2021 - CONSUMI ILLUMINAZIONE PUBBLICA;07/02/2022;4234;0;117;1;Spese correnti;3;Acquisto di beni e servizi;2;Acquisto di servizi;5;Utenze e canoni;4;Energia elettrica;10/02/2022
455;1;9999999;14,29;312,92;ENEL ENERGIA SPA;8426072694;SALDO Fatt.n. 004190104564  del 09/01/2022 DICEMBRE 2021 - CONSUMI ILLUMINAZIONE PUBBLICA;07/02/2022;4234;0;1016;1;Spese correnti;3;Acquisto di beni e servizi;2;Acquisto di servizi;5;Utenze e canoni;4;Energia elettrica;10/02/2022
455;2;9999999;35,94;312,92;ENEL ENERGIA SPA;8426072694;SALDO Fatt.n. 004190104568  del 09/01/2022 DICEMBRE 2021 - CONSUMI ILLUMINAZIONE PUBBLICA;07/02/2022;4234;0;1016;1;Spese correnti;3;Acquisto di beni e servizi;2;Acquisto di servizi;5;Utenze e canoni;4;Energia elettrica;10/02/2022
455;3;9999999;63,28;312,92;ENEL ENERGIA SPA;8426072694;SALDO Fatt.n. 004190104563  del 09/01/2022 DICEMBRE 2021 - CONSUMI ILLUMINAZIONE PUBBLICA;07/02/2022;4234;0;1016;1;Spese correnti;3;Acquisto di beni e servizi;2;Acquisto di servizi;5;Utenze e canoni;4;Energia elettrica;10/02/2022
455;4;9999999;89,96;312,92;ENEL ENERGIA SPA;8426072694;SALDO Fatt.n. 004190104562  del 09/01/2022 DICEMBRE 2021 - CONSUMI ILLUMINAZIONE PUBBLICA;07/02/2022;4234;0;1016;1;Spese correnti;3;Acquisto di beni e servizi;2;Acquisto di servizi;5;Utenze e canoni;4;Energia elettrica;10/02/2022
455;5;9999999;109,45;312,92;ENEL ENERGIA SPA;8426072694;SALDO Fatt.n. 004190104569  del 09/01/2022 DICEMBRE 2021 - CONSUMI ILLUMINAZIONE PUBBLICA;07/02/2022;4234;0;1016;1;Spese correnti;3;Acquisto di beni e servizi;2;Acquisto di servizi;5;Utenze e canoni;4;Energia elettrica;10/02/2022
456;1;9999999;27,35;290,5;ENEL ENERGIA SPA;8426072694;SALDO Fatt.n. 004190104570  del 09/01/2022 DICEMBRE 2021 - CONSUMI ILLUMINAZIONE PUBBLICA;07/02/2022;4234;0;1016;1;Spese correnti;3;Acquisto di beni e servizi;2;Acquisto di servizi;5;Utenze e canoni;4;Energia elettrica;10/02/2022
456;2;9999999;30,04;290,5;ENEL ENERGIA SPA;8426072694;SALDO Fatt.n. 004190104573  del 09/01/2022 DICEMBRE 2021 - CONSUMI ILLUMINAZIONE PUBBLICA;07/02/2022;4234;0;1016;1;Spese correnti;3;Acquisto di beni e servizi;2;Acquisto di servizi;5;Utenze e canoni;4;Energia elettrica;10/02/2022
456;3;9999999;46,82;290,5;ENEL ENERGIA SPA;8426072694;SALDO Fatt.n. 004190104578  del 09/01/2022 DICEMBRE 2021 - CONSUMI ILLUMINAZIONE PUBBLICA;07/02/2022;4234;0;1016;1;Spese correnti;3;Acquisto di beni e servizi;2;Acquisto di servizi;5;Utenze e canoni;4;Energia elettrica;10/02/2022
456;4;9999999;86,99;290,5;ENEL ENERGIA SPA;8426072694;SALDO Fatt.n. 004190104577  del 09/01/2022 DICEMBRE 2021 - CONSUMI ILLUMINAZIONE PUBBLICA;07/02/2022;4234;0;1016;1;Spese correnti;3;Acquisto di beni e servizi;2;Acquisto di servizi;5;Utenze e canoni;4;Energia elettrica;10/02/2022
456;5;9999999;99,3;290,5;ENEL ENERGIA SPA;8426072694;SALDO Fatt.n. 004190104579  del 09/01/2022 DICEMBRE 2021 - CONSUMI ILLUMINAZIONE PUBBLICA;07/02/2022;4234;0;1016;1;Spese correnti;3;Acquisto di beni e servizi;2;Acquisto di servizi;5;Utenze e canoni;4;Energia elettrica;10/02/2022
457;1;9999999;11,1;284,82;ENEL ENERGIA SPA;8426072694;SALDO Fatt.n. 004190104584  del 09/01/2022 DICEMBRE 2021 - CONSUMI ILLUMINAZIONE PUBBLICA;07/02/2022;4234;0;1016;1;Spese correnti;3;Acquisto di beni e servizi;2;Acquisto di servizi;5;Utenze e canoni;4;Energia elettrica;10/02/2022
457;2;9999999;30,16;284,82;ENEL ENERGIA SPA;8426072694;SALDO Fatt.n. 004190104586  del 09/01/2022 DICEMBRE 2021 - CONSUMI ILLUMINAZIONE PUBBLICA;07/02/2022;4234;0;1016;1;Spese correnti;3;Acquisto di beni e servizi;2;Acquisto di servizi;5;Utenze e canoni;4;Energia elettrica;10/02/2022
457;3;9999999;37,82;284,82;ENEL ENERGIA SPA;8426072694;SALDO Fatt.n. 004190104585  del 09/01/2022 DICEMBRE 2021 - CONSUMI ILLUMINAZIONE PUBBLICA;07/02/2022;4234;0;1016;1;Spese correnti;3;Acquisto di beni e servizi;2;Acquisto di servizi;5;Utenze e canoni;4;Energia elettrica;10/02/2022
457;4;9999999;46,97;284,82;ENEL ENERGIA SPA;8426072694;SALDO Fatt.n. 004190104583  del 09/01/2022 DICEMBRE 2021 - CONSUMI ILLUMINAZIONE PUBBLICA;07/02/2022;4234;0;1016;1;Spese correnti;3;Acquisto di beni e servizi;2;Acquisto di servizi;5;Utenze e canoni;4;Energia elettrica;10/02/2022
457;5;9999999;158,77;284,82;ENEL ENERGIA SPA;8426072694;SALDO Fatt.n. 004190104582  del 09/01/2022 DICEMBRE 2021 - CONSUMI ILLUMINAZIONE PUBBLICA;07/02/2022;4234;0;1016;1;Spese correnti;3;Acquisto di beni e servizi;2;Acquisto di servizi;5;Utenze e canoni;4;Energia elettrica;10/02/2022
458;1;9999999;111,76;111,76;ENEL ENERGIA SPA;8426072694;ACCONTO Fatt.n. 004196505586  del 16/01/2022 DICEMBRE 2021 - CONSUMI ILLUMINAZIONE PUBBLICA;07/02/2022;4234;0;1016;1;Spese correnti;3;Acquisto di beni e servizi;2;Acquisto di servizi;5;Utenze e canoni;4;Energia elettrica;10/02/2022
459;1;9999999;17,42;17,42;ENEL ENERGIA SPA;8426072694;ACCONTO Fatt.n. 004196505589  del 16/01/2022 DICEMBRE 2021 - CONSUMI ILLUMINAZIONE PUBBLICA;07/02/2022;3534;0;116;1;Spese correnti;3;Acquisto di beni e servizi;2;Acquisto di servizi;5;Utenze e canoni;4;Energia elettrica;10/02/2022
460;1;9999999;114,79;114,79;ENEL ENERGIA SPA;8426072694;SALDO Fatt.n. 004196505589  del 16/01/2022 DICEMBRE 2021 - CONSUMI ILLUMINAZIONE PUBBLICA;07/02/2022;4234;0;117;1;Spese correnti;3;Acquisto di beni e servizi;2;Acquisto di servizi;5;Utenze e canoni;4;Energia elettrica;10/02/2022
461;1;9999999;463,51;463,51;SUPERBETON SPA;ZE330B9BB6;SALDO Fatt.n. VP/1212  del 31/12/2021 MATERIALE EDILE PER MANUTENZIONI;07/02/2022;3538;0;166;1;Spese correnti;3;Acquisto di beni e servizi;2;Acquisto di servizi;9;Manutenzione ordinaria e riparazioni;8;Manutenzione ordinaria e riparazioni di beni immobili;10/02/2022
462;1;9999999;189,92;189,92;EPIU' SRL - COSTRUIRE INSIEME;Z4230934B4;ACCONTO Fatt.n. 200358  del 12/01/2022 MATERIALE EDILE  - STRADALE PER MANUTENZIONE;07/02/2022;3538;0;167;1;Spese correnti;3;Acquisto di beni e servizi;2;Acquisto di servizi;9;Manutenzione ordinaria e riparazioni;8;Manutenzione ordinaria e riparazioni di beni immobili;10/02/2022
463;1;9999999;341;341;EPIU' SRL - COSTRUIRE INSIEME;Z4230934B4;SALDO Fatt.n. 200358  del 12/01/2022 MATERIALE EDILE  - STRADALE PER MANUTENZIONE;07/02/2022;3538;0;1075;1;Spese correnti;3;Acquisto di beni e servizi;2;Acquisto di servizi;9;Manutenzione ordinaria e riparazioni;8;Manutenzione ordinaria e riparazioni di beni immobili;10/02/2022
464;1;9999999;200;200;GAGLIARDI DANIELE; ;RIMBORSO SPESE TIROCINIO GEOMETRA A SEGUITO ACCORDO -QUADRO;07/02/2022;549;0;26;1;Spese correnti;3;Acquisto di beni e servizi;2;Acquisto di servizi;99;Altri servizi;999;Altri servizi diversi n.a.c.;10/02/2022
487;1;9999999;215,99;215,99;ENEL ENERGIA SPA;8426072694;ACCONTO Fatt.n. 004196505586  del 16/01/2022 DICEMBRE 2021 - CONSUMI ILLUMINAZIONE PUBBLICA;08/02/2022;1334;30;112;1;Spese correnti;3;Acquisto di beni e servizi;2;Acquisto di servizi;5;Utenze e canoni;4;Energia elettrica;10/02/2022
488;1;9999999;27,57;337,55;ENEL ENERGIA SPA;8426072694;SALDO Fatt.n. 004190104513  del 09/01/2022 DICEMBRE 2021 - CONSUMI  ALLOGGIO VIA DON GALLERANI;08/02/2022;1334;30;1013;1;Spese correnti;3;Acquisto di beni e servizi;2;Acquisto di servizi;5;Utenze e canoni;4;Energia elettrica;10/02/2022
488;2;9999999;50,22;337,55;ENEL ENERGIA SPA;8426072694;SALDO Fatt.n. 004190104531  del 09/01/2022 DICEMBRE 2021 - CONSUMI FONTANA VETERNIGO;08/02/2022;1334;30;1013;1;Spese correnti;3;Acquisto di beni e servizi;2;Acquisto di servizi;5;Utenze e canoni;4;Energia elettrica;10/02/2022
488;3;9999999;56,36;337,55;ENEL ENERGIA SPA;8426072694;SALDO Fatt.n. 004196505590  del 16/01/2022 DICEMBRE 2021 - CONSUMI ALLOGGIO VIA OLIMPIA SMS;08/02/2022;1334;30;1013;1;Spese correnti;3;Acquisto di beni e servizi;2;Acquisto di servizi;5;Utenze e canoni;4;Energia elettrica;10/02/2022
488;4;9999999;72,09;337,55;ENEL ENERGIA SPA;8426072694;SALDO Fatt.n. 004190104544  del 09/01/2022 DICEMBRE 2021 - CONSUMI PARCHEGGIO OVALE SMS;08/02/2022;1334;30;1013;1;Spese correnti;3;Acquisto di beni e servizi;2;Acquisto di servizi;5;Utenze e canoni;4;Energia elettrica;10/02/2022
488;5;9999999;131,31;337,55;ENEL ENERGIA SPA;8426072694;SALDO Fatt.n. 004190104540  del 09/01/2022 DICEMBRE 2021 - CONSUMI P.ZZA S.D.A. CALTANA;08/02/2022;1334;30;1013;1;Spese correnti;3;Acquisto di beni e servizi;2;Acquisto di servizi;5;Utenze e canoni;4;Energia elettrica;10/02/2022
489;1;9999999;39,41;210,01;ENEL ENERGIA SPA;8426072694;SALDO Fatt.n. 004190104574  del 09/01/2022 DICEMBRE 2021 - CONSUMI MERCATO CALTANA;08/02/2022;1334;30;1013;1;Spese correnti;3;Acquisto di beni e servizi;2;Acquisto di servizi;5;Utenze e canoni;4;Energia elettrica;10/02/2022
489;2;9999999;45,91;210,01;ENEL ENERGIA SPA;8426072694;SALDO Fatt.n. 004190104571  del 09/01/2022 DICEMBRE 2021 - CONSUMI PARCHEGGIO PRESSO C.C. PRISMA CASELLE;08/02/2022;1334;30;1013;1;Spese correnti;3;Acquisto di beni e servizi;2;Acquisto di servizi;5;Utenze e canoni;4;Energia elettrica;10/02/2022
489;3;9999999;53,01;210,01;ENEL ENERGIA SPA;8426072694;SALDO Fatt.n. 004190104473  del 09/01/2022 DICEMBRE 2021 - CONSUMI MERCATO SMS;08/02/2022;1334;30;1013;1;Spese correnti;3;Acquisto di beni e servizi;2;Acquisto di servizi;5;Utenze e canoni;4;Energia elettrica;10/02/2022
489;4;9999999;71,68;210,01;ENEL ENERGIA SPA;8426072694;SALDO Fatt.n. 004190104465  del 09/01/2022 DICEMBRE 2021 - CONSUMI MERCATO CASELLE;08/02/2022;1334;30;1013;1;Spese correnti;3;Acquisto di beni e servizi;2;Acquisto di servizi;5;Utenze e canoni;4;Energia elettrica;10/02/2022
490;1;9999999;174,17;174,17;ENEL ENERGIA SPA;8426072694;ACCONTO Fatt.n. 004190104581  del 09/01/2022 DICEMBRE 2021 - CONSUMI PALESTRA SMS;08/02/2022;1334;30;1013;1;Spese correnti;3;Acquisto di beni e servizi;2;Acquisto di servizi;5;Utenze e canoni;4;Energia elettrica;10/02/2022
491;1;9999999;68,27;68,27;ENEL ENERGIA SPA;8426072694;ACCONTO Fatt.n. 004190104523  del 09/01/2022 DICEMBRE 2021 - CONSUMI PALESTRA CASELLE;08/02/2022;1334;30;1013;1;Spese correnti;3;Acquisto di beni e servizi;2;Acquisto di servizi;5;Utenze e canoni;4;Energia elettrica;10/02/2022
492;1;9999999;299,78;299,78;ENEL ENERGIA SPA;8426072694;ACCONTO Fatt.n. 004190104545  del 09/01/2022 DICEMBRE 2021 - CONSUMI PALESTRA CALTANA;08/02/2022;1334;30;1013;1;Spese correnti;3;Acquisto di beni e servizi;2;Acquisto di servizi;5;Utenze e canoni;4;Energia elettrica;10/02/2022
493;1;9999999;254;254;ENEL ENERGIA SPA;8426072694;ACCONTO Fatt.n. 004190104471  del 09/01/2022 DICEMBRE 2021 - CONSUMI SC. ELEM - PALESTRA VETERNIGO;08/02/2022;1334;30;1013;1;Spese correnti;3;Acquisto di beni e servizi;2;Acquisto di servizi;5;Utenze e canoni;4;Energia elettrica;10/02/2022
494;1;9999999;414,19;414,19;ENEL ENERGIA SPA;8426072694;ACCONTO Fatt.n. 004190104471  del 09/01/2022 DICEMBRE 2021 - CONSUMI SC. ELEM - PALESTRA VETERNIGO;08/02/2022;1334;30;1013;1;Spese correnti;3;Acquisto di beni e servizi;2;Acquisto di servizi;5;Utenze e canoni;4;Energia elettrica;10/02/2022
495;1;9999999;185;185;ENEL ENERGIA SPA;8426072694;ACCONTO Fatt.n. 004190104535  del 09/01/2022 DICEMBRE 2021 - CONSUMI  SC. ELEM-PALESTRA STIGLIANO;08/02/2022;1334;30;1013;1;Spese correnti;3;Acquisto di beni e servizi;2;Acquisto di servizi;5;Utenze e canoni;4;Energia elettrica;10/02/2022
496;1;9999999;160,02;160,02;ENEL ENERGIA SPA;8426072694;ACCONTO Fatt.n. 004190104535  del 09/01/2022 DICEMBRE 2021 - CONSUMI  SC. ELEM-PALESTRA STIGLIANO;08/02/2022;1334;30;1013;1;Spese correnti;3;Acquisto di beni e servizi;2;Acquisto di servizi;5;Utenze e canoni;4;Energia elettrica;10/02/2022
497;1;9999999;233;233;ENEL ENERGIA SPA;8426072694;ACCONTO Fatt.n. 004190104575  del 09/01/2022 DICEMBRE 2021 - CONSUMI  SC. ELEM - PALESTRA S.ANGELO;08/02/2022;1334;30;1013;1;Spese correnti;3;Acquisto di beni e servizi;2;Acquisto di servizi;5;Utenze e canoni;4;Energia elettrica;10/02/2022
498;1;9999999;697,54;697,54;ENEL ENERGIA SPA;8426072694;ACCONTO Fatt.n. 004190104575  del 09/01/2022 DICEMBRE 2021 - CONSUMI  SC. ELEM - PALESTRA S.ANGELO;08/02/2022;1334;30;1013;1;Spese correnti;3;Acquisto di beni e servizi;2;Acquisto di servizi;5;Utenze e canoni;4;Energia elettrica;10/02/2022
499;1;9999999;35,35;35,35;ENEL ENERGIA SPA;8426072694;ACCONTO Fatt.n. 004196505586  del 16/01/2022 DICEMBRE 2021 - CONSUMI ILLUMINAZIONE PUBBLICA;08/02/2022;1834;0;113;1;Spese correnti;3;Acquisto di beni e servizi;2;Acquisto di servizi;5;Utenze e canoni;4;Energia elettrica;10/02/2022
500;1;9999999;174,16;174,16;ENEL ENERGIA SPA;8426072694;SALDO Fatt.n. 004190104581  del 09/01/2022 DICEMBRE 2021 - CONSUMI PALESTRA SMS;08/02/2022;1934;0;114;1;Spese correnti;3;Acquisto di beni e servizi;2;Acquisto di servizi;5;Utenze e canoni;4;Energia elettrica;10/02/2022
501;1;9999999;68,26;68,26;ENEL ENERGIA SPA;8426072694;SALDO Fatt.n. 004190104523  del 09/01/2022 DICEMBRE 2021 - CONSUMI PALESTRA CASELLE;08/02/2022;1934;0;114;1;Spese correnti;3;Acquisto di beni e servizi;2;Acquisto di servizi;5;Utenze e canoni;4;Energia elettrica;10/02/2022
502;1;9999999;299,78;299,78;ENEL ENERGIA SPA;8426072694;SALDO Fatt.n. 004190104545  del 09/01/2022 DICEMBRE 2021 - CONSUMI PALESTRA CALTANA;08/02/2022;1934;0;114;1;Spese correnti;3;Acquisto di beni e servizi;2;Acquisto di servizi;5;Utenze e canoni;4;Energia elettrica;10/02/2022
503;1;9999999;254;254;ENEL ENERGIA SPA;8426072694;SALDO Fatt.n. 004190104471  del 09/01/2022 DICEMBRE 2021 - CONSUMI SC. ELEM - PALESTRA VETERNIGO;08/02/2022;1934;0;114;1;Spese correnti;3;Acquisto di beni e servizi;2;Acquisto di servizi;5;Utenze e canoni;4;Energia elettrica;10/02/2022
504;1;9999999;185;185;ENEL ENERGIA SPA;8426072694;SALDO Fatt.n. 004190104535  del 09/01/2022 DICEMBRE 2021 - CONSUMI  SC. ELEM-PALESTRA STIGLIANO;08/02/2022;1934;0;114;1;Spese correnti;3;Acquisto di beni e servizi;2;Acquisto di servizi;5;Utenze e canoni;4;Energia elettrica;10/02/2022
505;1;9999999;233;233;ENEL ENERGIA SPA;8426072694;SALDO Fatt.n. 004190104575  del 09/01/2022 DICEMBRE 2021 - CONSUMI  SC. ELEM - PALESTRA S.ANGELO;08/02/2022;1934;0;114;1;Spese correnti;3;Acquisto di beni e servizi;2;Acquisto di servizi;5;Utenze e canoni;4;Energia elettrica;10/02/2022
506;1;9999999;106,44;106,44;ENEL ENERGIA SPA;8426072694;SALDO Fatt.n. 004190104479  del 09/01/2022 DICEMBRE 2021 - CONSUMI ILLUMINAZIONE PUBBLICA;08/02/2022;3534;0;116;1;Spese correnti;3;Acquisto di beni e servizi;2;Acquisto di servizi;5;Utenze e canoni;4;Energia elettrica;10/02/2022
507;1;9999999;91,4;91,4;ENEL ENERGIA SPA;8426072694;SALDO Fatt.n. 004196505586  del 16/01/2022 DICEMBRE 2021 - CONSUMI ILLUMINAZIONE PUBBLICA;08/02/2022;3534;0;1015;1;Spese correnti;3;Acquisto di beni e servizi;2;Acquisto di servizi;5;Utenze e canoni;4;Energia elettrica;10/02/2022
508;1;9999999;31;31;ENEL ENERGIA SPA;8426072694;ACCONTO Fatt.n. 004190104490  del 09/01/2022 DICEMBRE 2021 - CONSUMI CIMITERO STIGLIANO - LAMPADE VOTIVE;08/02/2022;4434;0;118;1;Spese correnti;3;Acquisto di beni e servizi;2;Acquisto di servizi;5;Utenze e canoni;4;Energia elettrica;10/02/2022
509;1;9999999;3,17;3,17;ENEL ENERGIA SPA;8426072694;SALDO Fatt.n. 004190104490  del 09/01/2022 DICEMBRE 2021 - CONSUMI CIMITERO STIGLIANO - LAMPADE VOTIVE;08/02/2022;4434;0;118;1;Spese correnti;3;Acquisto di beni e servizi;2;Acquisto di servizi;5;Utenze e canoni;4;Energia elettrica;10/02/2022
510;1;9999999;21;21;ENEL ENERGIA SPA;8426072694;ACCONTO Fatt.n. 004190104555  del 09/01/2022 DICEMBRE 2021 - CONSUMI CIMITERO S.ANGELO - LAMPADE VOTIVE;08/02/2022;4434;0;118;1;Spese correnti;3;Acquisto di beni e servizi;2;Acquisto di servizi;5;Utenze e canoni;4;Energia elettrica;10/02/2022
511;1;9999999;4,8;4,8;ENEL ENERGIA SPA;8426072694;SALDO Fatt.n. 004190104555  del 09/01/2022 DICEMBRE 2021 - CONSUMI CIMITERO S.ANGELO - LAMPADE VOTIVE;08/02/2022;4434;0;118;1;Spese correnti;3;Acquisto di beni e servizi;2;Acquisto di servizi;5;Utenze e canoni;4;Energia elettrica;10/02/2022
512;1;9999999;5;5;ENEL ENERGIA SPA;8426072694;ACCONTO Fatt.n. 004190104592  del 09/01/2022 DICEMBRE 2021 - CONSUMI CIMITERO SMS - LAMPADE VOTIVE;08/02/2022;4434;0;118;1;Spese correnti;3;Acquisto di beni e servizi;2;Acquisto di servizi;5;Utenze e canoni;4;Energia elettrica;10/02/2022
513;1;9999999;2,15;2,15;ENEL ENERGIA SPA;8426072694;SALDO Fatt.n. 004190104592  del 09/01/2022 DICEMBRE 2021 - CONSUMI CIMITERO SMS - LAMPADE VOTIVE;08/02/2022;4434;0;118;1;Spese correnti;3;Acquisto di beni e servizi;2;Acquisto di servizi;5;Utenze e canoni;4;Energia elettrica;10/02/2022
514;1;9999999;78;78;ENEL ENERGIA SPA;8426072694;ACCONTO Fatt.n. 004190104498  del 09/01/2022 DICEMBRE 2021 - CONSUMI CIMITERO CALTANA - LAMPADE VOTIVE;08/02/2022;4434;0;118;1;Spese correnti;3;Acquisto di beni e servizi;2;Acquisto di servizi;5;Utenze e canoni;4;Energia elettrica;10/02/2022
515;1;9999999;7,06;7,06;ENEL ENERGIA SPA;8426072694;SALDO Fatt.n. 004190104498  del 09/01/2022 DICEMBRE 2021 - CONSUMI CIMITERO CALTANA - LAMPADE VOTIVE;08/02/2022;4434;0;118;1;Spese correnti;3;Acquisto di beni e servizi;2;Acquisto di servizi;5;Utenze e canoni;4;Energia elettrica;10/02/2022
516;1;9999999;29;29;ENEL ENERGIA SPA;8426072694;ACCONTO Fatt.n. 004190104486  del 09/01/2022 DICEMBRE 2021 - CONSUMI CIMITERO SMS - LAMPADE VOTIVE;08/02/2022;4434;0;118;1;Spese correnti;3;Acquisto di beni e servizi;2;Acquisto di servizi;5;Utenze e canoni;4;Energia elettrica;10/02/2022
517;1;9999999;6,4;6,4;ENEL ENERGIA SPA;8426072694;SALDO Fatt.n. 004190104486  del 09/01/2022 DICEMBRE 2021 - CONSUMI CIMITERO SMS - LAMPADE VOTIVE;08/02/2022;4434;0;118;1;Spese correnti;3;Acquisto di beni e servizi;2;Acquisto di servizi;5;Utenze e canoni;4;Energia elettrica;10/02/2022
518;1;9999999;18;18;ENEL ENERGIA SPA;8426072694;ACCONTO Fatt.n. 004190104559  del 09/01/2022 DICEMBRE 2021 - CONSUMI CIMITERO VETERNIGO - LAMPADE VOTIVE;08/02/2022;4434;0;118;1;Spese correnti;3;Acquisto di beni e servizi;2;Acquisto di servizi;5;Utenze e canoni;4;Energia elettrica;10/02/2022
519;1;9999999;5,36;5,36;ENEL ENERGIA SPA;8426072694;SALDO Fatt.n. 004190104559  del 09/01/2022 DICEMBRE 2021 - CONSUMI CIMITERO VETERNIGO - LAMPADE VOTIVE;08/02/2022;4434;0;118;1;Spese correnti;3;Acquisto di beni e servizi;2;Acquisto di servizi;5;Utenze e canoni;4;Energia elettrica;10/02/2022
520;1;9999999;36;36;ENEL ENERGIA SPA;8426072694;ACCONTO Fatt.n. 004190104469  del 09/01/2022 DICEMBRE 2021 - CONSUMI CIMITERO CASELLE - LAMPADE VOTIVE;08/02/2022;4434;0;118;1;Spese correnti;3;Acquisto di beni e servizi;2;Acquisto di servizi;5;Utenze e canoni;4;Energia elettrica;10/02/2022
521;1;9999999;4,78;4,78;ENEL ENERGIA SPA;8426072694;SALDO Fatt.n. 004190104469  del 09/01/2022 DICEMBRE 2021 - CONSUMI CIMITERO CASELLE - LAMPADE VOTIVE;08/02/2022;4434;0;118;1;Spese correnti;3;Acquisto di beni e servizi;2;Acquisto di servizi;5;Utenze e canoni;4;Energia elettrica;10/02/2022
522;1;9999999;315,98;315,98;MYO SPA;ZD13449537;SALDO Fatt.n. 2040/220001450  del 28/01/2022 MANIFESTO 70 PER 100 AVVISO BANDO ERP ST-NERA CARTA GIALLA DOMANDA ASSEGNAZIONE ALLOGGI ERP A3 REG.VENETO;08/02/2022;521;0;1078;1;Spese correnti;3;Acquisto di beni e servizi;1;Acquisto di beni;2;Altri beni di consumo;14;Stampati specialistici;10/02/2022
523;1;9999999;159,5;159,5;LAZZARO ENRICO;ZE834A5632;SALDO Fatt.n. 1/PA  del 27/01/2022 REDAZIONE PIANO DI SICUREZZA E DI EMERGENZA IN OCCASIONE DELLA MANIFESTAZIONE A SOSTEGNO DEI LAVORATORI DELLA SPEEDLINE-RONAL;08/02/2022;540;0;1153;1;Spese correnti;3;Acquisto di beni e servizi;2;Acquisto di servizi;11;Prestazioni professionali e specialistiche;999;Altre prestazioni professionali e specialistiche n.a.c.;10/02/2022
524;1;9999999;383,06;383,06;V.E.R.I.T.A.S. SPA; ;SALDO Fatt.n. 9500000096  del 28/01/2022 DERATTIZZAZIONE - DISINFESTAZIONE 4 TRIMESTRE 2021;08/02/2022;2549;0;56;1;Spese correnti;3;Acquisto di beni e servizi;2;Acquisto di servizi;99;Altri servizi;9;Acquisto di sevizi per verde e arredo urbano;10/02/2022
525;1;9999999;661,5;661,5;C.E.V. - CONSORZIO EDILI VENETI SOC.COOPERATIVA;8550907FAB;SALDO Fatt.n. FATTPA 12_22  del 31/01/2022 CERTIFICATO DI REGOLARE ESECUZIONE PER MANUTENZIONE STRAORDINARIA E IMPERMEABILIZZAZIONE MANTI DI COPERTURA SCUOLA PRIMARIA E SECONDARIA DEL CAPOLUOGO;08/02/2022;7630;0;1236;2;Spese in conto capitale;2;Investimenti fissi lordi e acquisto di terreni;1;Beni materiali;9;Beni immobili;3;Fabbricati ad uso scolastico;10/02/2022
526;1;9999999;520;520;SCARABOTTOLO NADIA;ZEF3303462;SALDO Fatt.n. 2PA  del 31/01/2022 MESSA IN SICUREZZA DEL CENTRO ABITATO DI SANTA MARIA DI SALA - PRIMO INTERVENTO-ABBATTIMENTO BARRIERE ARCHITETTONICHE E COORDINAMENTO DELLA SICUREZZA IN FASE DI PROGETTAZIONE ED ESECUZIONE;08/02/2022;8692;0;1275;2;Spese in conto capitale;2;Investimenti fissi lordi e acquisto di terreni;1;Beni materiali;9;Beni immobili;12;Infrastrutture stradali;10/02/2022
527;1;9999999;160.655,64;160.655,64;AZIENDA ULSS N. 3 SERENISSIMA; ;DISTRETTO DI MIRANO -DOLO -SOCIALE ANNO 2022 1 ACCONTO;08/02/2022;3851;0;45;1;Spese correnti;4;Trasferimenti correnti;1;Trasferimenti correnti a Amministrazioni Pubbliche;2;Trasferimenti correnti a Amministrazioni Locali;11;Trasferimenti correnti a Aziende sanitarie locali  n.a.f.;10/02/2022
530;1;9999999;3.659,92;3.659,92;AGENZIA DELLE ENTRATE - IVA; ;LIQUIDAZIONE IVA COMMERCIALE MESE DI GENNAIO 2022;09/02/2022;291;0;143;1;Spese correnti;10;Altre spese correnti;3;Versamenti IVA a debito;1;Versamenti IVA a debito per le gestioni commerciali;1;Versamenti IVA a debito per le gestioni commerciali;16/02/2022
531;1;9999999;10.729,95;10.729,95;MAG SPA;Z0334EE8EC;PAGAMENTO POLIZZA ASSICURATIVA PER LIBRO MATRICOLA GLOBALE ANNO 2022;10/02/2022;992;0;113;1;Spese correnti;10;Altre spese correnti;4;Premi di assicurazione;1;Premi di assicurazione contro i danni;1;Premi di assicurazione su beni mobili;14/02/2022
532;1;9999999;6.806,61;6.806,61;ARTEA  SNC DI LION & SALVIATO;Z47300506C;SALDO Fatt.n. 02-2022/PA  del 20/01/2022 OPERAZIONI DI ESTUMULAZIONE ESEGUITE NEL CIMITERO DI S.ANGELO;10/02/2022;4438;0;1377;1;Spese correnti;3;Acquisto di beni e servizi;2;Acquisto di servizi;9;Manutenzione ordinaria e riparazioni;8;Manutenzione ordinaria e riparazioni di beni immobili;14/02/2022
533;1;9999999;2.808,03;2.808,03;ARTEA  SNC DI LION & SALVIATO;Z47300506C;ACCONTO Fatt.n. 01-2022/PA  del 20/01/2022 OPERAZIONI EFFETTUATE NEI CIMITERI DEL COMUNE DI SANTA MARIA DI SALA NEL MESE DI DICEMBRE 2021;10/02/2022;4438;0;1377;1;Spese correnti;3;Acquisto di beni e servizi;2;Acquisto di servizi;9;Manutenzione ordinaria e riparazioni;8;Manutenzione ordinaria e riparazioni di beni immobili;14/02/2022
534;1;9999999;29,95;29,95;C/C/P 15453301 SERVIZIO DI TESORERIA COM; ;SPESE DI GESTIONE CCP MESE DI GENNAIO 2022;14/02/2022;146;0;382;1;Spese correnti;3;Acquisto di beni e servizi;2;Acquisto di servizi;17;Servizi finanziari;999;Spese per servizi finanziari n.a.c.;17/02/2022
535;1;9999999;26.699,99;26.699,99;MICHELETTO IMPIANTI SRL;ZD832EC369;SALDO Fatt.n. 1/8  del 26/01/2022  LAVORI DI SOMMA URGENZA E DI PRONTO INTERVENTO SUL TERRITORIO COMUNALE SALDO;15/02/2022;3538;0;837;1;Spese correnti;3;Acquisto di beni e servizi;2;Acquisto di servizi;9;Manutenzione ordinaria e riparazioni;4;Manutenzione ordinaria e riparazioni di impianti e macchinari;17/02/2022
536;1;9999999;11.374,00;11.374,00;SOC.AGR.PUNTO VERDE VIVAI PIANTE F.LLI ROSA S.S.;ZC634443D0;SALDO Fatt.n. 14  del 25/01/2022 FORNTURA DI LAGESTROEMIE CON MESSA A DIMORA NEL TERRITORIO COMUNALE;15/02/2022;8483;0;1083;2;Spese in conto capitale;2;Investimenti fissi lordi e acquisto di terreni;1;Beni materiali;9;Beni immobili;16;Impianti sportivi;17/02/2022
537;1;9999999;16,26;189,96;V.E.R.I.T.A.S. SPA; ;SALDO Fatt.n. 600006382341  del 19/01/2022 PERIODO 01.11.2021-31.12.2021 - CONSUMI PIAZZA S.D.A. CALTANA;16/02/2022;134;31;128;1;Spese correnti;3;Acquisto di beni e servizi;2;Acquisto di servizi;5;Utenze e canoni;5;Acqua;22/02/2022
537;2;9999999;19,82;189,96;V.E.R.I.T.A.S. SPA; ;SALDO Fatt.n. 600006382340  del 19/01/2022 PERIODO 01.11.2021-31.12.2021 - CONSUMI PIAZZA ACTV CALTANA;16/02/2022;134;31;128;1;Spese correnti;3;Acquisto di beni e servizi;2;Acquisto di servizi;5;Utenze e canoni;5;Acqua;22/02/2022
537;3;9999999;25,24;189,96;V.E.R.I.T.A.S. SPA; ;SALDO Fatt.n. 600006382312  del 19/01/2022 PERIODO 01.11.2021-31.12.2021 - CONSUMI MERCATO CALTANA;16/02/2022;134;31;128;1;Spese correnti;3;Acquisto di beni e servizi;2;Acquisto di servizi;5;Utenze e canoni;5;Acqua;22/02/2022
537;4;9999999;32,14;189,96;V.E.R.I.T.A.S. SPA; ;SALDO Fatt.n. 600006382321  del 19/01/2022 PERIODO 01.11.2021-31.12.2021 - CONSUMI MERCATO CASELLE;16/02/2022;134;31;128;1;Spese correnti;3;Acquisto di beni e servizi;2;Acquisto di servizi;5;Utenze e canoni;5;Acqua;22/02/2022
537;5;9999999;45,6;189,96;V.E.R.I.T.A.S. SPA; ;SALDO Fatt.n. 600006382342  del 19/01/2022 PERIODO 01.11.2021-31.12.2021 - ANTINCENDIO PARCHEGGIO STIGLIANO;16/02/2022;134;31;128;1;Spese correnti;3;Acquisto di beni e servizi;2;Acquisto di servizi;5;Utenze e canoni;5;Acqua;22/02/2022
537;6;9999999;50,9;189,96;V.E.R.I.T.A.S. SPA; ;SALDO Fatt.n. 600006382330  del 19/01/2022 PERIODO  01.11.2021-31.12.2021 - CONSUMI DISTRIBUTORE ACQUA CASELLE;16/02/2022;134;31;128;1;Spese correnti;3;Acquisto di beni e servizi;2;Acquisto di servizi;5;Utenze e canoni;5;Acqua;22/02/2022
538;1;9999999;12,11;183,11;V.E.R.I.T.A.S. SPA; ;SALDO Fatt.n. 600006382348  del 19/01/2022 PERIODO 01.11.2021-31.12.2021 - CONSUMI FONTANA VETERNIGO;16/02/2022;134;31;128;1;Spese correnti;3;Acquisto di beni e servizi;2;Acquisto di servizi;5;Utenze e canoni;5;Acqua;22/02/2022
538;2;9999999;12,81;183,11;V.E.R.I.T.A.S. SPA; ;SALDO Fatt.n. 600006382343  del 19/01/2022 PERIODO 01.11.2021-31.12.2021 - CONSUMI PER MANIFESTAZIONI CALTANA;16/02/2022;134;31;128;1;Spese correnti;3;Acquisto di beni e servizi;2;Acquisto di servizi;5;Utenze e canoni;5;Acqua;22/02/2022
538;3;9999999;21,39;183,11;V.E.R.I.T.A.S. SPA; ;SALDO Fatt.n. 600006382349  del 19/01/2022 PERIODO 01.11.2021-31.12.2021 - CONSUMI MERCATO SMS;16/02/2022;134;31;128;1;Spese correnti;3;Acquisto di beni e servizi;2;Acquisto di servizi;5;Utenze e canoni;5;Acqua;22/02/2022
538;4;9999999;45,6;183,11;V.E.R.I.T.A.S. SPA; ;SALDO Fatt.n. 600006382345  del 19/01/2022 PERIODO 01.11.2021-31.12.2021 - ANTINCENDIO Z.I. SMS;16/02/2022;134;31;128;1;Spese correnti;3;Acquisto di beni e servizi;2;Acquisto di servizi;5;Utenze e canoni;5;Acqua;22/02/2022
538;5;9999999;45,6;183,11;V.E.R.I.T.A.S. SPA; ;SALDO Fatt.n. 600006382346  del 19/01/2022 PERIODO 01.11.2021-31.12.2021 - ANTINCENDIO PARCHEGGIO C.C. PRISMA CASELLE;16/02/2022;134;31;128;1;Spese correnti;3;Acquisto di beni e servizi;2;Acquisto di servizi;5;Utenze e canoni;5;Acqua;22/02/2022
538;6;9999999;45,6;183,11;V.E.R.I.T.A.S. SPA; ;SALDO Fatt.n. 600006382347  del 19/01/2022 PERIODO 01.11.2021-31.12.2021 - ANTINCENDIO STRADA PRESSO ALLOGGIO GUIOTTO;16/02/2022;134;31;128;1;Spese correnti;3;Acquisto di beni e servizi;2;Acquisto di servizi;5;Utenze e canoni;5;Acqua;22/02/2022
539;1;9999999;11,42;163,4;V.E.R.I.T.A.S. SPA; ;SALDO Fatt.n. 600006382355  del 19/01/2022 PERIODO 01.11.2021-31.12.2021 - CONSUMI STRADA PRESSO ALLOGGIO GUIOTTO;16/02/2022;134;31;128;1;Spese correnti;3;Acquisto di beni e servizi;2;Acquisto di servizi;5;Utenze e canoni;5;Acqua;22/02/2022
539;2;9999999;18,09;163,4;V.E.R.I.T.A.S. SPA; ;SALDO Fatt.n. 600006382350  del 19/01/2022 PERIODO 01.11.2021-31.12.2021 - CONSUMI FONTANA VERDE STIGLIANO;16/02/2022;134;31;128;1;Spese correnti;3;Acquisto di beni e servizi;2;Acquisto di servizi;5;Utenze e canoni;5;Acqua;22/02/2022
539;3;9999999;18,09;163,4;V.E.R.I.T.A.S. SPA; ;SALDO Fatt.n. 600006382360  del 19/01/2022 PERIODO 01.11.2021-31.12.2021 - CONSUMI PARCHEGGIO CASELLE;16/02/2022;134;31;128;1;Spese correnti;3;Acquisto di beni e servizi;2;Acquisto di servizi;5;Utenze e canoni;5;Acqua;22/02/2022
539;4;9999999;24,6;163,4;V.E.R.I.T.A.S. SPA; ;SALDO Fatt.n. 600006382352  del 19/01/2022 PERIODO 01.11.2021-31.12.2021 - CONSUMI PER MANIFESTAZIONI SMS;16/02/2022;134;31;128;1;Spese correnti;3;Acquisto di beni e servizi;2;Acquisto di servizi;5;Utenze e canoni;5;Acqua;22/02/2022
539;5;9999999;45,6;163,4;V.E.R.I.T.A.S. SPA; ;SALDO Fatt.n. 600006382351  del 19/01/2022 PERIODO 01.11.2021-31.12.2021 - ANTINCENDIO PER MANIFESTAZIONI SMS;16/02/2022;134;31;128;1;Spese correnti;3;Acquisto di beni e servizi;2;Acquisto di servizi;5;Utenze e canoni;5;Acqua;22/02/2022
539;6;9999999;45,6;163,4;V.E.R.I.T.A.S. SPA; ;SALDO Fatt.n. 600006382359  del 19/01/2022 PERIODO 01.11.2021-31.12.2021 - ANTINCENDIO PIAZZA BEVILACQUA S.ANGELO;16/02/2022;134;31;128;1;Spese correnti;3;Acquisto di beni e servizi;2;Acquisto di servizi;5;Utenze e canoni;5;Acqua;22/02/2022
540;1;9999999;45,6;45,6;V.E.R.I.T.A.S. SPA; ;SALDO Fatt.n. 600006382344  del 19/01/2022 PERIODO 01.11.2021-31.12.2021 - ANTINCENDIO Z.I. SMS;16/02/2022;134;31;128;1;Spese correnti;3;Acquisto di beni e servizi;2;Acquisto di servizi;5;Utenze e canoni;5;Acqua;22/02/2022
541;1;9999999;98,73;98,73;V.E.R.I.T.A.S. SPA; ;ACCONTO Fatt.n. 600006382322  del 19/01/2022 PERIODO 01.11.2021-31.12.2021 - CONSUMI SEDE MUNICIPALE;16/02/2022;134;31;128;1;Spese correnti;3;Acquisto di beni e servizi;2;Acquisto di servizi;5;Utenze e canoni;5;Acqua;22/02/2022
542;1;9999999;45,6;370,58;V.E.R.I.T.A.S. SPA; ;SALDO Fatt.n. 600006382324  del 19/01/2022 PERIODO 01.11.2021-31.12.2021 - ANTINCENDIO SCUOLA MEDIA SMS;16/02/2022;1334;30;129;1;Spese correnti;3;Acquisto di beni e servizi;2;Acquisto di servizi;5;Utenze e canoni;5;Acqua;22/02/2022
542;2;9999999;324,98;370,58;V.E.R.I.T.A.S. SPA; ;SALDO Fatt.n. 600006382323  del 19/01/2022 PERIODO 01.11.2021-31.12.2021 - CONSUMI SC. MEDIA SMS;16/02/2022;1334;30;129;1;Spese correnti;3;Acquisto di beni e servizi;2;Acquisto di servizi;5;Utenze e canoni;5;Acqua;22/02/2022
543;1;9999999;45,6;298,38;V.E.R.I.T.A.S. SPA; ;SALDO Fatt.n. 600006382326  del 19/01/2022 PERIODO 01.11.2021-31.12.2021 - ANTINCENDIO SC. ELEM. CALTANA;16/02/2022;1334;30;129;1;Spese correnti;3;Acquisto di beni e servizi;2;Acquisto di servizi;5;Utenze e canoni;5;Acqua;22/02/2022
543;2;9999999;121,49;298,38;V.E.R.I.T.A.S. SPA; ;SALDO Fatt.n. 600006382313  del 19/01/2022 PERIODO 01.11.2021-31.12.2021 - CONSUMI SC. ELEM. CALTANA;16/02/2022;1334;30;129;1;Spese correnti;3;Acquisto di beni e servizi;2;Acquisto di servizi;5;Utenze e canoni;5;Acqua;22/02/2022
543;3;9999999;131,29;298,38;V.E.R.I.T.A.S. SPA; ;SALDO Fatt.n. 600006382325  del 19/01/2022 PERIODO 01.11.2021-31.12.2021 - CONSUMI SC. ELEM SMS;16/02/2022;1334;30;129;1;Spese correnti;3;Acquisto di beni e servizi;2;Acquisto di servizi;5;Utenze e canoni;5;Acqua;22/02/2022
544;1;9999999;45,6;531,83;V.E.R.I.T.A.S. SPA; ;SALDO Fatt.n. 600006382331  del 19/01/2022 PERIODO 01.11.2021-31.12.2021 - ANTINCENDIO VILLA FARSETTI;16/02/2022;1334;30;129;1;Spese correnti;3;Acquisto di beni e servizi;2;Acquisto di servizi;5;Utenze e canoni;5;Acqua;22/02/2022
544;2;9999999;54,39;531,83;V.E.R.I.T.A.S. SPA; ;SALDO Fatt.n. 600006382320  del 19/01/2022 PERIODO 13.10.2021-31.12.2021 - CONSUMI VILLA FARSETTI;16/02/2022;1334;30;129;1;Spese correnti;3;Acquisto di beni e servizi;2;Acquisto di servizi;5;Utenze e canoni;5;Acqua;22/02/2022
544;3;9999999;431,84;531,83;V.E.R.I.T.A.S. SPA; ;SALDO Fatt.n. 600006382358  del 19/01/2022 PERIODO 01.11.2021-31.12.2021 - CONSUMI VILLA FARSETTI;16/02/2022;1334;30;129;1;Spese correnti;3;Acquisto di beni e servizi;2;Acquisto di servizi;5;Utenze e canoni;5;Acqua;22/02/2022
545;1;9999999;70,57;70,57;V.E.R.I.T.A.S. SPA; ;ACCONTO Fatt.n. 600006382356  del 19/01/2022 PERIODO 01.11.2021-31.12.2021 - CONSUMI PALESTRA CALTANA;16/02/2022;1334;30;129;1;Spese correnti;3;Acquisto di beni e servizi;2;Acquisto di servizi;5;Utenze e canoni;5;Acqua;22/02/2022
546;1;9999999;22,8;22,8;V.E.R.I.T.A.S. SPA; ;ACCONTO Fatt.n. 600006382357  del 19/01/2022 PERIODO 01.11.2021-31.12.2021 - ANTINCENDIO PALESTRA CALTANA;16/02/2022;1334;30;129;1;Spese correnti;3;Acquisto di beni e servizi;2;Acquisto di servizi;5;Utenze e canoni;5;Acqua;22/02/2022
547;1;9999999;105,85;105,85;V.E.R.I.T.A.S. SPA; ;ACCONTO Fatt.n. 600006382319  del 19/01/2022 PERIODO 01.11.2021-31.12.2021 - CONSUMI PALESTRA SMS;16/02/2022;1334;30;129;1;Spese correnti;3;Acquisto di beni e servizi;2;Acquisto di servizi;5;Utenze e canoni;5;Acqua;22/02/2022
